Workbook

Sheet Extraction_quiz_10-12-20
A1: Shortname | B1: Nom complet du cours | C1: course | D1: dnumber | E1: Nom | F1: Action | G1: Question | H1: temps diponible en heures | I1: Description contient "Faire le test" | J1: description
A2: 345-HUP-FD-65-01 | B2: 345-HUP-FD-65-01 • Ethical Issues: Ethics and Society | C2: 380 | D2: E1K | E2: A Few Questions | G2: Je ne vois pas de ID dans le Campus. D'où vient cet idnumber ? | H2: 0 | I2: =IFERROR(SEARCH("faire*test",J2),0)+IFERROR(SEARCH("attempt*now",J2),0) -> 0 | J2: QuizHere is a short quiz to help you review the concepts and ideas discussed in this lesson.
A3: 345-HUP-FD-65-01 | B3: 345-HUP-FD-65-01 • Ethical Issues: Ethics and Society | C3: 380 | D3: GUIDE | E3: A Review of the Ethical Oil Arguments | F3: Retirer le idnumber | G3: Le idnumber correspond à un GUIDE et le nom correspond à une activité. Pourquoi ? | H3: 0 | I3: =IFERROR(SEARCH("faire*test",J3),0)+IFERROR(SEARCH("attempt*now",J3),0) -> 0 | J3: QuizHere is a short quiz to help you review the concepts and ideas discussed in this lesson.
A4: 109-103-MQ-65-02 | B4: 109-103-MQ-65-02 • Physical Activity and Autonomy | C4: 407 | D4: D1B | E4: Assignment 1B | F4: Activité désactivée en 2017. Peut-on la supprimer de Moodle ? | H4: 0 | I4: =IFERROR(SEARCH("faire*test",J4),0)+IFERROR(SEARCH("attempt*now",J4),0) -> 898 | J4: This assignment, which is marked out of 100 points, is worth 5% of the overall grade for the course.It should take you approximately one hour to complete.To complete this assignment, you have to fill out your Personal Physical Activity Program (PPAP) before the sixth week following your registration and after having finished Lesson 5 of Module 1.You can access your PPAP by clicking on Course Resources / Records and Assessments.Before filling out your PPAP, make sure that you:– Carefully read all the recommended documents before doing the assignment.– Take the time to think about what you are writing, remember that you will have to follow your program after planning it.Once you have filled out your PPAP, you must advise your tutor.To do this, come back to the course website and click on Assignment 1B. Reread the information on the assignment page if needed and click on Attempt quiz now. Follow the instructions on the screen, you will then be able to write the required information in the entry field provided and send it to your tutor.If you have any difficulties, go to the Help section.Once your tutor has entered your mark in the system, you will be able to access it on the course website.Remember: Do not start your physical activities before your mark for Assignment 2 has been entered in the system. If these instructions are not followed, the records you have saved will be deleted and you will have to redo the physical activities.Good luck!
A5: 109-103-MQ-65-02 | B5: 109-103-MQ-65-02 • Physical Activity and Autonomy | C5: 407 | D5: D2B | E5: Assignment 1B | F5: Activité désactivée en 2017. Peut-on la supprimer de Moodle ? | H5: 0 | I5: =IFERROR(SEARCH("faire*test",J5),0)+IFERROR(SEARCH("attempt*now",J5),0) -> 898 | J5: This assignment, which is marked out of 100 points, is worth 5% of the overall grade for the course.It should take you approximately one hour to complete.To complete this assignment, you have to fill out your Personal Physical Activity Program (PPAP) before the sixth week following your registration and after having finished Lesson 5 of Module 1.You can access your PPAP by clicking on Course Resources / Records and Assessments.Before filling out your PPAP, make sure that you:– Carefully read all the recommended documents before doing the assignment.– Take the time to think about what you are writing, remember that you will have to follow your program after planning it.Once you have filled out your PPAP, you must advise your tutor.To do this, come back to the course website and click on Assignment 1B. Reread the information on the assignment page if needed and click on Attempt quiz now. Follow the instructions on the screen, you will then be able to write the required information in the entry field provided and send it to your tutor.If you have any difficulties, go to the Help section.Once your tutor has entered your mark in the system, you will be able to access it on the course website.Remember: Do not start your physical activities before your mark for Assignment 2 has been entered in the system. If these instructions are not followed, the records you have saved will be deleted and you will have to redo the physical activities.Good luck!
A6: 109-103-MQ-65-02 | B6: 109-103-MQ-65-02 • Physical Activity and Autonomy | C6: 407 | D6: GUIDE | E6: Assignment 1B | F6: Activité désactivée en 2017. Peut-on la supprimer de Moodle ? | G6: Le idnumber correspond à un GUIDE et le nom correspond à un devoir. Pourquoi ? | H6: 0 | I6: =IFERROR(SEARCH("faire*test",J6),0)+IFERROR(SEARCH("attempt*now",J6),0) -> 898 | J6: This assignment, which is marked out of 100 points, is worth 5% of the overall grade for the course.It should take you approximately one hour to complete.To complete this assignment, you have to fill out your Personal Physical Activity Program (PPAP) before the sixth week following your registration and after having finished Lesson 5 of Module 1.You can access your PPAP by clicking on Course Resources / Records and Assessments.Before filling out your PPAP, make sure that you:– Carefully read all the recommended documents before doing the assignment.– Take the time to think about what you are writing, remember that you will have to follow your program after planning it.Once you have filled out your PPAP, you must advise your tutor.To do this, come back to the course website and click on Assignment 1B. Reread the information on the assignment page if needed and click on Attempt quiz now. Follow the instructions on the screen, you will then be able to write the required information in the entry field provided and send it to your tutor.If you have any difficulties, go to the Help section.Once your tutor has entered your mark in the system, you will be able to access it on the course website.Remember: Do not start your physical activities before your mark for Assignment 2 has been entered in the system. If these instructions are not followed, the records you have saved will be deleted and you will have to redo the physical activities.Good luck!
A7: 350-102-RE-55-02 | B7: 350-102-RE-55-02 • General Psychology | C7: 381 | D7: D1K | E7: Assignment 1K | F7: Activité désactivée en 2016. Peut-on la supprimer de Moodle ? | H7: 0 | I7: =IFERROR(SEARCH("faire*test",J7),0)+IFERROR(SEARCH("attempt*now",J7),0) -> 1024 | J7: This assignment, which is marked out of 100 points, is worth 10% of the overall grade for the course.It should take you approximately three hours to complete.You should do this assignment when you have completed Lessons 1 and 2.The readings and exercises you did in these lessons have prepared you for this assignment, but you should also feel free to refer to your textbook or the online exercises to help you find the answers to the questions.When you are answering the short-answer questions, make sure you take into account the maximum allowable number of words indicated in parentheses. In order to make sure that your answers respect the number of words required, we suggest that you first write them in a Word file, where you can easily have the words counted. When you’re finished, you can copy your answers in the space provided.Never leave any questions unanswered. If you do not write anything at all, your tutor will not be able to give you any feedback or steer you in the right direction. Just make a serious attempt... you may find you know more than you think!The structure of the final evaluation is very similar to these assignments, so doing your assignment is a very good way to prepare for your final evaluation. Just remember that when you write the exam, you will have a limited time to complete it.This assignment is comprised of three parts:–the first part is short-answer questions (questions 1 to 7)–the second part is multiple-choice questions (questions 8 to 17)–the third part is a lab report (questions 18 to 30)When you have finished, click on Submit all and finish. Follow the instructions on the screen to send your assignment to your tutor.If you have any difficulties, go to the Help section.Good luck!
A8: 350-102-RE-55-02 | B8: 350-102-RE-55-02 • General Psychology | C8: 381 | D8: D1L | E8: Assignment 1L | F8: Activité désactivée en 2016. Peut-on la supprimer de Moodle ? | H8: 0 | I8: =IFERROR(SEARCH("faire*test",J8),0)+IFERROR(SEARCH("attempt*now",J8),0) -> 1024 | J8: This assignment, which is marked out of 100 points, is worth 10% of the overall grade for the course.It should take you approximately three hours to complete.You should do this assignment when you have completed Lessons 1 and 2.The readings and exercises you did in these lessons have prepared you for this assignment, but you should also feel free to refer to your textbook or the online exercises to help you find the answers to the questions.When you are answering the short-answer questions, make sure you take into account the maximum allowable number of words indicated in parentheses. In order to make sure that your answers respect the number of words required, we suggest that you first write them in a Word file, where you can easily have the words counted. When you’re finished, you can copy your answers in the space provided.Never leave any questions unanswered. If you do not write anything at all, your tutor will not be able to give you any feedback or steer you in the right direction. Just make a serious attempt... you may find you know more than you think!The structure of the final evaluation is very similar to these assignments, so doing your assignment is a very good way to prepare for your final evaluation. Just remember that when you write the exam, you will have a limited time to complete it.This assignment is comprised of three parts:–the first part is short-answer questions (questions 1 to 8)–the second part is multiple-choice questions (questions 9 to 18)–the third part is a lab report (questions 19 to 31)When you have finished, click on Submit all and finish. Follow the instructions on the screen to send your assignment to your tutor.If you have any difficulties, go to the Help section.Good luck!
A9: 350-102-RE-55-02 | B9: 350-102-RE-55-02 • General Psychology | C9: 381 | D9: GUIDE | E9: Assignment 1L | F9: Activité désactivée en 2016. Peut-on la supprimer de Moodle ? | G9: Le idnumber correspond à un GUIDE et le nom correspond à un devoir. Pourquoi ? | H9: 0 | I9: =IFERROR(SEARCH("faire*test",J9),0)+IFERROR(SEARCH("attempt*now",J9),0) -> 1024 | J9: This assignment, which is marked out of 100 points, is worth 10% of the overall grade for the course.It should take you approximately three hours to complete.You should do this assignment when you have completed Lessons 1 and 2.The readings and exercises you did in these lessons have prepared you for this assignment, but you should also feel free to refer to your textbook or the online exercises to help you find the answers to the questions.When you are answering the short-answer questions, make sure you take into account the maximum allowable number of words indicated in parentheses. In order to make sure that your answers respect the number of words required, we suggest that you first write them in a Word file, where you can easily have the words counted. When you’re finished, you can copy your answers in the space provided.Never leave any questions unanswered. If you do not write anything at all, your tutor will not be able to give you any feedback or steer you in the right direction. Just make a serious attempt... you may find you know more than you think!The structure of the final evaluation is very similar to these assignments, so doing your assignment is a very good way to prepare for your final evaluation. Just remember that when you write the exam, you will have a limited time to complete it.This assignment is comprised of three parts:–the first part is short-answer questions (questions 1 to 8)–the second part is multiple-choice questions (questions 9 to 18)–the third part is a lab report (questions 19 to 31)When you have finished, click on Submit all and finish. Follow the instructions on the screen to send your assignment to your tutor.If you have any difficulties, go to the Help section.Good luck!
A10: 109-101-MQ-65-01 | B10: 109-101-MQ-65-01 • Physical Activity and Health | C10: 406 | D10: D2A | E10: Assignment 2A | F10: Activité désactivée en 2017. Peut-on la supprimer de Moodle ? | H10: 0 | I10: =IFERROR(SEARCH("faire*test",J10),0)+IFERROR(SEARCH("attempt*now",J10),0) -> 465 | J10: This assignment, which is marked out of 100 points, is worth 5% of the overall grade for the course.Assignment 2 consists of all the interactive physical activity records that you filled out in Module 1.You must now advise your tutor that your Module 1 physical activities are completed and ready to correct. You should also inform your tutor of your availability for Assignment 3, which consists of a structured oral interview with the tutor.To do this, click on Attempt quiz now. Follow the instructions on the screen, you will then be able to write the required information in the entry field provided and send it to your tutor.If you have any difficulties, go to the Help section.Once your tutor has entered your mark in the system, you will be able to access it on the course website.Good luck!
A11: 109-101-MQ-65-01 | B11: 109-101-MQ-65-01 • Physical Activity and Health | C11: 406 | D11: D3A | E11: Assignment 2A | F11: Activité désactivée en 2017. Peut-on la supprimer de Moodle ? | H11: 0 | I11: =IFERROR(SEARCH("faire*test",J11),0)+IFERROR(SEARCH("attempt*now",J11),0) -> 465 | J11: This assignment, which is marked out of 100 points, is worth 5% of the overall grade for the course.Assignment 2 consists of all the interactive physical activity records that you filled out in Module 1.You must now advise your tutor that your Module 1 physical activities are completed and ready to correct. You should also inform your tutor of your availability for Assignment 3, which consists of a structured oral interview with the tutor.To do this, click on Attempt quiz now. Follow the instructions on the screen, you will then be able to write the required information in the entry field provided and send it to your tutor.If you have any difficulties, go to the Help section.Once your tutor has entered your mark in the system, you will be able to access it on the course website.Good luck!
A12: 350-102-RE-55-02 | B12: 350-102-RE-55-02 • General Psychology | C12: 381 | D12: D2K | E12: Assignment 2K | F12: Activité désactivée en 2016. Peut-on la supprimer de Moodle ? | H12: 0 | I12: =IFERROR(SEARCH("faire*test",J12),0)+IFERROR(SEARCH("attempt*now",J12),0) -> 777 | J12: This assignment, which is marked out of 100 points, is worth 10% of the overall grade for the course.It should take you approximately three hours to complete.You should do this assignment when you have completed Lessons 3 and 4.The readings and exercises you did in these lessons have prepared you for this assignment, but you should also feel free to refer to your textbook or the online exercises to help you find the answers to the questions.When you are answering the short-answer questions, make sure you take into account the maximum allowable number of words indicated in parentheses.Never leave any questions unanswered. If you do not write anything at all, your tutor will not be able to give you any feedback or steer you in the right direction. Just make a serious attempt... you may find you know more than you think!The structure of the final evaluation is very similar to these assignments, so doing your assignment is a very good way to prepare for your final evaluation. Just remember that when you write the exam, you will have a limited time to complete it.This assignment is comprised of two parts:–the first part is short-answer questions (questions 1 to 9)–the second part is multiple-choice questions (questions 10 to 19)When you have finished, click on Submit all and finish. Follow the instructions on the screen to send your assignment to your tutor.If you have any difficulties, go to the Help section.Good luck!
A13: 350-102-RE-55-02 | B13: 350-102-RE-55-02 • General Psychology | C13: 381 | D13: D2L | E13: Assignment 2L | F13: Activité désactivée en 2016. Peut-on la supprimer de Moodle ? | H13: 0 | I13: =IFERROR(SEARCH("faire*test",J13),0)+IFERROR(SEARCH("attempt*now",J13),0) -> 777 | J13: This assignment, which is marked out of 100 points, is worth 10% of the overall grade for the course.It should take you approximately three hours to complete.You should do this assignment when you have completed Lessons 3 and 4.The readings and exercises you did in these lessons have prepared you for this assignment, but you should also feel free to refer to your textbook or the online exercises to help you find the answers to the questions.When you are answering the short-answer questions, make sure you take into account the maximum allowable number of words indicated in parentheses.Never leave any questions unanswered. If you do not write anything at all, your tutor will not be able to give you any feedback or steer you in the right direction. Just make a serious attempt... you may find you know more than you think!The structure of the final evaluation is very similar to these assignments, so doing your assignment is a very good way to prepare for your final evaluation. Just remember that when you write the exam, you will have a limited time to complete it.This assignment is comprised of two parts:–the first part is short-answer questions (questions 1 to 9)–the second part is multiple-choice questions (questions 10 to 19)When you have finished, click on Submit all and finish. Follow the instructions on the screen to send your assignment to your tutor.If you have any difficulties, go to the Help section.Good luck!
A14: 350-102-RE-55-02 | B14: 350-102-RE-55-02 • General Psychology | C14: 381 | D14: GUIDE | E14: Assignment 2L | F14: Activité désactivée en 2016. Peut-on la supprimer de Moodle ? | G14: Le idnumber correspond à un GUIDE et le nom correspond à un devoir. Pourquoi ? | H14: 0 | I14: =IFERROR(SEARCH("faire*test",J14),0)+IFERROR(SEARCH("attempt*now",J14),0) -> 777 | J14: This assignment, which is marked out of 100 points, is worth 10% of the overall grade for the course.It should take you approximately three hours to complete.You should do this assignment when you have completed Lessons 3 and 4.The readings and exercises you did in these lessons have prepared you for this assignment, but you should also feel free to refer to your textbook or the online exercises to help you find the answers to the questions.When you are answering the short-answer questions, make sure you take into account the maximum allowable number of words indicated in parentheses.Never leave any questions unanswered. If you do not write anything at all, your tutor will not be able to give you any feedback or steer you in the right direction. Just make a serious attempt... you may find you know more than you think!The structure of the final evaluation is very similar to these assignments, so doing your assignment is a very good way to prepare for your final evaluation. Just remember that when you write the exam, you will have a limited time to complete it.This assignment is comprised of two parts:–the first part is short-answer questions (questions 1 to 9)–the second part is multiple-choice questions (questions 10 to 19)When you have finished, click on Submit all and finish. Follow the instructions on the screen to send your assignment to your tutor.If you have any difficulties, go to the Help section.Good luck!
A15: 109-103-MQ-65-02 | B15: 109-103-MQ-65-02 • Physical Activity and Autonomy | C15: 407 | D15: D3B | E15: Assignment 3B | F15: Activité désactivée en 2017. Peut-on la supprimer de Moodle ? | H15: 0 | I15: =IFERROR(SEARCH("faire*test",J15),0)+IFERROR(SEARCH("attempt*now",J15),0) -> 1262 | J15: This assignment, which is marked out of 100 points, is worth 10% of the overall grade for the course.It should take you approximately 30 minutes to complete.To complete this assignment, you must have filled out your Modified Personal Physical Activity Program (Modified PPAP), after having finished Lesson 8. You must also have filled out, to your tutor’s satisfaction, the 12 My Physical Activity Sessions records halfway through your physical activity.So you must modify the PPAP that you had prepared in Module 1 on the basis of:– the information that you have compiled in your 12 My Physical Activity Sessions records, and– the theoretical content of Lessons 6, 7 and 8.You can access the Modified PPAP by clicking on Course Resources/Records and Assessments.Before filling out your Modified PPAP, make sure that you:– Carefully read all the recommended documents before doing the assignment.– Take the time to think about what you are writing, remember that you will have to follow your program after planning it.Once you have filled out your Modified PPAP, you must advise your tutor.To do this, go back to the course website and click on Assignment 3B. Reread the information on the assignment page if needed and click on Attempt quiz now. Follow the instructions on the screen, you will then be able to write the required information in the entry field provided and send it to your tutor.If you have any difficulties, go to the Help section.Once your tutor has entered your mark in the system, you will be able to access it on the course website.Please note: Do not continue your physical activities before your mark for the present assignment has been entered in the system. If these instructions are not followed, the records you have saved will be deleted and you will have to redo the physical activities.Good luck!
A16: 109-103-MQ-65-02 | B16: 109-103-MQ-65-02 • Physical Activity and Autonomy | C16: 407 | D16: D3B | E16: Assignment 3B | F16: Activité désactivée en 2017. Peut-on la supprimer de Moodle ? | H16: 0 | I16: =IFERROR(SEARCH("faire*test",J16),0)+IFERROR(SEARCH("attempt*now",J16),0) -> 1262 | J16: This assignment, which is marked out of 100 points, is worth 10% of the overall grade for the course.It should take you approximately 30 minutes to complete.To complete this assignment, you must have filled out your Modified Personal Physical Activity Program (Modified PPAP), after having finished Lesson 8. You must also have filled out, to your tutor’s satisfaction, the 12 My Physical Activity Sessions records halfway through your physical activity.So you must modify the PPAP that you had prepared in Module 1 on the basis of:– the information that you have compiled in your 12 My Physical Activity Sessions records, and– the theoretical content of Lessons 6, 7 and 8.You can access the Modified PPAP by clicking on Course Resources/Records and Assessments.Before filling out your Modified PPAP, make sure that you:– Carefully read all the recommended documents before doing the assignment.– Take the time to think about what you are writing, remember that you will have to follow your program after planning it.Once you have filled out your Modified PPAP, you must advise your tutor.To do this, go back to the course website and click on Assignment 3B. Reread the information on the assignment page if needed and click on Attempt quiz now. Follow the instructions on the screen, you will then be able to write the required information in the entry field provided and send it to your tutor.If you have any difficulties, go to the Help section.Once your tutor has entered your mark in the system, you will be able to access it on the course website.Please note: Do not continue your physical activities before your mark for the present assignment has been entered in the system. If these instructions are not followed, the records you have saved will be deleted and you will have to redo the physical activities.Good luck!
A17: 350-102-RE-55-02 | B17: 350-102-RE-55-02 • General Psychology | C17: 381 | D17: D3K | E17: Assignment 3K | F17: Activité désactivée en 2016. Peut-on la supprimer de Moodle ? | H17: 0 | I17: =IFERROR(SEARCH("faire*test",J17),0)+IFERROR(SEARCH("attempt*now",J17),0) -> 777 | J17: This assignment, which is marked out of 100 points, is worth 15% of the overall grade for the course.It should take you approximately three hours to complete.You should do this assignment when you have completed Lessons 5 and 6.The readings and exercises you did in these lessons have prepared you for this assignment, but you should also feel free to refer to your textbook or the online exercises to help you find the answers to the questions.When you are answering the short-answer questions, make sure you take into account the maximum allowable number of words indicated in parentheses.Never leave any questions unanswered. If you do not write anything at all, your tutor will not be able to give you any feedback or steer you in the right direction. Just make a serious attempt... you may find you know more than you think!The structure of the final evaluation is very similar to these assignments, so doing your assignment is a very good way to prepare for your final evaluation. Just remember that when you write the exam, you will have a limited time to complete it.This assignment is comprised of three parts:–the first part is short-answer questions (questions 1 to 6)–the second part is multiple-choice questions (questions 7 to 18)–the third part is a lab report (questions 19 to 29)When you have finished, click on Submit all and finish. Follow the instructions on the screen to send your assignment to your tutor.If you have any difficulties, go to the Help section.Good luck!
A18: 350-102-RE-55-02 | B18: 350-102-RE-55-02 • General Psychology | C18: 381 | D18: D3L | E18: Assignment 3L | F18: Activité désactivée en 2016. Peut-on la supprimer de Moodle ? | H18: 0 | I18: =IFERROR(SEARCH("faire*test",J18),0)+IFERROR(SEARCH("attempt*now",J18),0) -> 777 | J18: This assignment, which is marked out of 100 points, is worth 15% of the overall grade for the course.It should take you approximately three hours to complete.You should do this assignment when you have completed Lessons 5 and 6.The readings and exercises you did in these lessons have prepared you for this assignment, but you should also feel free to refer to your textbook or the online exercises to help you find the answers to the questions.When you are answering the short-answer questions, make sure you take into account the maximum allowable number of words indicated in parentheses.Never leave any questions unanswered. If you do not write anything at all, your tutor will not be able to give you any feedback or steer you in the right direction. Just make a serious attempt... you may find you know more than you think!The structure of the final evaluation is very similar to these assignments, so doing your assignment is a very good way to prepare for your final evaluation. Just remember that when you write the exam, you will have a limited time to complete it.This assignment is comprised of three parts:–the first part is short-answer questions (questions 1 to 6)–the second part is multiple-choice questions (questions 7 to 18)–the third part is a lab report (questions 19 to 29)When you have finished, click on Submit all and finish. Follow the instructions on the screen to send your assignment to your tutor.If you have any difficulties, go to the Help section.Good luck!
A19: 350-102-RE-55-02 | B19: 350-102-RE-55-02 • General Psychology | C19: 381 | D19: GUIDE | E19: Assignment 3L | F19: Activité désactivée en 2016. Peut-on la supprimer de Moodle ? | G19: Le idnumber correspond à un GUIDE et le nom correspond à un devoir. Pourquoi ? | H19: 0 | I19: =IFERROR(SEARCH("faire*test",J19),0)+IFERROR(SEARCH("attempt*now",J19),0) -> 777 | J19: This assignment, which is marked out of 100 points, is worth 15% of the overall grade for the course.It should take you approximately three hours to complete.You should do this assignment when you have completed Lessons 5 and 6.The readings and exercises you did in these lessons have prepared you for this assignment, but you should also feel free to refer to your textbook or the online exercises to help you find the answers to the questions.When you are answering the short-answer questions, make sure you take into account the maximum allowable number of words indicated in parentheses.Never leave any questions unanswered. If you do not write anything at all, your tutor will not be able to give you any feedback or steer you in the right direction. Just make a serious attempt... you may find you know more than you think!The structure of the final evaluation is very similar to these assignments, so doing your assignment is a very good way to prepare for your final evaluation. Just remember that when you write the exam, you will have a limited time to complete it.This assignment is comprised of three parts:–the first part is short-answer questions (questions 1 to 6)–the second part is multiple-choice questions (questions 7 to 18)–the third part is a lab report (questions 19 to 29)When you have finished, click on Submit all and finish. Follow the instructions on the screen to send your assignment to your tutor.If you have any difficulties, go to the Help section.Good luck!
A20: 109-101-MQ-65-01 | B20: 109-101-MQ-65-01 • Physical Activity and Health | C20: 406 | D20: D4A | E20: Assignment 4A | F20: Activité désactivée en 2017. Peut-on la supprimer de Moodle ? | H20: 0 | I20: =IFERROR(SEARCH("faire*test",J20),0)+IFERROR(SEARCH("attempt*now",J20),0) -> 465 | J20: This assignment, which is marked out of 100 points, is worth 5% of the overall grade for the course.Assignment 4 consists of all the interactive physical activity records that you filled out in Module 2.You must now advise your tutor that your Module 2 physical activities are completed and ready to correct. You should also inform your tutor of your availability for Assignment 5, which consists of a structured oral interview with the tutor.To do this, click on Attempt quiz now. Follow the instructions on the screen, you will then be able to write the required information in the entry field provided and send it to your tutor.If you have any difficulties, go to the Help section.Once your tutor has entered your mark in the system, you will be able to access it on the course website.Good luck!
A21: 109-101-MQ-65-01 | B21: 109-101-MQ-65-01 • Physical Activity and Health | C21: 406 | D21: D4A | E21: Assignment 4A | F21: Activité désactivée en 2017. Peut-on la supprimer de Moodle ? | H21: 0 | I21: =IFERROR(SEARCH("faire*test",J21),0)+IFERROR(SEARCH("attempt*now",J21),0) -> 465 | J21: This assignment, which is marked out of 100 points, is worth 5% of the overall grade for the course.Assignment 4 consists of all the interactive physical activity records that you filled out in Module 2.You must now advise your tutor that your Module 2 physical activities are completed and ready to correct. You should also inform your tutor of your availability for Assignment 5, which consists of a structured oral interview with the tutor.To do this, click on Attempt quiz now. Follow the instructions on the screen, you will then be able to write the required information in the entry field provided and send it to your tutor.If you have any difficulties, go to the Help section.Once your tutor has entered your mark in the system, you will be able to access it on the course website.Good luck!
A22: 109-103-MQ-65-02 | B22: 109-103-MQ-65-02 • Physical Activity and Autonomy | C22: 407 | D22: D4B | E22: Assignment 4B | F22: Activité désactivée en 2017. Peut-on la supprimer de Moodle ? | H22: 0 | I22: =IFERROR(SEARCH("faire*test",J22),0)+IFERROR(SEARCH("attempt*now",J22),0) -> 731 | J22: This assignment, which is marked out of 100 points, is worth 15% of the overall grade for the course.Assignment 4 consists of all the interactive physical activity records that you filled out in Module 2.You filled out these records in two stages:– The “My Physical Activity Sessions” records during the first half of Module 2.– The “My Modified Physical Activity Sessions” records after you modified your PPAP, halfway through Module 2.You must now advise your tutor that you have finished your Module 2 physical activities so your records can be corrected. You should also inform your tutor of your availability for Assignment 5, which consists of a structured oral interview with the tutor.To do this, click on Attempt quiz now. Follow the instructions on the screen, you will then be able to write the required information in the entry field provided and send it to your tutor.If you have any difficulties, go to the Help section.Once your tutor has entered your mark in the system, you will be able to access it on the course website.Good luck!
A23: 109-103-MQ-65-02 | B23: 109-103-MQ-65-02 • Physical Activity and Autonomy | C23: 407 | D23: D4B | E23: Assignment 4B | F23: Activité désactivée en 2017. Peut-on la supprimer de Moodle ? | H23: 0 | I23: =IFERROR(SEARCH("faire*test",J23),0)+IFERROR(SEARCH("attempt*now",J23),0) -> 731 | J23: This assignment, which is marked out of 100 points, is worth 15% of the overall grade for the course.Assignment 4 consists of all the interactive physical activity records that you filled out in Module 2.You filled out these records in two stages:– The “My Physical Activity Sessions” records during the first half of Module 2.– The “My Modified Physical Activity Sessions” records after you modified your PPAP, halfway through Module 2.You must now advise your tutor that you have finished your Module 2 physical activities so your records can be corrected. You should also inform your tutor of your availability for Assignment 5, which consists of a structured oral interview with the tutor.To do this, click on Attempt quiz now. Follow the instructions on the screen, you will then be able to write the required information in the entry field provided and send it to your tutor.If you have any difficulties, go to the Help section.Once your tutor has entered your mark in the system, you will be able to access it on the course website.Good luck!
A24: 109-103-MQ-65-02 | B24: 109-103-MQ-65-02 • Physical Activity and Autonomy | C24: 407 | D24: GUIDE | E24: Assignment 4B | F24: Activité désactivée en 2017. Peut-on la supprimer de Moodle ? | G24: Le idnumber correspond à un GUIDE et le nom correspond à un devoir. Pourquoi ? | H24: 0 | I24: =IFERROR(SEARCH("faire*test",J24),0)+IFERROR(SEARCH("attempt*now",J24),0) -> 731 | J24: This assignment, which is marked out of 100 points, is worth 15% of the overall grade for the course.Assignment 4 consists of all the interactive physical activity records that you filled out in Module 2.You filled out these records in two stages:– The “My Physical Activity Sessions” records during the first half of Module 2.– The “My Modified Physical Activity Sessions” records after you modified your PPAP, halfway through Module 2.You must now advise your tutor that you have finished your Module 2 physical activities so your records can be corrected. You should also inform your tutor of your availability for Assignment 5, which consists of a structured oral interview with the tutor.To do this, click on Attempt quiz now. Follow the instructions on the screen, you will then be able to write the required information in the entry field provided and send it to your tutor.If you have any difficulties, go to the Help section.Once your tutor has entered your mark in the system, you will be able to access it on the course website.Good luck!
A25: 350-102-RE-55-02 | B25: 350-102-RE-55-02 • General Psychology | C25: 381 | D25: D4K | E25: Assignment 4K | F25: Activité désactivée en 2016. Peut-on la supprimer de Moodle ? | H25: 0 | I25: =IFERROR(SEARCH("faire*test",J25),0)+IFERROR(SEARCH("attempt*now",J25),0) -> 773 | J25: This assignment, which is marked out of 100 points, is worth 15% of the overall grade for the course.It should take you approximately three hours to complete.You should do this assignment after you finish lessons 7, 8 and 9.The readings and exercises you did in these lessons have prepared you for this assignment, but you should also feel free to refer to your textbook or the online exercises to help you find the answers to the questions.When you are answering the short-answer questions, make sure you take into account the maximum allowable number of words indicated in parentheses.Never leave any questions unanswered. If you do not write anything at all, your tutor will not be able to give you any feedback or steer you in the right direction. Just make a serious attempt... you may find you know more than you think!The structure of the final evaluation is very similar to these assignments, so doing your assignment is a very good way to prepare for your final evaluation. Just remember that when you write the exam, you will have a limited time to complete it.This assignment is comprised of three parts:-the first part is short-answer questions (questions 1 to 11)-the second part is multiple-choice questions (questions 12 to 22)-the third part is an integration activity (questions 23 to 32)When you have finished, click on Submit all and finish. Follow the instructions on the screen to send your assignment to your tutor.If you have any difficulties, go to the Help section.Good luck!
A26: 350-102-RE-55-02 | B26: 350-102-RE-55-02 • General Psychology | C26: 381 | D26: GUIDE | E26: Assignment 4K | F26: Activité désactivée en 2016. Peut-on la supprimer de Moodle ? | G26: Le idnumber correspond à un GUIDE et le nom correspond à un devoir. Pourquoi ? | H26: 0 | I26: =IFERROR(SEARCH("faire*test",J26),0)+IFERROR(SEARCH("attempt*now",J26),0) -> 773 | J26: This assignment, which is marked out of 100 points, is worth 15% of the overall grade for the course.It should take you approximately three hours to complete.You should do this assignment after you finish lessons 7, 8 and 9.The readings and exercises you did in these lessons have prepared you for this assignment, but you should also feel free to refer to your textbook or the online exercises to help you find the answers to the questions.When you are answering the short-answer questions, make sure you take into account the maximum allowable number of words indicated in parentheses.Never leave any questions unanswered. If you do not write anything at all, your tutor will not be able to give you any feedback or steer you in the right direction. Just make a serious attempt... you may find you know more than you think!The structure of the final evaluation is very similar to these assignments, so doing your assignment is a very good way to prepare for your final evaluation. Just remember that when you write the exam, you will have a limited time to complete it.This assignment is comprised of three parts:-the first part is short-answer questions (questions 1 to 11)-the second part is multiple-choice questions (questions 12 to 22)-the third part is an integration activity (questions 23 to 32)When you have finished, click on Submit all and finish. Follow the instructions on the screen to send your assignment to your tutor.If you have any difficulties, go to the Help section.Good luck!
A27: 350-102-RE-55-02 | B27: 350-102-RE-55-02 • General Psychology | C27: 381 | D27: D1G | E27: Assignment 4L | F27: Activité désactivée en 2016. Peut-on la supprimer de Moodle ? | H27: 0 | I27: =IFERROR(SEARCH("faire*test",J27),0)+IFERROR(SEARCH("attempt*now",J27),0) -> 773 | J27: This assignment, which is marked out of 100 points, is worth 15% of the overall grade for the course.It should take you approximately three hours to complete.You should do this assignment after you finish lessons 7, 8 and 9.The readings and exercises you did in these lessons have prepared you for this assignment, but you should also feel free to refer to your textbook or the online exercises to help you find the answers to the questions.When you are answering the short-answer questions, make sure you take into account the maximum allowable number of words indicated in parentheses.Never leave any questions unanswered. If you do not write anything at all, your tutor will not be able to give you any feedback or steer you in the right direction. Just make a serious attempt... you may find you know more than you think!The structure of the final evaluation is very similar to these assignments, so doing your assignment is a very good way to prepare for your final evaluation. Just remember that when you write the exam, you will have a limited time to complete it.This assignment is comprised of three parts:-the first part is short-answer questions (questions 1 to 11)-the second part is multiple-choice questions (questions 12 to 22)-the third part is an integration activity (questions 23 to 32)When you have finished, click on Submit all and finish. Follow the instructions on the screen to send your assignment to your tutor.If you have any difficulties, go to the Help section.Good luck!
A28: 350-102-RE-55-02 | B28: 350-102-RE-55-02 • General Psychology | C28: 381 | D28: D4L | E28: Assignment 4L | F28: Activité désactivée en 2016. Peut-on la supprimer de Moodle ? | H28: 0 | I28: =IFERROR(SEARCH("faire*test",J28),0)+IFERROR(SEARCH("attempt*now",J28),0) -> 773 | J28: This assignment, which is marked out of 100 points, is worth 15% of the overall grade for the course.It should take you approximately three hours to complete.You should do this assignment after you finish lessons 7, 8 and 9.The readings and exercises you did in these lessons have prepared you for this assignment, but you should also feel free to refer to your textbook or the online exercises to help you find the answers to the questions.When you are answering the short-answer questions, make sure you take into account the maximum allowable number of words indicated in parentheses.Never leave any questions unanswered. If you do not write anything at all, your tutor will not be able to give you any feedback or steer you in the right direction. Just make a serious attempt... you may find you know more than you think!The structure of the final evaluation is very similar to these assignments, so doing your assignment is a very good way to prepare for your final evaluation. Just remember that when you write the exam, you will have a limited time to complete it.This assignment is comprised of three parts:-the first part is short-answer questions (questions 1 to 11)-the second part is multiple-choice questions (questions 12 to 22)-the third part is an integration activity (questions 23 to 32)When you have finished, click on Submit all and finish. Follow the instructions on the screen to send your assignment to your tutor.If you have any difficulties, go to the Help section.Good luck!
A29: 350-102-RE-55-02 | B29: 350-102-RE-55-02 • General Psychology | C29: 381 | D29: GUIDE | E29: Assignment 4L | F29: Activité désactivée en 2016. Peut-on la supprimer de Moodle ? | G29: Le idnumber correspond à un GUIDE et le nom correspond à un devoir. Pourquoi ? | H29: 0 | I29: =IFERROR(SEARCH("faire*test",J29),0)+IFERROR(SEARCH("attempt*now",J29),0) -> 773 | J29: This assignment, which is marked out of 100 points, is worth 15% of the overall grade for the course.It should take you approximately three hours to complete.You should do this assignment after you finish lessons 7, 8 and 9.The readings and exercises you did in these lessons have prepared you for this assignment, but you should also feel free to refer to your textbook or the online exercises to help you find the answers to the questions.When you are answering the short-answer questions, make sure you take into account the maximum allowable number of words indicated in parentheses.Never leave any questions unanswered. If you do not write anything at all, your tutor will not be able to give you any feedback or steer you in the right direction. Just make a serious attempt... you may find you know more than you think!The structure of the final evaluation is very similar to these assignments, so doing your assignment is a very good way to prepare for your final evaluation. Just remember that when you write the exam, you will have a limited time to complete it.This assignment is comprised of three parts:-the first part is short-answer questions (questions 1 to 11)-the second part is multiple-choice questions (questions 12 to 22)-the third part is an integration activity (questions 23 to 32)When you have finished, click on Submit all and finish. Follow the instructions on the screen to send your assignment to your tutor.If you have any difficulties, go to the Help section.Good luck!
A30: 109-101-MQ-65-01 | B30: 109-101-MQ-65-01 • Physical Activity and Health | C30: 406 | D30: D1B | E30: Assignment 6A | F30: Activité désactivée en 2017. Peut-on la supprimer de Moodle ? | H30: 0 | I30: =IFERROR(SEARCH("faire*test",J30),0)+IFERROR(SEARCH("attempt*now",J30),0) -> 465 | J30: This assignment, which is marked out of 100 points, is worth 5% of the overall grade for the course.Assignment 6 consists of all the interactive physical activity records that you filled out in Module 3.You must now advise your tutor that your Module 3 physical activities are completed and ready to correct. You should also inform your tutor of your availability for Assignment 7, which consists of a structured oral interview with the tutor.To do this, click on Attempt quiz now. Follow the instructions on the screen, you will then be able to write the required information in the entry field provided and send it to your tutor.If you have any difficulties, go to the Help section.Once your tutor has entered your mark in the system, you will be able to access it on the course website.Good luck!
A31: 109-101-MQ-65-01 | B31: 109-101-MQ-65-01 • Physical Activity and Health | C31: 406 | D31: D6A | E31: Assignment 6A | F31: Activité désactivée en 2017. Peut-on la supprimer de Moodle ? | H31: 0 | I31: =IFERROR(SEARCH("faire*test",J31),0)+IFERROR(SEARCH("attempt*now",J31),0) -> 465 | J31: This assignment, which is marked out of 100 points, is worth 5% of the overall grade for the course.Assignment 6 consists of all the interactive physical activity records that you filled out in Module 3.You must now advise your tutor that your Module 3 physical activities are completed and ready to correct. You should also inform your tutor of your availability for Assignment 7, which consists of a structured oral interview with the tutor.To do this, click on Attempt quiz now. Follow the instructions on the screen, you will then be able to write the required information in the entry field provided and send it to your tutor.If you have any difficulties, go to the Help section.Once your tutor has entered your mark in the system, you will be able to access it on the course website.Good luck!
A32: 345-HUP-FD-65-01 | B32: 345-HUP-FD-65-01 • Ethical Issues: Ethics and Society | C32: 380 | D32: GUIDE | E32: Assignment Preparation 2 | F32: Retirer le idnumber | G32: Le idnumber correspond à un GUIDE et le nom correspond à une activité. Pourquoi ? | H32: 0 | I32: =IFERROR(SEARCH("faire*test",J32),0)+IFERROR(SEARCH("attempt*now",J32),0) -> 0 | J32: This activity will help you prepare for your second assignment.You will have to analyze two texts to identify the premises, arguments and potential fallacies they may contain. Try to answer the questions to the best of your knowledge. Pay close attention to the feedback you get for your answers—it will help you when the time comes to complete your first assignment.Once you have finished with this activity, you can go on to your second assignment.
A33: 345-HUP-FD-65-01 | B33: 345-HUP-FD-65-01 • Ethical Issues: Ethics and Society | C33: 380 | D33: GUIDE | E33: Basic Questions on Nonconsequentialist Ethics | F33: Retirer le idnumber | G33: Le idnumber correspond à un GUIDE et le nom correspond à une activité. Pourquoi ? | H33: 0 | I33: =IFERROR(SEARCH("faire*test",J33),0)+IFERROR(SEARCH("attempt*now",J33),0) -> 0 | J33: QuizHere is a short quiz to help you review the concepts and ideas discussed in this lesson.
A34: 387-203-FD-80-01 | B34: 387-203-FD-80-01 • Les médias au cœur de la culture | C34: 346 | D34: D1A | E34: Devoir 1A | F34: Activité désactivée en 2016. Peut-on la supprimer de Moodle ? | H34: 0 | I34: =IFERROR(SEARCH("faire*test",J34),0)+IFERROR(SEARCH("attempt*now",J34),0) -> 0 | J34: Ce devoir, corrigé sur 100 points, compte pour 20 % de l’évaluation globale du cours. Vous devriez y consacrer environ trois heures.Il porte sur la matière traitée dans le chapitre 1 du Texte de cours.Prenez le temps de bien lire chaque question.Chacune des questions exige une réponse à développement long. Vous devez donc expliquer de manière cohérente et logique vos propos. Vos réponses doivent montrer que vous avez su « digérer » la matière, que vous avez assimilé ses lignes directrices. Il est préférable d’être explicite, d’offrir des réponses détaillées.Si vous reproduisez telles quelles dans vos réponses des phrases que vous avez lues dans le Texte de cours, il est obligatoire d’en faire des citations (avec guillemets et indication de la référence).Bon travail!
A35: 387-203-FD-80-01 | B35: 387-203-FD-80-01 • Les médias au cœur de la culture | C35: 346 | D35: D2B | E35: Devoir 1A | F35: Activité désactivée en 2016. Peut-on la supprimer de Moodle ? | H35: 0 | I35: =IFERROR(SEARCH("faire*test",J35),0)+IFERROR(SEARCH("attempt*now",J35),0) -> 0 | J35: Ce devoir, corrigé sur 100 points, compte pour 20 % de l’évaluation globale du cours. Vous devriez y consacrer environ trois heures.Il porte sur la matière traitée dans le chapitre 1 du Texte de cours.Prenez le temps de bien lire chaque question.Chacune des questions exige une réponse à développement long. Vous devez donc expliquer de manière cohérente et logique vos propos. Vos réponses doivent montrer que vous avez su « digérer » la matière, que vous avez assimilé ses lignes directrices. Il est préférable d’être explicite, d’offrir des réponses détaillées.Si vous reproduisez telles quelles dans vos réponses des phrases que vous avez lues dans le Texte de cours, il est obligatoire d’en faire des citations (avec guillemets et indication de la référence).Bon travail!
A36: 387-203-FD-80-01 | B36: 387-203-FD-80-01 • Les médias au cœur de la culture | C36: 346 | D36: GUIDE | E36: Devoir 1A | F36: Activité désactivée en 2016. Peut-on la supprimer de Moodle ? | G36: Le idnumber correspond à un GUIDE et le nom correspond à un devoir. Pourquoi ? | H36: 0 | I36: =IFERROR(SEARCH("faire*test",J36),0)+IFERROR(SEARCH("attempt*now",J36),0) -> 0 | J36: Ce devoir, corrigé sur 100 points, compte pour 20 % de l’évaluation globale du cours. Vous devriez y consacrer environ trois heures.Il porte sur la matière traitée dans le chapitre 1 du Texte de cours.Prenez le temps de bien lire chaque question.Chacune des questions exige une réponse à développement long. Vous devez donc expliquer de manière cohérente et logique vos propos. Vos réponses doivent montrer que vous avez su « digérer » la matière, que vous avez assimilé ses lignes directrices. Il est préférable d’être explicite, d’offrir des réponses détaillées.Si vous reproduisez telles quelles dans vos réponses des phrases que vous avez lues dans le Texte de cours, il est obligatoire d’en faire des citations (avec guillemets et indication de la référence).Bon travail!
A37: 109-103-MQ-60-02 | B37: 109-103-MQ-60-02 • Activité physique et autonomie | C37: 344 | D37: D1B | E37: Devoir 1B | F37: Activité désactivée en 2017. Peut-on la supprimer de Moodle ? | H37: 0 | I37: =IFERROR(SEARCH("faire*test",J37),0)+IFERROR(SEARCH("attempt*now",J37),0) -> 1110 | J37: Ce devoir, corrigé sur 100 points, compte pour 5&nbsp,% de l’évaluation globale du cours.Vous devriez y consacrer environ une heure.Pour réaliser ce devoir, vous devez remplir votre programme personnel d’activité physique (PPAP) avant la sixième semaine qui suit votre inscription et après avoir terminé la leçon 5 du module 1. Téléchargez également le fichier suivant :Grille d'appréciationLisez la grille d’appréciation et prenez connaissances des critères qui serviront à évaluer votre travail.Pour accéder à la fiche Mon programme personnel d’activité physique (PPAP), cliquez sur Ressources du cours/Fiches et bilans.Avant de remplir votre PPAP, assurez-vous de&nbsp,:–&nbsp,&nbsp, Lire attentivement les informations demandées dans la fiche Mon programme personnel d’activité physique (PPAP).–&nbsp,&nbsp, Prendre le temps de réfléchir aux données que vous y inscrirez&nbsp,: n’oubliez pas que vous devrez suivre votre programme par la suite.Une fois que vous aurez rempli votre PPAP, connectez-vous au site du cours et cliquez sur Devoir 1B. Relisez au besoin les consignes du devoir, puis cliquez sur Faire le test. Suivez les instructions à l’écran, vous pourrez alors inscrire les informations requises dans la zone de texte prévue à cet effet, puis les envoyer à votre tutrice ou votre tuteur.Si vous éprouvez des difficultés, consultez l’aide à la navigation.Vous pourrez consulter la note de votre devoir dans le site du cours, dès que votre tutrice ou votre tuteur l’aura inscrite.Rappel&nbsp,: Ne commencez vos séances d’entrainement qu’une fois la note du devoir 2 indiquée à votre dossier. Si cette consigne n'est pas respectée, les fiches que vous aurez enregistrées seront effacées, et vous devrez effectuer de nouvelles séances d’activité physique.Bon travail!
A38: 109-103-MQ-60-02 | B38: 109-103-MQ-60-02 • Activité physique et autonomie | C38: 344 | D38: D3A | E38: Devoir 1B | F38: Activité désactivée en 2017. Peut-on la supprimer de Moodle ? | H38: 0 | I38: =IFERROR(SEARCH("faire*test",J38),0)+IFERROR(SEARCH("attempt*now",J38),0) -> 1110 | J38: Ce devoir, corrigé sur 100 points, compte pour 5&nbsp,% de l’évaluation globale du cours.Vous devriez y consacrer environ une heure.Pour réaliser ce devoir, vous devez remplir votre programme personnel d’activité physique (PPAP) avant la sixième semaine qui suit votre inscription et après avoir terminé la leçon 5 du module 1. Téléchargez également le fichier suivant :Grille d'appréciationLisez la grille d’appréciation et prenez connaissances des critères qui serviront à évaluer votre travail.Pour accéder à la fiche Mon programme personnel d’activité physique (PPAP), cliquez sur Ressources du cours/Fiches et bilans.Avant de remplir votre PPAP, assurez-vous de&nbsp,:–&nbsp,&nbsp, Lire attentivement les informations demandées dans la fiche Mon programme personnel d’activité physique (PPAP).–&nbsp,&nbsp, Prendre le temps de réfléchir aux données que vous y inscrirez&nbsp,: n’oubliez pas que vous devrez suivre votre programme par la suite.Une fois que vous aurez rempli votre PPAP, connectez-vous au site du cours et cliquez sur Devoir 1B. Relisez au besoin les consignes du devoir, puis cliquez sur Faire le test. Suivez les instructions à l’écran, vous pourrez alors inscrire les informations requises dans la zone de texte prévue à cet effet, puis les envoyer à votre tutrice ou votre tuteur.Si vous éprouvez des difficultés, consultez l’aide à la navigation.Vous pourrez consulter la note de votre devoir dans le site du cours, dès que votre tutrice ou votre tuteur l’aura inscrite.Rappel&nbsp,: Ne commencez vos séances d’entrainement qu’une fois la note du devoir 2 indiquée à votre dossier. Si cette consigne n'est pas respectée, les fiches que vous aurez enregistrées seront effacées, et vous devrez effectuer de nouvelles séances d’activité physique.Bon travail!
A39: 109-103-MQ-60-02 | B39: 109-103-MQ-60-02 • Activité physique et autonomie | C39: 344 | D39: GUIDE | E39: Devoir 1B | F39: Activité désactivée en 2017. Peut-on la supprimer de Moodle ? | G39: Le idnumber correspond à un GUIDE et le nom correspond à un devoir. Pourquoi ? | H39: 0 | I39: =IFERROR(SEARCH("faire*test",J39),0)+IFERROR(SEARCH("attempt*now",J39),0) -> 1110 | J39: Ce devoir, corrigé sur 100 points, compte pour 5&nbsp,% de l’évaluation globale du cours.Vous devriez y consacrer environ une heure.Pour réaliser ce devoir, vous devez remplir votre programme personnel d’activité physique (PPAP) avant la sixième semaine qui suit votre inscription et après avoir terminé la leçon 5 du module 1. Téléchargez également le fichier suivant :Grille d'appréciationLisez la grille d’appréciation et prenez connaissances des critères qui serviront à évaluer votre travail.Pour accéder à la fiche Mon programme personnel d’activité physique (PPAP), cliquez sur Ressources du cours/Fiches et bilans.Avant de remplir votre PPAP, assurez-vous de&nbsp,:–&nbsp,&nbsp, Lire attentivement les informations demandées dans la fiche Mon programme personnel d’activité physique (PPAP).–&nbsp,&nbsp, Prendre le temps de réfléchir aux données que vous y inscrirez&nbsp,: n’oubliez pas que vous devrez suivre votre programme par la suite.Une fois que vous aurez rempli votre PPAP, connectez-vous au site du cours et cliquez sur Devoir 1B. Relisez au besoin les consignes du devoir, puis cliquez sur Faire le test. Suivez les instructions à l’écran, vous pourrez alors inscrire les informations requises dans la zone de texte prévue à cet effet, puis les envoyer à votre tutrice ou votre tuteur.Si vous éprouvez des difficultés, consultez l’aide à la navigation.Vous pourrez consulter la note de votre devoir dans le site du cours, dès que votre tutrice ou votre tuteur l’aura inscrite.Rappel&nbsp,: Ne commencez vos séances d’entrainement qu’une fois la note du devoir 2 indiquée à votre dossier. Si cette consigne n'est pas respectée, les fiches que vous aurez enregistrées seront effacées, et vous devrez effectuer de nouvelles séances d’activité physique.Bon travail!
A40: 387-203-FD-80-01 | B40: 387-203-FD-80-01 • Les médias au cœur de la culture | C40: 346 | D40: D1B | E40: Devoir 1B | F40: Activité désactivée en 2016. Peut-on la supprimer de Moodle ? | H40: 0 | I40: =IFERROR(SEARCH("faire*test",J40),0)+IFERROR(SEARCH("attempt*now",J40),0) -> 0 | J40: Ce devoir, corrigé sur 100 points, compte pour 20 % de l’évaluation globale du cours. Vous devriez y consacrer environ trois heures.Il porte sur la matière traitée dans le chapitre 1 du Texte de cours.Prenez le temps de bien lire chaque question.Chacune des questions exige une réponse à développement long. Vous devez donc expliquer de manière cohérente et logique vos propos. Vos réponses doivent montrer que vous avez su « digérer » la matière, que vous avez assimilé ses lignes directrices. Il est préférable d’être explicite, d’offrir des réponses détaillées.Si vous reproduisez telles quelles dans vos réponses des phrases que vous avez lues dans le Texte de cours, il est obligatoire d’en faire des citations (avec guillemets et indication de la référence).Bon travail!
A41: 387-203-FD-80-01 | B41: 387-203-FD-80-01 • Les médias au cœur de la culture | C41: 346 | D41: E1B | E41: Devoir 1B | F41: Activité désactivée en 2016. Peut-on la supprimer de Moodle ? | H41: 0 | I41: =IFERROR(SEARCH("faire*test",J41),0)+IFERROR(SEARCH("attempt*now",J41),0) -> 0 | J41: Ce devoir, corrigé sur 100 points, compte pour 20 % de l’évaluation globale du cours. Vous devriez y consacrer environ trois heures.Il porte sur la matière traitée dans le chapitre 1 du Texte de cours.Prenez le temps de bien lire chaque question.Chacune des questions exige une réponse à développement long. Vous devez donc expliquer de manière cohérente et logique vos propos. Vos réponses doivent montrer que vous avez su « digérer » la matière, que vous avez assimilé ses lignes directrices. Il est préférable d’être explicite, d’offrir des réponses détaillées.Si vous reproduisez telles quelles dans vos réponses des phrases que vous avez lues dans le Texte de cours, il est obligatoire d’en faire des citations (avec guillemets et indication de la référence).Bon travail!
A42: 387-203-FD-80-01 | B42: 387-203-FD-80-01 • Les médias au cœur de la culture | C42: 346 | D42: GUIDE | E42: Devoir 1B | F42: Activité désactivée en 2016. Peut-on la supprimer de Moodle ? | G42: Le idnumber correspond à un GUIDE et le nom correspond à un devoir. Pourquoi ? | H42: 0 | I42: =IFERROR(SEARCH("faire*test",J42),0)+IFERROR(SEARCH("attempt*now",J42),0) -> 0 | J42: Ce devoir, corrigé sur 100 points, compte pour 20 % de l’évaluation globale du cours. Vous devriez y consacrer environ trois heures.Il porte sur la matière traitée dans le chapitre 1 du Texte de cours.Prenez le temps de bien lire chaque question.Chacune des questions exige une réponse à développement long. Vous devez donc expliquer de manière cohérente et logique vos propos. Vos réponses doivent montrer que vous avez su « digérer » la matière, que vous avez assimilé ses lignes directrices. Il est préférable d’être explicite, d’offrir des réponses détaillées.Si vous reproduisez telles quelles dans vos réponses des phrases que vous avez lues dans le Texte de cours, il est obligatoire d’en faire des citations (avec guillemets et indication de la référence).Bon travail!
A43: 322-783-RL-80-01 | B43: 322-783-RL-80-01 • Habiletés créatives en milieu de travail | C43: 228 | D43: D1C | E43: Devoir 1C | F43: Activité désactivée en 2016. Peut-on la supprimer de Moodle ? | H43: 0 | I43: =IFERROR(SEARCH("faire*test",J43),0)+IFERROR(SEARCH("attempt*now",J43),0) -> 0 | J43: 1. Ce devoir porte sur la matière traitée dans le chapitre 1 du Texte de cours et dans le chapitre 13 du manuel d’accompagnement L’Enfant : une approche globale pour son développement, de Joanne Hendrick. Il sera corrigé sur 100 points, et la note sera ramenée sur 10.2. Il compte 10 questions, la majorité étant des questions ouvertes à réponses relativement courtes.3. Répondez en faisant des phrases complètes. Évitez de recopier les phrases du Texte de cours ou du manuel d’accompagnement. Vos réponses doivent démontrer que vous avez compris les notions présentées, d’où l’importance de les justifier.4. Afin que vos réponses respectent le plus possible le nombre de mots exigé, nous vous suggérons de les rédiger dans un fichier Word, de vérifier le nombre de mots qu'elles contiennent, puis de les copier dans l'espace prévu à cet effet.Bon travail!
A44: 322-783-RL-80-01 | B44: 322-783-RL-80-01 • Habiletés créatives en milieu de travail | C44: 228 | D44: GUIDE | E44: Devoir 1C | F44: Activité désactivée en 2016. Peut-on la supprimer de Moodle ? | G44: Le idnumber correspond à un GUIDE et le nom correspond à un devoir. Pourquoi ? | H44: 0 | I44: =IFERROR(SEARCH("faire*test",J44),0)+IFERROR(SEARCH("attempt*now",J44),0) -> 0 | J44: 1. Ce devoir porte sur la matière traitée dans le chapitre 1 du Texte de cours et dans le chapitre 13 du manuel d’accompagnement L’Enfant : une approche globale pour son développement, de Joanne Hendrick. Il sera corrigé sur 100 points, et la note sera ramenée sur 10.2. Il compte 10 questions, la majorité étant des questions ouvertes à réponses relativement courtes.3. Répondez en faisant des phrases complètes. Évitez de recopier les phrases du Texte de cours ou du manuel d’accompagnement. Vos réponses doivent démontrer que vous avez compris les notions présentées, d’où l’importance de les justifier.4. Afin que vos réponses respectent le plus possible le nombre de mots exigé, nous vous suggérons de les rédiger dans un fichier Word, de vérifier le nombre de mots qu'elles contiennent, puis de les copier dans l'espace prévu à cet effet.Bon travail!
A45: 322-783-RL-80-01 | B45: 322-783-RL-80-01 • Habiletés créatives en milieu de travail | C45: 228 | D45: D1D | E45: Devoir 1D | F45: Activité désactivée en 2016. Peut-on la supprimer de Moodle ? | H45: 0 | I45: =IFERROR(SEARCH("faire*test",J45),0)+IFERROR(SEARCH("attempt*now",J45),0) -> 0 | J45: 1. Ce devoir porte sur la matière traitée dans le chapitre 1 du Texte de cours et dans le chapitre 13 du manuel d’accompagnement L’Enfant : une approche globale pour son développement, de Joanne Hendrick. Il sera corrigé sur 100 points, et la note sera ramenée sur 10.2. Il compte 10 questions, la majorité étant des questions ouvertes à réponses relativement courtes.3. Répondez en faisant des phrases complètes. Évitez de recopier les phrases du Texte de cours ou du manuel d’accompagnement. Vos réponses doivent démontrer que vous avez compris les notions présentées, d’où l’importance de les justifier.4. Afin que vos réponses respectent le plus possible le nombre de mots exigé, nous vous suggérons de les rédiger dans un fichier Word, de vérifier le nombre de mots qu'elles contiennent, puis de les copier dans l'espace prévu à cet effet.Bon travail!
A46: 322-783-RL-80-01 | B46: 322-783-RL-80-01 • Habiletés créatives en milieu de travail | C46: 228 | D46: GUIDE | E46: Devoir 1D | F46: Activité désactivée en 2016. Peut-on la supprimer de Moodle ? | G46: Le idnumber correspond à un GUIDE et le nom correspond à un devoir. Pourquoi ? | H46: 0 | I46: =IFERROR(SEARCH("faire*test",J46),0)+IFERROR(SEARCH("attempt*now",J46),0) -> 0 | J46: 1. Ce devoir porte sur la matière traitée dans le chapitre 1 du Texte de cours et dans le chapitre 13 du manuel d’accompagnement L’Enfant : une approche globale pour son développement, de Joanne Hendrick. Il sera corrigé sur 100 points, et la note sera ramenée sur 10.2. Il compte 10 questions, la majorité étant des questions ouvertes à réponses relativement courtes.3. Répondez en faisant des phrases complètes. Évitez de recopier les phrases du Texte de cours ou du manuel d’accompagnement. Vos réponses doivent démontrer que vous avez compris les notions présentées, d’où l’importance de les justifier.4. Afin que vos réponses respectent le plus possible le nombre de mots exigé, nous vous suggérons de les rédiger dans un fichier Word, de vérifier le nombre de mots qu'elles contiennent, puis de les copier dans l'espace prévu à cet effet.Bon travail!
A47: 109-101-MQ-60-02 | B47: 109-101-MQ-60-02 • Activité physique et santé | C47: 458 | D47: D1B | E47: Devoir 2A | F47: Activité désactivée en 2017. Peut-on la supprimer de Moodle ? | H47: 0 | I47: =IFERROR(SEARCH("faire*test",J47),0)+IFERROR(SEARCH("attempt*now",J47),0) -> 508 | J47: Ce devoir, corrigé sur 100 points, compte pour 5 % de l’évaluation globale du cours.L'ensemble des fiches interactives d'activité physique que vous avez remplies dans le module 1 constituent ce deuxième devoir.Vous devez maintenant aviser votre tutrice ou votre tuteur que vous avez terminé vos activités physiques du module 1 et que votre devoir 2 est prêt à être corrigé. Précisez-lui également vos disponibilités pour le devoir 3, qui consiste en un entretien en visioconférence.À cette fin, cliquez sur Faire le test. Suivez les instructions à l’écran, vous pourrez alors inscrire les informations requises dans la zone de texte prévue à cet effet, puis les envoyer à votre tutrice ou à votre tuteur.Si vous éprouvez des difficultés, consultez l’aide à la navigation.Vous pourrez consulter la note de votre devoir dans l'environnement d'apprentissage, dès que votre tutrice ou votre tuteur l’aura inscrite.Bon travail!
A48: 109-101-MQ-60-02 | B48: 109-101-MQ-60-02 • Activité physique et santé | C48: 458 | D48: D2A | E48: Devoir 2A | F48: Activité désactivée en 2017. Peut-on la supprimer de Moodle ? | H48: 0 | I48: =IFERROR(SEARCH("faire*test",J48),0)+IFERROR(SEARCH("attempt*now",J48),0) -> 508 | J48: Ce devoir, corrigé sur 100 points, compte pour 5 % de l’évaluation globale du cours.L'ensemble des fiches interactives d'activité physique que vous avez remplies dans le module 1 constituent ce deuxième devoir.Vous devez maintenant aviser votre tutrice ou votre tuteur que vous avez terminé vos activités physiques du module 1 et que votre devoir 2 est prêt à être corrigé. Précisez-lui également vos disponibilités pour le devoir 3, qui consiste en un entretien en visioconférence.À cette fin, cliquez sur Faire le test. Suivez les instructions à l’écran, vous pourrez alors inscrire les informations requises dans la zone de texte prévue à cet effet, puis les envoyer à votre tutrice ou à votre tuteur.Si vous éprouvez des difficultés, consultez l’aide à la navigation.Vous pourrez consulter la note de votre devoir dans l'environnement d'apprentissage, dès que votre tutrice ou votre tuteur l’aura inscrite.Bon travail!
A49: 387-203-FD-80-01 | B49: 387-203-FD-80-01 • Les médias au cœur de la culture | C49: 346 | D49: D2A | E49: Devoir 2A | F49: Activité désactivée en 2016. Peut-on la supprimer de Moodle ? | H49: 0 | I49: =IFERROR(SEARCH("faire*test",J49),0)+IFERROR(SEARCH("attempt*now",J49),0) -> 0 | J49: Ce devoir, corrigé sur 100 points, compte pour 10 % de l’évaluation globale du cours. Vous devriez y consacrer environ trois heures.Il porte sur la matière traitée dans le chapitre 2 du Texte de cours.Prenez le temps de bien lire chaque question.Chacune des questions exige une réponse à développement long. Vous devez donc expliquer de manière cohérente et logique vos propos. Vos réponses doivent montrer que vous avez su « digérer » la matière, que vous avez assimilé ses lignes directrices. Il est préférable d’être explicite, d’offrir des réponses détaillées.Si vous reproduisez telles quelles dans vos réponses des phrases que vous avez lues dans le Texte de cours, il est obligatoire d’en faire des citations (avec guillemets et indication de la référence).Bon travail!
A50: 387-203-FD-80-01 | B50: 387-203-FD-80-01 • Les médias au cœur de la culture | C50: 346 | D50: D3B | E50: Devoir 2A | F50: Activité désactivée en 2016. Peut-on la supprimer de Moodle ? | H50: 0 | I50: =IFERROR(SEARCH("faire*test",J50),0)+IFERROR(SEARCH("attempt*now",J50),0) -> 0 | J50: Ce devoir, corrigé sur 100 points, compte pour 10 % de l’évaluation globale du cours. Vous devriez y consacrer environ trois heures.Il porte sur la matière traitée dans le chapitre 2 du Texte de cours.Prenez le temps de bien lire chaque question.Chacune des questions exige une réponse à développement long. Vous devez donc expliquer de manière cohérente et logique vos propos. Vos réponses doivent montrer que vous avez su « digérer » la matière, que vous avez assimilé ses lignes directrices. Il est préférable d’être explicite, d’offrir des réponses détaillées.Si vous reproduisez telles quelles dans vos réponses des phrases que vous avez lues dans le Texte de cours, il est obligatoire d’en faire des citations (avec guillemets et indication de la référence).Bon travail!
A51: 387-203-FD-80-01 | B51: 387-203-FD-80-01 • Les médias au cœur de la culture | C51: 346 | D51: GUIDE | E51: Devoir 2A | F51: Activité désactivée en 2016. Peut-on la supprimer de Moodle ? | G51: Le idnumber correspond à un GUIDE et le nom correspond à un devoir. Pourquoi ? | H51: 0 | I51: =IFERROR(SEARCH("faire*test",J51),0)+IFERROR(SEARCH("attempt*now",J51),0) -> 0 | J51: Ce devoir, corrigé sur 100 points, compte pour 10 % de l’évaluation globale du cours. Vous devriez y consacrer environ trois heures.Il porte sur la matière traitée dans le chapitre 2 du Texte de cours.Prenez le temps de bien lire chaque question.Chacune des questions exige une réponse à développement long. Vous devez donc expliquer de manière cohérente et logique vos propos. Vos réponses doivent montrer que vous avez su « digérer » la matière, que vous avez assimilé ses lignes directrices. Il est préférable d’être explicite, d’offrir des réponses détaillées.Si vous reproduisez telles quelles dans vos réponses des phrases que vous avez lues dans le Texte de cours, il est obligatoire d’en faire des citations (avec guillemets et indication de la référence).Bon travail!
A52: 387-203-FD-80-01 | B52: 387-203-FD-80-01 • Les médias au cœur de la culture | C52: 346 | D52: D2B | E52: Devoir 2B | F52: Activité désactivée en 2016. Peut-on la supprimer de Moodle ? | H52: 0 | I52: =IFERROR(SEARCH("faire*test",J52),0)+IFERROR(SEARCH("attempt*now",J52),0) -> 0 | J52: Ce devoir, corrigé sur 100 points, compte pour 10 % de l’évaluation globale du cours. Vous devriez y consacrer environ trois heures.Il porte sur la matière traitée dans le chapitre 2 du Texte de cours.Prenez le temps de bien lire chaque question.Chacune des questions exige une réponse à développement long. Vous devez donc expliquer de manière cohérente et logique vos propos. Vos réponses doivent montrer que vous avez su « digérer » la matière, que vous avez assimilé ses lignes directrices. Il est préférable d’être explicite, d’offrir des réponses détaillées.Si vous reproduisez telles quelles dans vos réponses des phrases que vous avez lues dans le Texte de cours, il est obligatoire d’en faire des citations (avec guillemets et indication de la référence).Bon travail!
A53: 322-783-RL-80-01 | B53: 322-783-RL-80-01 • Habiletés créatives en milieu de travail | C53: 228 | D53: D2C | E53: Devoir 2C | F53: Activité désactivée en 2016. Peut-on la supprimer de Moodle ? | H53: 0 | I53: =IFERROR(SEARCH("faire*test",J53),0)+IFERROR(SEARCH("attempt*now",J53),0) -> 0 | J53: 1. Ce devoir porte sur la matière traitée dans le chapitre 2 du Texte de cours et dans le chapitre 14 du manuel d’accompagnement L’Enfant : une approche globale pour son développement, de Joanne Hendrick. Il sera corrigé sur 100 points, et la note sera ramenée sur 25.2. Le devoir comporte deux parties distinctes, qui sont : – La conception, la réalisation et l’analyse d’un carton d’invitation, – L’exploitation d’un projet thématique.3. Répondez en faisant des phrases complètes. Évitez de recopier les phrases du Texte de cours ou du manuel d’accompagnement. Vos réponses doivent démontrer que vous avez compris les notions présentées, d’où l’importance de les justifier.4. Afin que vos réponses respectent le plus possible le nombre de mots exigé, nous vous suggérons de les rédiger dans un fichier Word, de vérifier le nombre de mots qu'elles contiennent, puis de les copier dans l'espace prévu à cet effet.IMPORTANT : La première question doit être acheminée par la poste. Si vous n’avez pas l’adresse de votre tuteur, contactez-le pour l’obtenir.Bon travail!
A54: 322-783-RL-80-01 | B54: 322-783-RL-80-01 • Habiletés créatives en milieu de travail | C54: 228 | D54: D2D | E54: Devoir 2D | F54: Activité désactivée en 2016. Peut-on la supprimer de Moodle ? | H54: 0 | I54: =IFERROR(SEARCH("faire*test",J54),0)+IFERROR(SEARCH("attempt*now",J54),0) -> 0 | J54: 1. Ce devoir porte sur la matière traitée dans le chapitre 2 du Texte de cours et dans le chapitre 14 du manuel d’accompagnement L’Enfant : une approche globale pour son développement, de Joanne Hendrick. Il sera corrigé sur 100 points, et la note sera ramenée sur 25.2. Le devoir comporte deux parties distinctes, qui sont : – La conception, la réalisation et l’analyse d’un carton d’invitation, – L’exploitation d’un projet thématique.3. Répondez en faisant des phrases complètes. Évitez de recopier les phrases du Texte de cours ou du manuel d’accompagnement. Vos réponses doivent démontrer que vous avez compris les notions présentées, d’où l’importance de les justifier.4. Afin que vos réponses respectent le plus possible le nombre de mots exigé, nous vous suggérons de les rédiger dans un fichier Word, de vérifier le nombre de mots qu'elles contiennent, puis de les copier dans l'espace prévu à cet effet. IMPORTANT : La première question doit être acheminée par la poste. Si vous n’avez pas l’adresse de votre tuteur, contactez-le pour l’obtenir.Bon travail!
A55: 387-203-FD-80-01 | B55: 387-203-FD-80-01 • Les médias au cœur de la culture | C55: 346 | D55: D3A | E55: Devoir 3A | F55: Activité désactivée en 2016. Peut-on la supprimer de Moodle ? | H55: 0 | I55: =IFERROR(SEARCH("faire*test",J55),0)+IFERROR(SEARCH("attempt*now",J55),0) -> 0 | J55: Ce devoir, corrigé sur 100 points, compte pour 10 % de l’évaluation globale du cours. Vous devriez y consacrer environ trois heures.Il porte sur la matière traitée dans le chapitre 3 du Texte de cours.Prenez le temps de bien lire chaque question.Chacune des questions exige une réponse à développement long. Vous devez donc expliquer de manière cohérente et logique vos propos. Vos réponses doivent montrer que vous avez su « digérer » la matière, que vous avez assimilé ses lignes directrices. Il est préférable d’être explicite, d’offrir des réponses détaillées.Si vous reproduisez telles quelles dans vos réponses des phrases que vous avez lues dans le Texte de cours, il est obligatoire d’en faire des citations (avec guillemets et indication de la référence).Bon travail!
A56: 387-203-FD-80-01 | B56: 387-203-FD-80-01 • Les médias au cœur de la culture | C56: 346 | D56: D4B | E56: Devoir 3A | F56: Activité désactivée en 2016. Peut-on la supprimer de Moodle ? | H56: 0 | I56: =IFERROR(SEARCH("faire*test",J56),0)+IFERROR(SEARCH("attempt*now",J56),0) -> 0 | J56: Ce devoir, corrigé sur 100 points, compte pour 10 % de l’évaluation globale du cours. Vous devriez y consacrer environ trois heures.Il porte sur la matière traitée dans le chapitre 3 du Texte de cours.Prenez le temps de bien lire chaque question.Chacune des questions exige une réponse à développement long. Vous devez donc expliquer de manière cohérente et logique vos propos. Vos réponses doivent montrer que vous avez su « digérer » la matière, que vous avez assimilé ses lignes directrices. Il est préférable d’être explicite, d’offrir des réponses détaillées.Si vous reproduisez telles quelles dans vos réponses des phrases que vous avez lues dans le Texte de cours, il est obligatoire d’en faire des citations (avec guillemets et indication de la référence).Bon travail!
A57: 109-103-MQ-60-02 | B57: 109-103-MQ-60-02 • Activité physique et autonomie | C57: 344 | D57: D3B | E57: Devoir 3B | F57: Activité désactivée en 2017. Peut-on la supprimer de Moodle ? | H57: 0 | I57: =IFERROR(SEARCH("faire*test",J57),0)+IFERROR(SEARCH("attempt*now",J57),0) -> 1395 | J57: Ce devoir, corrigé sur 100 points, compte pour 10&nbsp,% de l’évaluation globale du cours.Vous devriez y consacrer environ 30 minutes.Pour réaliser ce devoir, vous devez remplir votre programme personnel d’activité physique modifié (PPAP modifié), après avoir terminé l’étude de la leçon 8 et avoir rempli les 12 fiches Mes séances d’activités physiques à mi-parcours de votre activité physique et à la satisfaction de votre tutrice ou tuteur.&nbsp,Téléchargez également le fichier suivant :Grille d’appréciationLisez la grille d’appréciation et prenez connaissances des critères qui serviront à évaluer votre travail.Vous devez donc modifier votre PPAP conçu dans le Module 1 en fonction des informations compilées dans vos 12 fiches Mes séances d’activités physiques et du contenu théorique des leçons 6, 7 et 8.Pour accéder à la fiche Mon programme d’activité physique modifié (PPAP modifié), cliquez sur Ressources du cours/Fiches et bilans.Avant de remplir votre PPAP modifié, assurez-vous de&nbsp,:–&nbsp,&nbsp, Lire attentivement les informations demandées dans la fiche Mon programme personnel d’activité physique modifié (PPAP modifié).–&nbsp,&nbsp, Prendre le temps de réfléchir aux données que vous inscrirez&nbsp,: n’oubliez pas que vous devrez suivre votre programme par la suite.Une fois que vous aurez rempli votre PPAP modifié, informez-en votre tutrice ou votre tuteur.Pour ce faire, connectez-vous au site du cours et cliquez sur Devoir 3B. Relisez au besoin les consignes du devoir, puis cliquez sur Faire le test. Suivez les instructions à l’écran, vous pourrez alors inscrire les informations requises dans la zone de texte prévue à cet effet, puis les envoyer à votre tutrice ou votre tuteur.Si vous éprouvez des difficultés, consultez l’aide à la navigation.Vous pourrez consulter la note de votre devoir dans le site du cours, dès que votre tutrice ou votre tuteur l’aura inscrite.Important&nbsp,: Ne poursuivez vos séances d’entrainement qu’une fois la note du devoir 3 indiquée à votre dossier. Si cette consigne n’est pas respectée, les fiches que vous aurez enregistrées seront effacées, et vous devrez faire de nouvelles séances d’activité physique.Bon travail!
A58: 109-103-MQ-60-02 | B58: 109-103-MQ-60-02 • Activité physique et autonomie | C58: 344 | D58: D4A | E58: Devoir 3B | F58: Activité désactivée en 2017. Peut-on la supprimer de Moodle ? | H58: 0 | I58: =IFERROR(SEARCH("faire*test",J58),0)+IFERROR(SEARCH("attempt*now",J58),0) -> 1395 | J58: Ce devoir, corrigé sur 100 points, compte pour 10&nbsp,% de l’évaluation globale du cours.Vous devriez y consacrer environ 30 minutes.Pour réaliser ce devoir, vous devez remplir votre programme personnel d’activité physique modifié (PPAP modifié), après avoir terminé l’étude de la leçon 8 et avoir rempli les 12 fiches Mes séances d’activités physiques à mi-parcours de votre activité physique et à la satisfaction de votre tutrice ou tuteur.&nbsp,Téléchargez également le fichier suivant :Grille d’appréciationLisez la grille d’appréciation et prenez connaissances des critères qui serviront à évaluer votre travail.Vous devez donc modifier votre PPAP conçu dans le Module 1 en fonction des informations compilées dans vos 12 fiches Mes séances d’activités physiques et du contenu théorique des leçons 6, 7 et 8.Pour accéder à la fiche Mon programme d’activité physique modifié (PPAP modifié), cliquez sur Ressources du cours/Fiches et bilans.Avant de remplir votre PPAP modifié, assurez-vous de&nbsp,:–&nbsp,&nbsp, Lire attentivement les informations demandées dans la fiche Mon programme personnel d’activité physique modifié (PPAP modifié).–&nbsp,&nbsp, Prendre le temps de réfléchir aux données que vous inscrirez&nbsp,: n’oubliez pas que vous devrez suivre votre programme par la suite.Une fois que vous aurez rempli votre PPAP modifié, informez-en votre tutrice ou votre tuteur.Pour ce faire, connectez-vous au site du cours et cliquez sur Devoir 3B. Relisez au besoin les consignes du devoir, puis cliquez sur Faire le test. Suivez les instructions à l’écran, vous pourrez alors inscrire les informations requises dans la zone de texte prévue à cet effet, puis les envoyer à votre tutrice ou votre tuteur.Si vous éprouvez des difficultés, consultez l’aide à la navigation.Vous pourrez consulter la note de votre devoir dans le site du cours, dès que votre tutrice ou votre tuteur l’aura inscrite.Important&nbsp,: Ne poursuivez vos séances d’entrainement qu’une fois la note du devoir 3 indiquée à votre dossier. Si cette consigne n’est pas respectée, les fiches que vous aurez enregistrées seront effacées, et vous devrez faire de nouvelles séances d’activité physique.Bon travail!
A59: 387-203-FD-80-01 | B59: 387-203-FD-80-01 • Les médias au cœur de la culture | C59: 346 | D59: D3B | E59: Devoir 3B | F59: Activité désactivée en 2016. Peut-on la supprimer de Moodle ? | H59: 0 | I59: =IFERROR(SEARCH("faire*test",J59),0)+IFERROR(SEARCH("attempt*now",J59),0) -> 0 | J59: Ce devoir, corrigé sur 100 points, compte pour 10 % de l’évaluation globale du cours. Vous devriez y consacrer environ trois heures.Il porte sur la matière traitée dans le chapitre 3 du Texte de cours.Prenez le temps de bien lire chaque question.Chacune des questions exige une réponse à développement long. Vous devez donc expliquer de manière cohérente et logique vos propos. Vos réponses doivent montrer que vous avez su « digérer » la matière, que vous avez assimilé ses lignes directrices. Il est préférable d’être explicite, d’offrir des réponses détaillées.Si vous reproduisez telles quelles dans vos réponses des phrases que vous avez lues dans le Texte de cours, il est obligatoire d’en faire des citations (avec guillemets et indication de la référence).Bon travail!
A60: 322-783-RL-80-01 | B60: 322-783-RL-80-01 • Habiletés créatives en milieu de travail | C60: 228 | D60: D3C | E60: Devoir 3C | F60: Activité désactivée en 2016. Peut-on la supprimer de Moodle ? | H60: 0 | I60: =IFERROR(SEARCH("faire*test",J60),0)+IFERROR(SEARCH("attempt*now",J60),0) -> 0 | J60: 1. Ce devoir porte sur la matière traitée dans les leçons XIV à XVI du chapitre 3 du Texte de cours. Il sera corrigé sur 100 points, et la note sera ramenée sur 20.2. Le devoir comporte trois parties distinctes :– La planification de l’animation d’un conte pour enfants,– L’invention d’une comptine à partir d’une liste de mots tirés du conte,– La planification d’activités découlant du conte.3. Répondez en faisant des phrases complètes. Évitez de recopier les phrases du Texte de cours ou du manuel d’accompagnement. Vos réponses doivent démontrer que vous avez compris les notions présentées, d’où l’importance de les justifier.4. Afin que vos réponses respectent le plus possible le nombre de mots exigé, nous vous suggérons de les rédiger dans un fichier Word, de vérifier le nombre de mots qu'elles contiennent, puis de les copier dans l'espace prévu à cet effet.Bon travail!
A61: 322-783-RL-80-01 | B61: 322-783-RL-80-01 • Habiletés créatives en milieu de travail | C61: 228 | D61: D3D | E61: Devoir 3D | F61: Activité désactivée en 2016. Peut-on la supprimer de Moodle ? | H61: 0 | I61: =IFERROR(SEARCH("faire*test",J61),0)+IFERROR(SEARCH("attempt*now",J61),0) -> 0 | J61: 1. Ce devoir porte sur la matière traitée dans les leçons XIV à XVI du chapitre 3 du Texte de cours. Il sera corrigé sur 100 points, et la note sera ramenée sur 20.2. Le devoir comporte trois parties distinctes :– La planification de l’animation d’un conte pour enfants,– L’invention d’une comptine à partir d’une liste de mots tirés du conte,– La planification d’activités découlant du conte.3. Répondez en faisant des phrases complètes. Évitez de recopier les phrases du Texte de cours ou du manuel d’accompagnement. Vos réponses doivent démontrer que vous avez compris les notions présentées, d’où l’importance de les justifier.4. Afin que vos réponses respectent le plus possible le nombre de mots exigé, nous vous suggérons de les rédiger dans un fichier Word, de vérifier le nombre de mots qu'elles contiennent, puis de les copier dans l'espace prévu à cet effet.Bon travail!
A62: 109-101-MQ-60-02 | B62: 109-101-MQ-60-02 • Activité physique et santé | C62: 458 | D62: D2B | E62: Devoir 4A | F62: Activité désactivée en 2017. Peut-on la supprimer de Moodle ? | H62: 0 | I62: =IFERROR(SEARCH("faire*test",J62),0)+IFERROR(SEARCH("attempt*now",J62),0) -> 400 | J62: Ce devoir, corrigé sur 100 points, compte pour 5 % de l’évaluation globale du cours.L'ensemble des fiches interactives d'activité physique que vous avez remplies dans le module 2 constituent ce quatrième devoir.Vous devez maintenant aviser votre tutrice ou votre tuteur que vous avez terminé vos activités physiques du module 2 et que votre devoir 4 est prêt à être corrigé.À cette fin, cliquez sur Faire le test. Suivez les instructions à l’écran, vous pourrez alors inscrire les informations requises dans la zone de texte prévue à cet effet, puis les envoyer à votre tutrice ou à votre tuteur.Si vous éprouvez des difficultés, consultez l’aide à la navigation.Vous pourrez consulter la note de votre devoir dans l'environnement d'apprentissage, dès que votre tutrice ou votre tuteur l’aura inscrite.Bon travail!
A63: 109-101-MQ-60-02 | B63: 109-101-MQ-60-02 • Activité physique et santé | C63: 458 | D63: D4A | E63: Devoir 4A | F63: Activité désactivée en 2017. Peut-on la supprimer de Moodle ? | H63: 0 | I63: =IFERROR(SEARCH("faire*test",J63),0)+IFERROR(SEARCH("attempt*now",J63),0) -> 400 | J63: Ce devoir, corrigé sur 100 points, compte pour 5 % de l’évaluation globale du cours.L'ensemble des fiches interactives d'activité physique que vous avez remplies dans le module 2 constituent ce quatrième devoir.Vous devez maintenant aviser votre tutrice ou votre tuteur que vous avez terminé vos activités physiques du module 2 et que votre devoir 4 est prêt à être corrigé.À cette fin, cliquez sur Faire le test. Suivez les instructions à l’écran, vous pourrez alors inscrire les informations requises dans la zone de texte prévue à cet effet, puis les envoyer à votre tutrice ou à votre tuteur.Si vous éprouvez des difficultés, consultez l’aide à la navigation.Vous pourrez consulter la note de votre devoir dans l'environnement d'apprentissage, dès que votre tutrice ou votre tuteur l’aura inscrite.Bon travail!
A64: 387-203-FD-80-01 | B64: 387-203-FD-80-01 • Les médias au cœur de la culture | C64: 346 | D64: D4A | E64: Devoir 4A | F64: Activité désactivée en 2016. Peut-on la supprimer de Moodle ? | H64: 0 | I64: =IFERROR(SEARCH("faire*test",J64),0)+IFERROR(SEARCH("attempt*now",J64),0) -> 0 | J64: Ce devoir, corrigé sur 100 points, compte pour 20 % de l’évaluation globale du cours. Vous devriez y consacrer environ trois heures.Il porte sur la matière traitée dans les chapitres 4 et 5 du Texte de cours.Prenez le temps de bien lire chaque question.Chacune des questions exige une réponse à développement long. Vous devez donc expliquer de manière cohérente et logique vos propos. Vos réponses doivent montrer que vous avez su « digérer » la matière, que vous avez assimilé ses lignes directrices. Il est préférable d’être explicite, d’offrir des réponses détaillées.Si vous reproduisez telles quelles dans vos réponses des phrases que vous avez lues dans le Texte de cours, il est obligatoire d’en faire des citations (avec guillemets et indication de la référence).Bon travail!
A65: 387-203-FD-80-01 | B65: 387-203-FD-80-01 • Les médias au cœur de la culture | C65: 346 | D65: E1A | E65: Devoir 4A | F65: Activité désactivée en 2016. Peut-on la supprimer de Moodle ? | H65: 0 | I65: =IFERROR(SEARCH("faire*test",J65),0)+IFERROR(SEARCH("attempt*now",J65),0) -> 0 | J65: Ce devoir, corrigé sur 100 points, compte pour 20 % de l’évaluation globale du cours. Vous devriez y consacrer environ trois heures.Il porte sur la matière traitée dans les chapitres 4 et 5 du Texte de cours.Prenez le temps de bien lire chaque question.Chacune des questions exige une réponse à développement long. Vous devez donc expliquer de manière cohérente et logique vos propos. Vos réponses doivent montrer que vous avez su « digérer » la matière, que vous avez assimilé ses lignes directrices. Il est préférable d’être explicite, d’offrir des réponses détaillées.Si vous reproduisez telles quelles dans vos réponses des phrases que vous avez lues dans le Texte de cours, il est obligatoire d’en faire des citations (avec guillemets et indication de la référence).Bon travail!
A66: 109-103-MQ-60-02 | B66: 109-103-MQ-60-02 • Activité physique et autonomie | C66: 344 | D66: D1B | E66: Devoir 4B | F66: Activité désactivée en 2017. Peut-on la supprimer de Moodle ? | H66: 0 | I66: =IFERROR(SEARCH("faire*test",J66),0)+IFERROR(SEARCH("attempt*now",J66),0) -> 957 | J66: Ce devoir, corrigé sur 100 points, compte pour 15&nbsp,% de l’évaluation globale du cours.L’ensemble des fiches interactives d’activité physique que vous avez remplies dans le module 2 constituent votre quatrième devoir.Vous devriez avoir rempli ces fiches en deux temps :–&nbsp,&nbsp, les fiches Mes séances d’activité physique, pendant la première moitié du module 2,–&nbsp,&nbsp, les fiches Mes séances d’activité physique modifiées, après avoir modifié votre PPAP, à mi-parcours du module 2.Avant d'envoyer votre devoir en correction, téléchargez le fichier suivant :Grille d’appréciationLisez la grille d’appréciation et prenez connaissances des critères qui serviront à évaluer votre travail.Avisez maintenant votre tutrice ou votre tuteur que vous avez terminé vos activités physiques du module 2 et que votre devoir est prêt à être corrigé. Précisez-lui également vos disponibilités pour le prochain entretien en visioconférence (devoir 5).Pour ce faire, cliquez sur Faire le test. Suivez les instructions à l’écran, vous pourrez alors inscrire les informations requises dans la zone de texte prévue à cet effet, puis les envoyer à votre tutrice ou votre tuteur.Si vous éprouvez des difficultés, consultez l’aide à la navigation.Vous pourrez consulter la note de votre devoir dans le site du cours, dès que votre tutrice ou votre tuteur l’aura inscrite.Bon travail!
A67: 109-103-MQ-60-02 | B67: 109-103-MQ-60-02 • Activité physique et autonomie | C67: 344 | D67: D4B | E67: Devoir 4B | F67: Activité désactivée en 2017. Peut-on la supprimer de Moodle ? | H67: 0 | I67: =IFERROR(SEARCH("faire*test",J67),0)+IFERROR(SEARCH("attempt*now",J67),0) -> 957 | J67: Ce devoir, corrigé sur 100 points, compte pour 15&nbsp,% de l’évaluation globale du cours.L’ensemble des fiches interactives d’activité physique que vous avez remplies dans le module 2 constituent votre quatrième devoir.Vous devriez avoir rempli ces fiches en deux temps :–&nbsp,&nbsp, les fiches Mes séances d’activité physique, pendant la première moitié du module 2,–&nbsp,&nbsp, les fiches Mes séances d’activité physique modifiées, après avoir modifié votre PPAP, à mi-parcours du module 2.Avant d'envoyer votre devoir en correction, téléchargez le fichier suivant :Grille d’appréciationLisez la grille d’appréciation et prenez connaissances des critères qui serviront à évaluer votre travail.Avisez maintenant votre tutrice ou votre tuteur que vous avez terminé vos activités physiques du module 2 et que votre devoir est prêt à être corrigé. Précisez-lui également vos disponibilités pour le prochain entretien en visioconférence (devoir 5).Pour ce faire, cliquez sur Faire le test. Suivez les instructions à l’écran, vous pourrez alors inscrire les informations requises dans la zone de texte prévue à cet effet, puis les envoyer à votre tutrice ou votre tuteur.Si vous éprouvez des difficultés, consultez l’aide à la navigation.Vous pourrez consulter la note de votre devoir dans le site du cours, dès que votre tutrice ou votre tuteur l’aura inscrite.Bon travail!
A68: 109-103-MQ-60-02 | B68: 109-103-MQ-60-02 • Activité physique et autonomie | C68: 344 | D68: GUIDE | E68: Devoir 4B | F68: Activité désactivée en 2017. Peut-on la supprimer de Moodle ? | G68: Le idnumber correspond à un GUIDE et le nom correspond à un devoir. Pourquoi ? | H68: 0 | I68: =IFERROR(SEARCH("faire*test",J68),0)+IFERROR(SEARCH("attempt*now",J68),0) -> 957 | J68: Ce devoir, corrigé sur 100 points, compte pour 15&nbsp,% de l’évaluation globale du cours.L’ensemble des fiches interactives d’activité physique que vous avez remplies dans le module 2 constituent votre quatrième devoir.Vous devriez avoir rempli ces fiches en deux temps :–&nbsp,&nbsp, les fiches Mes séances d’activité physique, pendant la première moitié du module 2,–&nbsp,&nbsp, les fiches Mes séances d’activité physique modifiées, après avoir modifié votre PPAP, à mi-parcours du module 2.Avant d'envoyer votre devoir en correction, téléchargez le fichier suivant :Grille d’appréciationLisez la grille d’appréciation et prenez connaissances des critères qui serviront à évaluer votre travail.Avisez maintenant votre tutrice ou votre tuteur que vous avez terminé vos activités physiques du module 2 et que votre devoir est prêt à être corrigé. Précisez-lui également vos disponibilités pour le prochain entretien en visioconférence (devoir 5).Pour ce faire, cliquez sur Faire le test. Suivez les instructions à l’écran, vous pourrez alors inscrire les informations requises dans la zone de texte prévue à cet effet, puis les envoyer à votre tutrice ou votre tuteur.Si vous éprouvez des difficultés, consultez l’aide à la navigation.Vous pourrez consulter la note de votre devoir dans le site du cours, dès que votre tutrice ou votre tuteur l’aura inscrite.Bon travail!
A69: 387-203-FD-80-01 | B69: 387-203-FD-80-01 • Les médias au cœur de la culture | C69: 346 | D69: D4B | E69: Devoir 4B | F69: Activité désactivée en 2016. Peut-on la supprimer de Moodle ? | H69: 0 | I69: =IFERROR(SEARCH("faire*test",J69),0)+IFERROR(SEARCH("attempt*now",J69),0) -> 0 | J69: Ce devoir, corrigé sur 100 points, compte pour 20 % de l’évaluation globale du cours. Vous devriez y consacrer environ trois heures.Il porte sur la matière traitée dans les chapitres 4 et 5 du Texte de cours.Prenez le temps de bien lire chaque question.Chacune des questions exige une réponse à développement long. Vous devez donc expliquer de manière cohérente et logique vos propos. Vos réponses doivent montrer que vous avez su « digérer » la matière, que vous avez assimilé ses lignes directrices. Il est préférable d’être explicite, d’offrir des réponses détaillées.Si vous reproduisez telles quelles dans vos réponses des phrases que vous avez lues dans le Texte de cours, il est obligatoire d’en faire des citations (avec guillemets et indication de la référence).Bon travail!
A70: 322-783-RL-80-01 | B70: 322-783-RL-80-01 • Habiletés créatives en milieu de travail | C70: 228 | D70: D4C | E70: Devoir 4C | F70: Activité désactivée en 2016. Peut-on la supprimer de Moodle ? | H70: 0 | I70: =IFERROR(SEARCH("faire*test",J70),0)+IFERROR(SEARCH("attempt*now",J70),0) -> 0 | J70: 1. Ce devoir porte sur les attitudes, un sujet traité dans le Texte de cours au chapitre 2 (leçon X) et au chapitre 4 (leçon XVII). Il sera corrigé sur 100 points, et la note sera ramenée sur 10.2. Le devoir comporte trois parties distinctes :– les attitudes innées ou acquises (une réflexion personnelle sur les attitudes que possède déjà l’élève),– les attitudes à développer (un inventaire des attitudes qui, selon l’élève, méritent d’être améliorées, et l’identification de moyens pour y arriver),– l’analyse de la démarche (l’analyse des résultats de la mise en application de ces moyens).3. Répondez en faisant des phrases complètes. Évitez de recopier les phrases du Texte de cours ou du manuel d’accompagnement. Vos réponses doivent démontrer que vous avez compris les notions présentées, d’où l’importance de les justifier.4. Afin que vos réponses respectent le plus possible le nombre de mots exigé, nous vous suggérons de les rédiger dans un fichier Word, de vérifier le nombre de mots qu'elles contiennent, puis de les copier dans l'espace prévu à cet effet.Bon travail!
A71: 322-783-RL-80-01 | B71: 322-783-RL-80-01 • Habiletés créatives en milieu de travail | C71: 228 | D71: D4D | E71: Devoir 4D | F71: Activité désactivée en 2016. Peut-on la supprimer de Moodle ? | H71: 0 | I71: =IFERROR(SEARCH("faire*test",J71),0)+IFERROR(SEARCH("attempt*now",J71),0) -> 0 | J71: 1. Ce devoir porte sur les attitudes, un sujet traité dans le Texte de cours au chapitre 2 (leçon X) et au chapitre 4 (leçon XVII). Il sera corrigé sur 100 points, et la note sera ramenée sur 10. 2. Le devoir comporte trois parties distinctes :– les attitudes innées ou acquises (une réflexion personnelle sur les attitudes que possède déjà l’élève),– les attitudes à développer (un inventaire des attitudes qui, selon l’élève, méritent d’être améliorées, et l’identification de moyens pour y arriver),– l’analyse de la démarche (l’analyse des résultats de la mise en application de ces moyens).3. Répondez en faisant des phrases complètes. Évitez de recopier les phrases du Texte de cours ou du manuel d’accompagnement. Vos réponses doivent démontrer que vous avez compris les notions présentées, d’où l’importance de les justifier.4. Afin que vos réponses respectent le plus possible le nombre de mots exigé, nous vous suggérons de les rédiger dans un fichier Word, de vérifier le nombre de mots qu'elles contiennent, puis de les copier dans l'espace prévu à cet effet.Bon travail!
A72: 322-783-RL-80-01 | B72: 322-783-RL-80-01 • Habiletés créatives en milieu de travail | C72: 228 | D72: GUIDE | E72: Devoir 4D | F72: Activité désactivée en 2016. Peut-on la supprimer de Moodle ? | G72: Le idnumber correspond à un GUIDE et le nom correspond à un devoir. Pourquoi ? | H72: 0 | I72: =IFERROR(SEARCH("faire*test",J72),0)+IFERROR(SEARCH("attempt*now",J72),0) -> 0 | J72: 1. Ce devoir porte sur les attitudes, un sujet traité dans le Texte de cours au chapitre 2 (leçon X) et au chapitre 4 (leçon XVII). Il sera corrigé sur 100 points, et la note sera ramenée sur 10. 2. Le devoir comporte trois parties distinctes :– les attitudes innées ou acquises (une réflexion personnelle sur les attitudes que possède déjà l’élève),– les attitudes à développer (un inventaire des attitudes qui, selon l’élève, méritent d’être améliorées, et l’identification de moyens pour y arriver),– l’analyse de la démarche (l’analyse des résultats de la mise en application de ces moyens).3. Répondez en faisant des phrases complètes. Évitez de recopier les phrases du Texte de cours ou du manuel d’accompagnement. Vos réponses doivent démontrer que vous avez compris les notions présentées, d’où l’importance de les justifier.4. Afin que vos réponses respectent le plus possible le nombre de mots exigé, nous vous suggérons de les rédiger dans un fichier Word, de vérifier le nombre de mots qu'elles contiennent, puis de les copier dans l'espace prévu à cet effet.Bon travail!
A73: 109-101-MQ-60-02 | B73: 109-101-MQ-60-02 • Activité physique et santé | C73: 458 | D73: D3B | E73: Devoir 6A | F73: Activité désactivée en 2017. Peut-on la supprimer de Moodle ? | H73: 0 | I73: =IFERROR(SEARCH("faire*test",J73),0)+IFERROR(SEARCH("attempt*now",J73),0) -> 398 | J73: Ce devoir, corrigé sur 100 points, compte pour 5 % de l’évaluation globale du cours.L'ensemble des fiches interactives d'activité physique que vous avez remplies dans le module 3 constituent ce sixième devoir.Vous devez maintenant aviser votre tutrice ou votre tuteur que vous avez terminé vos activités physiques du module 3 et que votre devoir 6 est prêt à être corrigé.À cette fin, cliquez sur Faire le test. Suivez les instructions à l’écran, vous pourrez alors inscrire les informations requises dans la zone de texte prévue à cet effet, puis les envoyer à votre tutrice ou à votre tuteur.Si vous éprouvez des difficultés, consultez l’aide à la navigation.Vous pourrez consulter la note de votre devoir dans l'environnement d'apprentissage, dès que votre tutrice ou votre tuteur l’aura inscrite.Bon travail!
A74: 109-101-MQ-60-02 | B74: 109-101-MQ-60-02 • Activité physique et santé | C74: 458 | D74: D6A | E74: Devoir 6A | F74: Activité désactivée en 2017. Peut-on la supprimer de Moodle ? | H74: 0 | I74: =IFERROR(SEARCH("faire*test",J74),0)+IFERROR(SEARCH("attempt*now",J74),0) -> 398 | J74: Ce devoir, corrigé sur 100 points, compte pour 5 % de l’évaluation globale du cours.L'ensemble des fiches interactives d'activité physique que vous avez remplies dans le module 3 constituent ce sixième devoir.Vous devez maintenant aviser votre tutrice ou votre tuteur que vous avez terminé vos activités physiques du module 3 et que votre devoir 6 est prêt à être corrigé.À cette fin, cliquez sur Faire le test. Suivez les instructions à l’écran, vous pourrez alors inscrire les informations requises dans la zone de texte prévue à cet effet, puis les envoyer à votre tutrice ou à votre tuteur.Si vous éprouvez des difficultés, consultez l’aide à la navigation.Vous pourrez consulter la note de votre devoir dans l'environnement d'apprentissage, dès que votre tutrice ou votre tuteur l’aura inscrite.Bon travail!
A75: 345-HUP-FD-65-01 | B75: 345-HUP-FD-65-01 • Ethical Issues: Ethics and Society | C75: 380 | D75: GUIDE | E75: Ethics and Genetic Technologies | F75: Retirer le idnumber | G75: Le idnumber correspond à un GUIDE et le nom correspond à une activité. Pourquoi ? | H75: 0 | I75: =IFERROR(SEARCH("faire*test",J75),0)+IFERROR(SEARCH("attempt*now",J75),0) -> 0 | J75: QuizAre you able to apply your knowledge of moral theories to the ethical issues related to genetic technologies and therapies?The field of genetics is really broad and diverse. As you might imagine, you can explore many more possible questions and dilemmas.The following sections of this lesson will introduce some more concepts related to medical ethics as it relates to genetics.
A76: 345-HUP-FD-65-01 | B76: 345-HUP-FD-65-01 • Ethical Issues: Ethics and Society | C76: 380 | D76: GUIDE | E76: Euthanasia in Questions | F76: Retirer le idnumber | G76: Le idnumber correspond à un GUIDE et le nom correspond à une activité. Pourquoi ? | H76: 0 | I76: =IFERROR(SEARCH("faire*test",J76),0)+IFERROR(SEARCH("attempt*now",J76),0) -> 0 | J76: QuizHere is a short quiz to help you review the concepts and ideas you looked at in the readings.
A77: 322-195-FD-60-01 | B77: 322-195-FD-60-01 • Santé et alimentation de l'enfant | C77: 433 | D77: D2D | E77: Évaluation finale D | F77: J'ai renommé pour Devoir 2DA, puis pour Devoir 2D. Véfirier dans la prochaine extraction. | H77: 6 | I77: =IFERROR(SEARCH("faire*test",J77),0)+IFERROR(SEARCH("attempt*now",J77),0) -> 1669 | J77: Consignes techniquesRappelez-vous que&nbsp,:Toute votre documentation de cours est permise.Lorsque vous commencerez l’évaluation finale, un compteur électronique sera lancé et enregistrera le temps écoulé jusqu’à concurrence de&nbsp,6&nbsp,heures (la durée prévue pour cette évaluation est de&nbsp,3 heures, mais un délai supplémentaire vous est accordé).&nbsp,Vous devez effectuer le travail et déposer les fichiers finaux dans l’environnement d’apprentissage dans ce délai, sinon vous aurez un échec.&nbsp,Pour naviguer d’une question à l’autre, vous pourrez utiliser la fonction Navigation du test. Notez que le cahier de réponses (et autres fichiers, le cas échéant) devra être téléchargé dès que l’évaluation finale commencera. Le cahier de réponses (et autres fichiers) devra être déposé à la toute fin de l’évaluation.Vous pourrez consulter la note de votre évaluation finale dans l’environnement d’apprentissage dès que votre tutrice ou votre tuteur l’aura inscrite.L’évaluation finale demeure la propriété du Cégep&nbsp,à&nbsp,distance, elle ne vous sera donc pas retournée une fois corrigée.Entrevue téléphoniqueL’évaluation finale est suivie d’une entrevue téléphonique obligatoire qui vise à authentifier la démarche que vous avez effectuée lors de l’évaluation.Après avoir corrigé votre évaluation finale,votre tutrice ou votre tuteur communiquera avec vous afin de fixer le moment del’entrevue. Celle-ci durera environ 10&nbsp,minutes (prévoir un moment libre de20&nbsp,minutes).Au moment de l’entrevue téléphonique, assurez-vous d’avoir sous la main toute la documentation relative à l’évaluation.Quand vous êtes prêt à commencer, cliquez sur le bouton Faire le test.Bon travail!
A78: 322-195-FD-60-01 | B78: 322-195-FD-60-01 • Santé et alimentation de l'enfant | C78: 433 | D78: E1D | E78: Évaluation finale D | H78: 6 | I78: =IFERROR(SEARCH("faire*test",J78),0)+IFERROR(SEARCH("attempt*now",J78),0) -> 1669 | J78: Consignes techniquesRappelez-vous que&nbsp,:Toute votre documentation de cours est permise.Lorsque vous commencerez l’évaluation finale, un compteur électronique sera lancé et enregistrera le temps écoulé jusqu’à concurrence de&nbsp,6&nbsp,heures (la durée prévue pour cette évaluation est de&nbsp,3 heures, mais un délai supplémentaire vous est accordé).&nbsp,Vous devez effectuer le travail et déposer les fichiers finaux dans l’environnement d’apprentissage dans ce délai, sinon vous aurez un échec.&nbsp,Pour naviguer d’une question à l’autre, vous pourrez utiliser la fonction Navigation du test. Notez que le cahier de réponses (et autres fichiers, le cas échéant) devra être téléchargé dès que l’évaluation finale commencera. Le cahier de réponses (et autres fichiers) devra être déposé à la toute fin de l’évaluation.Vous pourrez consulter la note de votre évaluation finale dans l’environnement d’apprentissage dès que votre tutrice ou votre tuteur l’aura inscrite.L’évaluation finale demeure la propriété du Cégep&nbsp,à&nbsp,distance, elle ne vous sera donc pas retournée une fois corrigée.Entrevue téléphoniqueL’évaluation finale est suivie d’une entrevue téléphonique obligatoire qui vise à authentifier la démarche que vous avez effectuée lors de l’évaluation.Après avoir corrigé votre évaluation finale,votre tutrice ou votre tuteur communiquera avec vous afin de fixer le moment del’entrevue. Celle-ci durera environ 10&nbsp,minutes (prévoir un moment libre de20&nbsp,minutes).Au moment de l’entrevue téléphonique, assurez-vous d’avoir sous la main toute la documentation relative à l’évaluation.Quand vous êtes prêt à commencer, cliquez sur le bouton Faire le test.Bon travail!
A79: 322-783-RL-80-01 | B79: 322-783-RL-80-01 • Habiletés créatives en milieu de travail | C79: 228 | D79: D4A | E79: Évaluation finale D | G79: Le idnumber correspond à un devoir et le nom correspond à un examen. Pourquoi ? | H79: 7 | I79: =IFERROR(SEARCH("faire*test",J79),0)+IFERROR(SEARCH("attempt*now",J79),0) -> 1897 | J79: Consignes&nbsp,techniquesAssurez-vous que votre navigateur Web est à jour.&nbsp,Rappelez-vous que :&nbsp,Toute votre&nbsp,documentation&nbsp,de cours est permise.&nbsp,Lorsque vous commencerez l’évaluation finale, un compteur électronique sera lancé et enregistrera le temps écoulé jusqu’à concurrence de&nbsp,7&nbsp,heures&nbsp,(la durée prévue pour cette évaluation est de 3&nbsp,heures, mais un délai supplémentaire vous est accordé).&nbsp,Vous devez effectuer le travail et déposer les fichiers finaux dans l’environnement d’apprentissage dans ce délai, sinon vous aurez un échec.&nbsp,Vous devrez inscrire vos réponses à la main sur des feuilles mobiles. Lorsque vous aurez terminé votre évaluation finale, vous devrez numériser ces feuilles et les déposer dans l’environnement d’apprentissage.&nbsp,Pour naviguer d’une question à l’autre, vous pourrez utiliser la fonction Navigation du test.&nbsp,L’évaluation finale devra être déposée à la toute fin.&nbsp,Vous pourrez consulter la note de votre&nbsp,évaluation finale&nbsp,dans l’environnement d’apprentissage dès que votre tutrice ou votre tuteur l’aura inscrite.&nbsp,L’évaluation finale&nbsp,demeure la propriété du Cégep à distance,&nbsp,elle&nbsp,ne vous sera donc pas retournée&nbsp,une fois corrigée.&nbsp,Entrevue téléphonique&nbsp,L’évaluation finale est suivie d’une&nbsp,entrevue téléphonique obligatoire&nbsp,qui vise à authentifier la démarche que vous avez effectuée lors de l’évaluation.&nbsp,Après avoir corrigé votre évaluation finale, votre tutrice ou votre tuteur communiquera avec vous afin de fixer le moment de l’entrevue. Celle-ci durera environ 10&nbsp,minutes (prévoir un moment libre de 20&nbsp,minutes).&nbsp,Au moment de l’entrevue téléphonique, assurez-vous d’avoir sous la main&nbsp,toute&nbsp,la documentation&nbsp,relative à l’évaluation.&nbsp,Quand vous êtes prêt à commencer, cliquez sur le bouton&nbsp,Faire&nbsp,le test.&nbsp,Bon travail!&nbsp,
A80: 322-783-RL-80-01 | B80: 322-783-RL-80-01 • Habiletés créatives en milieu de travail | C80: 228 | D80: E1D | E80: Évaluation finale D | H80: 7 | I80: =IFERROR(SEARCH("faire*test",J80),0)+IFERROR(SEARCH("attempt*now",J80),0) -> 1897 | J80: Consignes&nbsp,techniquesAssurez-vous que votre navigateur Web est à jour.&nbsp,Rappelez-vous que :&nbsp,Toute votre&nbsp,documentation&nbsp,de cours est permise.&nbsp,Lorsque vous commencerez l’évaluation finale, un compteur électronique sera lancé et enregistrera le temps écoulé jusqu’à concurrence de&nbsp,7&nbsp,heures&nbsp,(la durée prévue pour cette évaluation est de 3&nbsp,heures, mais un délai supplémentaire vous est accordé).&nbsp,Vous devez effectuer le travail et déposer les fichiers finaux dans l’environnement d’apprentissage dans ce délai, sinon vous aurez un échec.&nbsp,Vous devrez inscrire vos réponses à la main sur des feuilles mobiles. Lorsque vous aurez terminé votre évaluation finale, vous devrez numériser ces feuilles et les déposer dans l’environnement d’apprentissage.&nbsp,Pour naviguer d’une question à l’autre, vous pourrez utiliser la fonction Navigation du test.&nbsp,L’évaluation finale devra être déposée à la toute fin.&nbsp,Vous pourrez consulter la note de votre&nbsp,évaluation finale&nbsp,dans l’environnement d’apprentissage dès que votre tutrice ou votre tuteur l’aura inscrite.&nbsp,L’évaluation finale&nbsp,demeure la propriété du Cégep à distance,&nbsp,elle&nbsp,ne vous sera donc pas retournée&nbsp,une fois corrigée.&nbsp,Entrevue téléphonique&nbsp,L’évaluation finale est suivie d’une&nbsp,entrevue téléphonique obligatoire&nbsp,qui vise à authentifier la démarche que vous avez effectuée lors de l’évaluation.&nbsp,Après avoir corrigé votre évaluation finale, votre tutrice ou votre tuteur communiquera avec vous afin de fixer le moment de l’entrevue. Celle-ci durera environ 10&nbsp,minutes (prévoir un moment libre de 20&nbsp,minutes).&nbsp,Au moment de l’entrevue téléphonique, assurez-vous d’avoir sous la main&nbsp,toute&nbsp,la documentation&nbsp,relative à l’évaluation.&nbsp,Quand vous êtes prêt à commencer, cliquez sur le bouton&nbsp,Faire&nbsp,le test.&nbsp,Bon travail!&nbsp,
A81: 412-763-RL-10-01 | B81: 412-763-RL-10-01 • Rédaction et résumé de textes relatifs à la profession | C81: 411 | D81: E1C | E81: Évaluation finale D | H81: 6 | I81: =IFERROR(SEARCH("faire*test",J81),0)+IFERROR(SEARCH("attempt*now",J81),0) -> 1820 | J81: Consignes&nbsp,techniques&nbsp,Assurez-vous que votre navigateur Web est à jour.&nbsp,Rappelez-vous que :&nbsp,Toute votre documentation de cours est permise.&nbsp,Lorsque vous commencerez l’évaluation finale, un compteur électronique sera lancé et enregistrera le temps écoulé jusqu’à concurrence de 6 heures (la durée prévue pour cette évaluation est de 3 heures, mais un délai supplémentaire vous est accordé). Vous devez effectuer le travail et déposer les fichiers finaux dans l’environnement d’apprentissage dans ce délai, sinon vous aurez un échec.&nbsp,&nbsp,Pour naviguer d’une question à l’autre, vous pourrez utiliser la fonction Navigation du test. Notez que le cahier de réponses (et autres fichiers, le cas échéant) devra être téléchargé dès que l’évaluation finale commencera. Le cahier de réponses (et autres fichiers) devra être déposé à la toute fin de l’évaluation.&nbsp,&nbsp,&nbsp,Vous pourrez consulter la note de votre évaluation finale dans l’environnement d’apprentissage dès que votre tutrice ou votre tuteur l’aura inscrite.&nbsp,L’évaluation finale demeure la propriété du Cégep à distance, elle ne vous sera donc pas retournée une fois&nbsp,corrigée.&nbsp,Entrevue téléphonique&nbsp,L’évaluation finale est suivie d’une&nbsp,entrevue téléphonique obligatoire&nbsp,qui vise à authentifier la démarche que vous avez effectuée lors de l’évaluation.&nbsp,Après avoir corrigé votre évaluation finale, votre tutrice ou votre tuteur communiquera avec vous afin de fixer le moment de l’entrevue. Celle-ci durera&nbsp,environ 10&nbsp,minutes (prévoir un moment libre de 20&nbsp,minutes).&nbsp,Au moment de l’entrevue téléphonique, assurez-vous d’avoir sous la main&nbsp,toute&nbsp,la documentation&nbsp,relative à&nbsp,l’évaluation.&nbsp,Quand vous êtes prêt à commencer, cliquez sur le bouton&nbsp,Faire&nbsp,le test.&nbsp,Bon travail!&nbsp,
A82: 412-763-RL-10-01 | B82: 412-763-RL-10-01 • Rédaction et résumé de textes relatifs à la profession | C82: 411 | D82: E1D | E82: Évaluation finale D | H82: 6 | I82: =IFERROR(SEARCH("faire*test",J82),0)+IFERROR(SEARCH("attempt*now",J82),0) -> 1820 | J82: Consignes&nbsp,techniques&nbsp,Assurez-vous que votre navigateur Web est à jour.&nbsp,Rappelez-vous que :&nbsp,Toute votre documentation de cours est permise.&nbsp,Lorsque vous commencerez l’évaluation finale, un compteur électronique sera lancé et enregistrera le temps écoulé jusqu’à concurrence de 6 heures (la durée prévue pour cette évaluation est de 3 heures, mais un délai supplémentaire vous est accordé). Vous devez effectuer le travail et déposer les fichiers finaux dans l’environnement d’apprentissage dans ce délai, sinon vous aurez un échec.&nbsp,&nbsp,Pour naviguer d’une question à l’autre, vous pourrez utiliser la fonction Navigation du test. Notez que le cahier de réponses (et autres fichiers, le cas échéant) devra être téléchargé dès que l’évaluation finale commencera. Le cahier de réponses (et autres fichiers) devra être déposé à la toute fin de l’évaluation.&nbsp,&nbsp,&nbsp,Vous pourrez consulter la note de votre évaluation finale dans l’environnement d’apprentissage dès que votre tutrice ou votre tuteur l’aura inscrite.&nbsp,L’évaluation finale demeure la propriété du Cégep à distance, elle ne vous sera donc pas retournée une fois&nbsp,corrigée.&nbsp,Entrevue téléphonique&nbsp,L’évaluation finale est suivie d’une&nbsp,entrevue téléphonique obligatoire&nbsp,qui vise à authentifier la démarche que vous avez effectuée lors de l’évaluation.&nbsp,Après avoir corrigé votre évaluation finale, votre tutrice ou votre tuteur communiquera avec vous afin de fixer le moment de l’entrevue. Celle-ci durera&nbsp,environ 10&nbsp,minutes (prévoir un moment libre de 20&nbsp,minutes).&nbsp,Au moment de l’entrevue téléphonique, assurez-vous d’avoir sous la main&nbsp,toute&nbsp,la documentation&nbsp,relative à&nbsp,l’évaluation.&nbsp,Quand vous êtes prêt à commencer, cliquez sur le bouton&nbsp,Faire&nbsp,le test.&nbsp,Bon travail!&nbsp,
A83: 412-763-RL-11-01 | B83: 412-763-RL-11-01 • Rédaction et résumé de textes relatifs à la profession | C83: 412 | D83: D1D | E83: Évaluation finale D | G83: Le idnumber correspond à un devoir et le nom correspond à un examen. Pourquoi ? | H83: 6 | I83: =IFERROR(SEARCH("faire*test",J83),0)+IFERROR(SEARCH("attempt*now",J83),0) -> 1820 | J83: Consignes&nbsp,techniques&nbsp,Assurez-vous que votre navigateur Web est à jour.&nbsp,Rappelez-vous que :&nbsp,Toute votre documentation de cours est permise.&nbsp,Lorsque vous commencerez l’évaluation finale, un compteur électronique sera lancé et enregistrera le temps écoulé jusqu’à concurrence de 6 heures (la durée prévue pour cette évaluation est de 3 heures, mais un délai supplémentaire vous est accordé). Vous devez effectuer le travail et déposer les fichiers finaux dans l’environnement d’apprentissage dans ce délai, sinon vous aurez un échec.&nbsp,&nbsp,Pour naviguer d’une question à l’autre, vous pourrez utiliser la fonction Navigation du test. Notez que le cahier de réponses (et autres fichiers, le cas échéant) devra être téléchargé dès que l’évaluation finale commencera. Le cahier de réponses (et autres fichiers) devra être déposé à la toute fin de l’évaluation.&nbsp,&nbsp,&nbsp,Vous pourrez consulter la note de votre évaluation finale dans l’environnement d’apprentissage dès que votre tutrice ou votre tuteur l’aura inscrite.&nbsp,L’évaluation finale demeure la propriété du Cégep à distance, elle ne vous sera donc pas retournée une fois&nbsp,corrigée.&nbsp,Entrevue téléphonique&nbsp,L’évaluation finale est suivie d’une&nbsp,entrevue téléphonique obligatoire&nbsp,qui vise à authentifier la démarche que vous avez effectuée lors de l’évaluation.&nbsp,Après avoir corrigé votre évaluation finale, votre tutrice ou votre tuteur communiquera avec vous afin de fixer le moment de l’entrevue. Celle-ci durera&nbsp,environ 10&nbsp,minutes (prévoir un moment libre de 20&nbsp,minutes).&nbsp,Au moment de l’entrevue téléphonique, assurez-vous d’avoir sous la main&nbsp,toute&nbsp,la documentation&nbsp,relative à&nbsp,l’évaluation.&nbsp,Quand vous êtes prêt à commencer, cliquez sur le bouton&nbsp,Faire&nbsp,le test.&nbsp,Bon travail!&nbsp,
A84: 412-763-RL-11-01 | B84: 412-763-RL-11-01 • Rédaction et résumé de textes relatifs à la profession | C84: 412 | D84: E1D | E84: Évaluation finale D | H84: 6 | I84: =IFERROR(SEARCH("faire*test",J84),0)+IFERROR(SEARCH("attempt*now",J84),0) -> 1820 | J84: Consignes&nbsp,techniques&nbsp,Assurez-vous que votre navigateur Web est à jour.&nbsp,Rappelez-vous que :&nbsp,Toute votre documentation de cours est permise.&nbsp,Lorsque vous commencerez l’évaluation finale, un compteur électronique sera lancé et enregistrera le temps écoulé jusqu’à concurrence de 6 heures (la durée prévue pour cette évaluation est de 3 heures, mais un délai supplémentaire vous est accordé). Vous devez effectuer le travail et déposer les fichiers finaux dans l’environnement d’apprentissage dans ce délai, sinon vous aurez un échec.&nbsp,&nbsp,Pour naviguer d’une question à l’autre, vous pourrez utiliser la fonction Navigation du test. Notez que le cahier de réponses (et autres fichiers, le cas échéant) devra être téléchargé dès que l’évaluation finale commencera. Le cahier de réponses (et autres fichiers) devra être déposé à la toute fin de l’évaluation.&nbsp,&nbsp,&nbsp,Vous pourrez consulter la note de votre évaluation finale dans l’environnement d’apprentissage dès que votre tutrice ou votre tuteur l’aura inscrite.&nbsp,L’évaluation finale demeure la propriété du Cégep à distance, elle ne vous sera donc pas retournée une fois&nbsp,corrigée.&nbsp,Entrevue téléphonique&nbsp,L’évaluation finale est suivie d’une&nbsp,entrevue téléphonique obligatoire&nbsp,qui vise à authentifier la démarche que vous avez effectuée lors de l’évaluation.&nbsp,Après avoir corrigé votre évaluation finale, votre tutrice ou votre tuteur communiquera avec vous afin de fixer le moment de l’entrevue. Celle-ci durera&nbsp,environ 10&nbsp,minutes (prévoir un moment libre de 20&nbsp,minutes).&nbsp,Au moment de l’entrevue téléphonique, assurez-vous d’avoir sous la main&nbsp,toute&nbsp,la documentation&nbsp,relative à&nbsp,l’évaluation.&nbsp,Quand vous êtes prêt à commencer, cliquez sur le bouton&nbsp,Faire&nbsp,le test.&nbsp,Bon travail!&nbsp,
A85: 322-19C-FD-60-01 | B85: 322-19C-FD-60-01 • Approches pédagogiques | C85: 280 | D85: D2E | E85: Évaluation finale F | G85: Le idnumber correspond à un devoir et le nom correspond à un examen. Pourquoi ? | H85: 6 | I85: =IFERROR(SEARCH("faire*test",J85),0)+IFERROR(SEARCH("attempt*now",J85),0) -> 1839 | J85: Consignes&nbsp,techniques&nbsp,Assurez-vous que votre navigateur Web est à jour.&nbsp,Rappelez-vous que :&nbsp,Toute votre&nbsp,documentation&nbsp,de cours est permise.&nbsp,Lorsque vous commencerez l’évaluation finale, un compteur électronique sera lancé et enregistrera le temps écoulé jusqu’à concurrence de 6 heures (la durée prévue pour cette évaluation est de 3 heures, mais un délai supplémentaire vous est accordé). Vous devez effectuer le travail et déposer les fichiers finaux dans l’environnement d’apprentissage dans ce délai, sinon vous aurez un échec.&nbsp,Pour naviguer d’une question à l’autre, vous pourrez utiliser la fonction Navigation du test. Notez que le cahier de réponses (et autres fichiers, le cas échéant) devra être téléchargé dès que l’évaluation finale commencera. Le cahier de réponses (et autres fichiers) devra être déposé à la toute fin de l’évaluation.&nbsp,&nbsp,&nbsp,Vous pourrez consulter la note de votre&nbsp,évaluation finale&nbsp,dans l’environnement d’apprentissage dès que votre tutrice ou votre tuteur l’aura inscrite.&nbsp,L’évaluation finale&nbsp,demeure la propriété du Cégep à distance,&nbsp,elle&nbsp,ne vous sera donc pas retournée&nbsp,une fois corrigée.&nbsp,Entrevue téléphonique&nbsp,L’évaluation finale est suivie d’une&nbsp,entrevue téléphonique obligatoire&nbsp,qui vise à authentifier la démarche que vous avez effectuée lors de l’évaluation.&nbsp,Après avoir corrigé votre évaluation finale, votre tutrice ou votre tuteur communiquera avec vous afin de fixer le moment de l’entrevue. Celle-ci durera environ 10&nbsp,minutes (prévoir un moment libre de 20&nbsp,minutes).&nbsp,Au moment de l’entrevue téléphonique, assurez-vous d’avoir sous la main&nbsp,toute&nbsp,la documentation&nbsp,relative à l’évaluation.&nbsp,Quand vous êtes prêt à commencer, cliquez sur le bouton&nbsp,Faire&nbsp,le test.&nbsp,Bon travail!&nbsp,
A86: 322-19C-FD-60-01 | B86: 322-19C-FD-60-01 • Approches pédagogiques | C86: 280 | D86: E1F | E86: Évaluation finale F | H86: 6 | I86: =IFERROR(SEARCH("faire*test",J86),0)+IFERROR(SEARCH("attempt*now",J86),0) -> 1839 | J86: Consignes&nbsp,techniques&nbsp,Assurez-vous que votre navigateur Web est à jour.&nbsp,Rappelez-vous que :&nbsp,Toute votre&nbsp,documentation&nbsp,de cours est permise.&nbsp,Lorsque vous commencerez l’évaluation finale, un compteur électronique sera lancé et enregistrera le temps écoulé jusqu’à concurrence de 6 heures (la durée prévue pour cette évaluation est de 3 heures, mais un délai supplémentaire vous est accordé). Vous devez effectuer le travail et déposer les fichiers finaux dans l’environnement d’apprentissage dans ce délai, sinon vous aurez un échec.&nbsp,Pour naviguer d’une question à l’autre, vous pourrez utiliser la fonction Navigation du test. Notez que le cahier de réponses (et autres fichiers, le cas échéant) devra être téléchargé dès que l’évaluation finale commencera. Le cahier de réponses (et autres fichiers) devra être déposé à la toute fin de l’évaluation.&nbsp,&nbsp,&nbsp,Vous pourrez consulter la note de votre&nbsp,évaluation finale&nbsp,dans l’environnement d’apprentissage dès que votre tutrice ou votre tuteur l’aura inscrite.&nbsp,L’évaluation finale&nbsp,demeure la propriété du Cégep à distance,&nbsp,elle&nbsp,ne vous sera donc pas retournée&nbsp,une fois corrigée.&nbsp,Entrevue téléphonique&nbsp,L’évaluation finale est suivie d’une&nbsp,entrevue téléphonique obligatoire&nbsp,qui vise à authentifier la démarche que vous avez effectuée lors de l’évaluation.&nbsp,Après avoir corrigé votre évaluation finale, votre tutrice ou votre tuteur communiquera avec vous afin de fixer le moment de l’entrevue. Celle-ci durera environ 10&nbsp,minutes (prévoir un moment libre de 20&nbsp,minutes).&nbsp,Au moment de l’entrevue téléphonique, assurez-vous d’avoir sous la main&nbsp,toute&nbsp,la documentation&nbsp,relative à l’évaluation.&nbsp,Quand vous êtes prêt à commencer, cliquez sur le bouton&nbsp,Faire&nbsp,le test.&nbsp,Bon travail!&nbsp,
A87: 322-713-RL-10-02 | B87: 322-713-RL-10-02 • Sécurité en milieu de garde | C87: 301 | D87: D3E | E87: Évaluation finale G | G87: Le idnumber correspond à un devoir et le nom correspond à un examen. Pourquoi ? | H87: 6 | I87: =IFERROR(SEARCH("faire*test",J87),0)+IFERROR(SEARCH("attempt*now",J87),0) -> 1867 | J87: Consignes&nbsp,techniques&nbsp,Assurez-vous que votre navigateur Web est à jour.&nbsp,Rappelez-vous que :&nbsp,Toute votre&nbsp,documentation&nbsp,de cours est permise.&nbsp,Lorsque vous commencerez l’évaluation finale, un compteur électronique sera lancé et enregistrera le temps écoulé jusqu’à concurrence de&nbsp,6&nbsp,heures&nbsp,(la durée prévue&nbsp,pour&nbsp,cette évaluation est de&nbsp,3&nbsp,heures, mais un&nbsp,délai&nbsp,supplémentaire vous est accordé).&nbsp,Vous devez effectuer le travail et déposer les fichiers finaux dans l’environnement d’apprentissage dans ce délai, sinon vous aurez un échec.&nbsp,Pour naviguer d’une question à l’autre, vous pourrez utiliser la fonction Navigation du test. Notez que le cahier de réponses (et autres fichiers, le cas échéant) devra être téléchargé dès que l’évaluation finale commencera. Le cahier de réponses (et autres fichiers) devra être déposé à la toute fin de l’évaluation.&nbsp,Vous pourrez consulter la note de votre&nbsp,évaluation finale&nbsp,dans l’environnement d’apprentissage dès que votre tutrice ou votre tuteur l’aura inscrite.&nbsp,L’évaluation finale&nbsp,demeure la propriété du Cégep à distance,&nbsp,elle&nbsp,ne vous sera donc pas retournée&nbsp,une fois corrigée.&nbsp,Entrevue téléphonique&nbsp,L’évaluation finale est suivie d’une&nbsp,entrevue téléphonique obligatoire&nbsp,qui vise à authentifier la démarche que vous avez effectuée lors de l’évaluation.&nbsp,Après avoir corrigé votre évaluation finale, votre tutrice ou votre tuteur communiquera avec vous afin de fixer le moment de l’entrevue. Celle-ci durera environ 10 minutes (prévoir un moment libre de 20 minutes).&nbsp,Au moment de l’entrevue téléphonique, assurez-vous d’avoir sous la main&nbsp,toute&nbsp,la documentation&nbsp,relative à l’évaluation.&nbsp,Quand vous êtes prêt à commencer, cliquez sur le bouton&nbsp,Faire&nbsp,le test.&nbsp,Bon travail!&nbsp,
A88: 322-713-RL-10-02 | B88: 322-713-RL-10-02 • Sécurité en milieu de garde | C88: 301 | D88: E1G | E88: Évaluation finale G | H88: 6 | I88: =IFERROR(SEARCH("faire*test",J88),0)+IFERROR(SEARCH("attempt*now",J88),0) -> 1867 | J88: Consignes&nbsp,techniques&nbsp,Assurez-vous que votre navigateur Web est à jour.&nbsp,Rappelez-vous que :&nbsp,Toute votre&nbsp,documentation&nbsp,de cours est permise.&nbsp,Lorsque vous commencerez l’évaluation finale, un compteur électronique sera lancé et enregistrera le temps écoulé jusqu’à concurrence de&nbsp,6&nbsp,heures&nbsp,(la durée prévue&nbsp,pour&nbsp,cette évaluation est de&nbsp,3&nbsp,heures, mais un&nbsp,délai&nbsp,supplémentaire vous est accordé).&nbsp,Vous devez effectuer le travail et déposer les fichiers finaux dans l’environnement d’apprentissage dans ce délai, sinon vous aurez un échec.&nbsp,Pour naviguer d’une question à l’autre, vous pourrez utiliser la fonction Navigation du test. Notez que le cahier de réponses (et autres fichiers, le cas échéant) devra être téléchargé dès que l’évaluation finale commencera. Le cahier de réponses (et autres fichiers) devra être déposé à la toute fin de l’évaluation.&nbsp,Vous pourrez consulter la note de votre&nbsp,évaluation finale&nbsp,dans l’environnement d’apprentissage dès que votre tutrice ou votre tuteur l’aura inscrite.&nbsp,L’évaluation finale&nbsp,demeure la propriété du Cégep à distance,&nbsp,elle&nbsp,ne vous sera donc pas retournée&nbsp,une fois corrigée.&nbsp,Entrevue téléphonique&nbsp,L’évaluation finale est suivie d’une&nbsp,entrevue téléphonique obligatoire&nbsp,qui vise à authentifier la démarche que vous avez effectuée lors de l’évaluation.&nbsp,Après avoir corrigé votre évaluation finale, votre tutrice ou votre tuteur communiquera avec vous afin de fixer le moment de l’entrevue. Celle-ci durera environ 10 minutes (prévoir un moment libre de 20 minutes).&nbsp,Au moment de l’entrevue téléphonique, assurez-vous d’avoir sous la main&nbsp,toute&nbsp,la documentation&nbsp,relative à l’évaluation.&nbsp,Quand vous êtes prêt à commencer, cliquez sur le bouton&nbsp,Faire&nbsp,le test.&nbsp,Bon travail!&nbsp,
A89: 322-824-RL-10-02 | B89: 322-824-RL-10-02 • Interventions relatives au comportement | C89: 325 | D89: D4B | E89: Évaluation finale G | G89: Le idnumber correspond à un devoir et le nom correspond à un examen. Pourquoi ? | H89: 7 | I89: =IFERROR(SEARCH("faire*test",J89),0)+IFERROR(SEARCH("attempt*now",J89),0) -> 1802 | J89: Consignes&nbsp,techniques&nbsp,Assurez-vous que votre navigateur Web est à jour.&nbsp,Rappelez-vous&nbsp,que :&nbsp,Toute votre&nbsp,documentation&nbsp,de cours est permise.&nbsp,Lorsque vous commencerez l’évaluation finale, un compteur électronique sera lancé et enregistrera le temps écoulé jusqu’à concurrence de 7 heures (la durée prévue pour cette évaluation est de 3 heures, mais un délai supplémentaire vous est accordé). Vous devez effectuer le travail et déposer les fichiers finaux dans l’environnement d’apprentissage dans ce délai, sinon vous aurez un échec.&nbsp,Pour naviguer d’une question à l’autre, vous pourrez utiliser la fonction Navigation du test. Notez que le cahier de réponses (et autres fichiers, le cas échéant) devra être téléchargé dès que&nbsp,l’évaluation finale commencera. Le cahier de réponses (et autres fichiers) devra être déposé à la toute fin de l’évaluation.&nbsp,Vous pourrez consulter la note de votre évaluation finale dans l’environnement d’apprentissage dès que votre tutrice ou votre tuteur l’aura inscrite.&nbsp,L’évaluation finale demeure la propriété du Cégep à distance, elle ne vous sera donc pas retournée une fois&nbsp,corrigée.&nbsp,Entrevue téléphonique&nbsp,L’évaluation finale est suivie d’une&nbsp,entrevue téléphonique obligatoire&nbsp,qui vise à authentifier la démarche que vous avez effectuée lors de l’évaluation.&nbsp,Après avoir corrigé votre évaluation finale, votre tutrice ou votre tuteur communiquera avec vous afin de fixer le moment de l’entrevue. Celle-ci durera environ 10 minutes (prévoir un moment libre de 20 minutes).&nbsp,Au moment de l’entrevue téléphonique, assurez-vous d’avoir sous la main&nbsp,toute&nbsp,la documentation&nbsp,relative à l’évaluation.&nbsp,Quand vous êtes prêt à commencer, cliquez sur le bouton&nbsp,Faire&nbsp,le test.&nbsp,Bon travail!&nbsp,
A90: 322-824-RL-10-02 | B90: 322-824-RL-10-02 • Interventions relatives au comportement | C90: 325 | D90: E1G | E90: Évaluation finale G | H90: 7 | I90: =IFERROR(SEARCH("faire*test",J90),0)+IFERROR(SEARCH("attempt*now",J90),0) -> 1802 | J90: Consignes&nbsp,techniques&nbsp,Assurez-vous que votre navigateur Web est à jour.&nbsp,Rappelez-vous&nbsp,que :&nbsp,Toute votre&nbsp,documentation&nbsp,de cours est permise.&nbsp,Lorsque vous commencerez l’évaluation finale, un compteur électronique sera lancé et enregistrera le temps écoulé jusqu’à concurrence de 7 heures (la durée prévue pour cette évaluation est de 3 heures, mais un délai supplémentaire vous est accordé). Vous devez effectuer le travail et déposer les fichiers finaux dans l’environnement d’apprentissage dans ce délai, sinon vous aurez un échec.&nbsp,Pour naviguer d’une question à l’autre, vous pourrez utiliser la fonction Navigation du test. Notez que le cahier de réponses (et autres fichiers, le cas échéant) devra être téléchargé dès que&nbsp,l’évaluation finale commencera. Le cahier de réponses (et autres fichiers) devra être déposé à la toute fin de l’évaluation.&nbsp,Vous pourrez consulter la note de votre évaluation finale dans l’environnement d’apprentissage dès que votre tutrice ou votre tuteur l’aura inscrite.&nbsp,L’évaluation finale demeure la propriété du Cégep à distance, elle ne vous sera donc pas retournée une fois&nbsp,corrigée.&nbsp,Entrevue téléphonique&nbsp,L’évaluation finale est suivie d’une&nbsp,entrevue téléphonique obligatoire&nbsp,qui vise à authentifier la démarche que vous avez effectuée lors de l’évaluation.&nbsp,Après avoir corrigé votre évaluation finale, votre tutrice ou votre tuteur communiquera avec vous afin de fixer le moment de l’entrevue. Celle-ci durera environ 10 minutes (prévoir un moment libre de 20 minutes).&nbsp,Au moment de l’entrevue téléphonique, assurez-vous d’avoir sous la main&nbsp,toute&nbsp,la documentation&nbsp,relative à l’évaluation.&nbsp,Quand vous êtes prêt à commencer, cliquez sur le bouton&nbsp,Faire&nbsp,le test.&nbsp,Bon travail!&nbsp,
A91: 322-743-RL-80-03 | B91: 322-743-RL-80-03 • Santé de l'enfant en milieu de garde | C91: 250 | D91: E1D | E91: Évaluation finale G | G91: Pourquoi n'a-t-on pas la consigne "Faire le test" ? | H91: 6 | I91: =IFERROR(SEARCH("faire*test",J91),0)+IFERROR(SEARCH("attempt*now",J91),0) -> 0 | J91: Consignes&nbsp,techniques Assurez-vous que votre navigateur Web est à jour.&nbsp, Rappelez-vous que :&nbsp, Toute votre&nbsp,documentation&nbsp,de cours est permise.&nbsp, Lorsque vous commencerez l’évaluation finale, un compteur électronique sera lancé et enregistrera le temps écoulé jusqu’à concurrence de&nbsp,6&nbsp,heures&nbsp,(la durée prévue&nbsp,pour&nbsp,cette évaluation est de&nbsp,3&nbsp,heures, mais un&nbsp,délai&nbsp,supplémentaire vous est accordé).&nbsp,Vous devez effectuer le travail et déposer les fichiers finaux dans l’environnement d’apprentissage dans ce délai, sinon vous aurez un échec.&nbsp, Pour naviguer d’une question à l’autre, vous pourrez utiliser la fonction Navigation du test. Notez que le cahier de réponses (et autres fichiers, le cas échéant) devra être téléchargé dès que l’évaluation finale commencera. Le cahier de réponses (et autres fichiers) devra être déposé à la toute fin de l’évaluation.&nbsp, &nbsp,&nbsp,
A92: 322-743-RL-80-03 | B92: 322-743-RL-80-03 • Santé de l'enfant en milieu de garde | C92: 250 | D92: E1G | E92: Évaluation finale G | G92: Pourquoi n'a-t-on pas la consigne "Faire le test" ? | H92: 6 | I92: =IFERROR(SEARCH("faire*test",J92),0)+IFERROR(SEARCH("attempt*now",J92),0) -> 0 | J92: Consignes&nbsp,techniques Assurez-vous que votre navigateur Web est à jour.&nbsp, Rappelez-vous que :&nbsp, Toute votre&nbsp,documentation&nbsp,de cours est permise.&nbsp, Lorsque vous commencerez l’évaluation finale, un compteur électronique sera lancé et enregistrera le temps écoulé jusqu’à concurrence de&nbsp,6&nbsp,heures&nbsp,(la durée prévue&nbsp,pour&nbsp,cette évaluation est de&nbsp,3&nbsp,heures, mais un&nbsp,délai&nbsp,supplémentaire vous est accordé).&nbsp,Vous devez effectuer le travail et déposer les fichiers finaux dans l’environnement d’apprentissage dans ce délai, sinon vous aurez un échec.&nbsp, Pour naviguer d’une question à l’autre, vous pourrez utiliser la fonction Navigation du test. Notez que le cahier de réponses (et autres fichiers, le cas échéant) devra être téléchargé dès que l’évaluation finale commencera. Le cahier de réponses (et autres fichiers) devra être déposé à la toute fin de l’évaluation.&nbsp, &nbsp,&nbsp,
A93: 322-753-RL-10-02 | B93: 322-753-RL-10-02 • Développement de relations significatives avec l'enfant | C93: 319 | D93: E1E | E93: Évaluation finale G | H93: 6 | I93: =IFERROR(SEARCH("faire*test",J93),0)+IFERROR(SEARCH("attempt*now",J93),0) -> 1807 | J93: Consignes&nbsp,techniques&nbsp,Assurez-vous que votre navigateur Web est à jour.&nbsp,Rappelez-vous&nbsp,que :&nbsp,Toute votre&nbsp,documentation&nbsp,de cours est permise.&nbsp,Lorsque vous commencerez l’évaluation finale, un compteur électronique sera lancé et enregistrera le temps écoulé jusqu’à concurrence de 6 heures (la durée prévue pour cette évaluation est de 3 heures, mais un délai supplémentaire vous est accordé). Vous devez effectuer le travail et déposer les fichiers finaux dans l’environnement d’apprentissage dans ce délai, sinon vous aurez un échec.&nbsp,Pour naviguer d’une question à l’autre, vous pourrez utiliser la fonction Navigation du test. Notez que le cahier de réponses (et autres fichiers, le cas échéant) devra être téléchargé dès que&nbsp,l’évaluation finale commencera. Le cahier de réponses (et autres fichiers) devra être déposé à la toute fin de l’évaluation.&nbsp,Vous pourrez consulter la note de votre évaluation finale dans l’environnement d’apprentissage dès que votre tutrice ou votre tuteur l’aura inscrite.&nbsp,L’évaluation finale demeure la propriété du Cégep à distance, elle ne vous sera donc pas retournée une fois&nbsp,corrigée.&nbsp,Entrevue téléphonique&nbsp,L’évaluation finale est suivie d’une&nbsp,entrevue téléphonique obligatoire&nbsp,qui vise à authentifier la démarche que vous avez effectuée lors de l’évaluation.&nbsp,Après avoir corrigé votre évaluation finale, votre tutrice ou votre tuteur communiquera avec vous afin de fixer le moment de l’entrevue. Celle-ci durera environ 10 minutes (prévoir un moment libre de 20&nbsp,minutes).&nbsp,Au moment de l’entrevue téléphonique, assurez-vous d’avoir sous la main&nbsp,toute&nbsp,la documentation&nbsp,relative à l’évaluation.&nbsp,Quand vous êtes prêt à commencer, cliquez sur le bouton&nbsp,Faire&nbsp,le test.&nbsp,Bon travail!&nbsp,
A94: 322-753-RL-10-02 | B94: 322-753-RL-10-02 • Développement de relations significatives avec l'enfant | C94: 319 | D94: E1G | E94: Évaluation finale G | H94: 6 | I94: =IFERROR(SEARCH("faire*test",J94),0)+IFERROR(SEARCH("attempt*now",J94),0) -> 1807 | J94: Consignes&nbsp,techniques&nbsp,Assurez-vous que votre navigateur Web est à jour.&nbsp,Rappelez-vous&nbsp,que :&nbsp,Toute votre&nbsp,documentation&nbsp,de cours est permise.&nbsp,Lorsque vous commencerez l’évaluation finale, un compteur électronique sera lancé et enregistrera le temps écoulé jusqu’à concurrence de 6 heures (la durée prévue pour cette évaluation est de 3 heures, mais un délai supplémentaire vous est accordé). Vous devez effectuer le travail et déposer les fichiers finaux dans l’environnement d’apprentissage dans ce délai, sinon vous aurez un échec.&nbsp,Pour naviguer d’une question à l’autre, vous pourrez utiliser la fonction Navigation du test. Notez que le cahier de réponses (et autres fichiers, le cas échéant) devra être téléchargé dès que&nbsp,l’évaluation finale commencera. Le cahier de réponses (et autres fichiers) devra être déposé à la toute fin de l’évaluation.&nbsp,Vous pourrez consulter la note de votre évaluation finale dans l’environnement d’apprentissage dès que votre tutrice ou votre tuteur l’aura inscrite.&nbsp,L’évaluation finale demeure la propriété du Cégep à distance, elle ne vous sera donc pas retournée une fois&nbsp,corrigée.&nbsp,Entrevue téléphonique&nbsp,L’évaluation finale est suivie d’une&nbsp,entrevue téléphonique obligatoire&nbsp,qui vise à authentifier la démarche que vous avez effectuée lors de l’évaluation.&nbsp,Après avoir corrigé votre évaluation finale, votre tutrice ou votre tuteur communiquera avec vous afin de fixer le moment de l’entrevue. Celle-ci durera environ 10 minutes (prévoir un moment libre de 20&nbsp,minutes).&nbsp,Au moment de l’entrevue téléphonique, assurez-vous d’avoir sous la main&nbsp,toute&nbsp,la documentation&nbsp,relative à l’évaluation.&nbsp,Quand vous êtes prêt à commencer, cliquez sur le bouton&nbsp,Faire&nbsp,le test.&nbsp,Bon travail!&nbsp,
A95: 322-805-RL-70-01 | B95: 322-805-RL-70-01 • Activités éducatives pour les enfants de 3-5 ans | C95: 283 | D95: D2B | E95: Évaluation finale G | G95: Le idnumber correspond à un devoir et le nom correspond à un examen. Pourquoi ? | H95: 6 | I95: =IFERROR(SEARCH("faire*test",J95),0)+IFERROR(SEARCH("attempt*now",J95),0) -> 1807 | J95: Consignes&nbsp,techniques&nbsp,Assurez-vous que votre navigateur Web est à jour.&nbsp,Rappelez-vous&nbsp,que :&nbsp,Toute votre&nbsp,documentation&nbsp,de cours est permise.&nbsp,Lorsque vous commencerez l’évaluation finale, un compteur électronique sera lancé et enregistrera le temps écoulé jusqu’à concurrence de 6 heures (la durée prévue pour cette évaluation est de 3 heures, mais un délai supplémentaire vous est accordé). Vous devez effectuer le travail et déposer les fichiers finaux dans l’environnement d’apprentissage dans ce délai, sinon vous aurez un échec.&nbsp,Pour naviguer d’une question à l’autre, vous pourrez utiliser la fonction Navigation du test. Notez que le cahier de réponses (et autres fichiers, le cas échéant) devra être téléchargé dès que&nbsp,l’évaluation finale commencera. Le cahier de réponses (et autres fichiers) devra être déposé à la toute fin de l’évaluation.&nbsp,Vous pourrez consulter la note de votre évaluation finale dans l’environnement d’apprentissage dès que votre tutrice ou votre tuteur l’aura inscrite.&nbsp,L’évaluation finale demeure la propriété du Cégep à distance, elle ne vous sera donc pas retournée une fois&nbsp,corrigée.&nbsp,Entrevue téléphonique&nbsp,L’évaluation finale est suivie d’une&nbsp,entrevue téléphonique obligatoire&nbsp,qui vise à authentifier la démarche que vous avez effectuée lors de l’évaluation.&nbsp,Après avoir corrigé votre évaluation finale, votre tutrice ou votre tuteur communiquera avec vous afin de fixer le moment de l’entrevue. Celle-ci durera environ 10 minutes (prévoir un moment libre de 20&nbsp,minutes).&nbsp,Au moment de l’entrevue téléphonique, assurez-vous d’avoir sous la main&nbsp,toute&nbsp,la documentation&nbsp,relative à l’évaluation.&nbsp,Quand vous êtes prêt à commencer, cliquez sur le bouton&nbsp,Faire&nbsp,le test.&nbsp,Bon travail!&nbsp,
A96: 322-805-RL-70-01 | B96: 322-805-RL-70-01 • Activités éducatives pour les enfants de 3-5 ans | C96: 283 | D96: E1G | E96: Évaluation finale G | H96: 6 | I96: =IFERROR(SEARCH("faire*test",J96),0)+IFERROR(SEARCH("attempt*now",J96),0) -> 1807 | J96: Consignes&nbsp,techniques&nbsp,Assurez-vous que votre navigateur Web est à jour.&nbsp,Rappelez-vous&nbsp,que :&nbsp,Toute votre&nbsp,documentation&nbsp,de cours est permise.&nbsp,Lorsque vous commencerez l’évaluation finale, un compteur électronique sera lancé et enregistrera le temps écoulé jusqu’à concurrence de 6 heures (la durée prévue pour cette évaluation est de 3 heures, mais un délai supplémentaire vous est accordé). Vous devez effectuer le travail et déposer les fichiers finaux dans l’environnement d’apprentissage dans ce délai, sinon vous aurez un échec.&nbsp,Pour naviguer d’une question à l’autre, vous pourrez utiliser la fonction Navigation du test. Notez que le cahier de réponses (et autres fichiers, le cas échéant) devra être téléchargé dès que&nbsp,l’évaluation finale commencera. Le cahier de réponses (et autres fichiers) devra être déposé à la toute fin de l’évaluation.&nbsp,Vous pourrez consulter la note de votre évaluation finale dans l’environnement d’apprentissage dès que votre tutrice ou votre tuteur l’aura inscrite.&nbsp,L’évaluation finale demeure la propriété du Cégep à distance, elle ne vous sera donc pas retournée une fois&nbsp,corrigée.&nbsp,Entrevue téléphonique&nbsp,L’évaluation finale est suivie d’une&nbsp,entrevue téléphonique obligatoire&nbsp,qui vise à authentifier la démarche que vous avez effectuée lors de l’évaluation.&nbsp,Après avoir corrigé votre évaluation finale, votre tutrice ou votre tuteur communiquera avec vous afin de fixer le moment de l’entrevue. Celle-ci durera environ 10 minutes (prévoir un moment libre de 20&nbsp,minutes).&nbsp,Au moment de l’entrevue téléphonique, assurez-vous d’avoir sous la main&nbsp,toute&nbsp,la documentation&nbsp,relative à l’évaluation.&nbsp,Quand vous êtes prêt à commencer, cliquez sur le bouton&nbsp,Faire&nbsp,le test.&nbsp,Bon travail!&nbsp,
A97: 410-103-FD-60-01 | B97: 410-103-FD-60-01 • Fonctions de travail en comptabilité et en gestion | C97: 865 | D97: E1A | E97: Évaluation finale A | H97: 6 | I97: =IFERROR(SEARCH("faire*test",J97),0)+IFERROR(SEARCH("attempt*now",J97),0) -> 1045 | J97: Consignes techniquesAssurez-vous que votre navigateur Webest à jour.Toute votre documentation de cours estpermise.Lorsquevous commencerez l’évaluation finale, un compteur électronique sera lancé etenregistrera le temps écoulé jusqu’à concurrence de 6&nbsp,heures (la duréeprévue pour cette évaluation est de 3&nbsp,heures, mais un délaisupplémentaire vous est accordé). Vousdevez effectuer le travail et déposer le fichier final dans l’environnementd’apprentissage dans ce délai, sinon vous aurez un échec.S’ilsurvient des difficultés techniques inhabituelles (panne de réseau,d’électricité, etc.) ou une situation d’urgence pendant que vous réalisez votreévaluation, contactez votre tutrice ou votre tuteur dans les plus brefs délaispar la messagerie du Campus pour&nbsp,:·&nbsp,&nbsp,&nbsp,&nbsp,&nbsp, luienvoyer votre évaluation finale,·&nbsp,&nbsp,&nbsp,&nbsp,&nbsp, luiexpliquer votre problème technique.Cette étape est importante, car lemoment où vous envoyez votre évaluation finale permet de valider le temps quevous avez pris pour la faire. Ce facteur sera considéré dans l’analyse dela situation.Vous pourrez consulter la note devotre évaluation finale dans l’environnement d’apprentissage dès que votretutrice ou votre tuteur l’aura inscrite.L’évaluation finale demeure lapropriété du Cégep&nbsp,à&nbsp,distance, elle ne vous sera donc pas retournéeune fois corrigée.Quandvous êtes prêt à commencer, cliquez sur le bouton Faire le test.
A98: 410-103-FD-60-01 | B98: 410-103-FD-60-01 • Fonctions de travail en comptabilité et en gestion | C98: 865 | D98: E1B | E98: Évaluation finale B | H98: 6 | I98: =IFERROR(SEARCH("faire*test",J98),0)+IFERROR(SEARCH("attempt*now",J98),0) -> 1045 | J98: Consignes techniquesAssurez-vous que votre navigateur Webest à jour.Toute votre documentation de cours estpermise.Lorsquevous commencerez l’évaluation finale, un compteur électronique sera lancé etenregistrera le temps écoulé jusqu’à concurrence de 6&nbsp,heures (la duréeprévue pour cette évaluation est de 3&nbsp,heures, mais un délaisupplémentaire vous est accordé). Vousdevez effectuer le travail et déposer le fichier final dans l’environnementd’apprentissage dans ce délai, sinon vous aurez un échec.S’ilsurvient des difficultés techniques inhabituelles (panne de réseau,d’électricité, etc.) ou une situation d’urgence pendant que vous réalisez votreévaluation, contactez votre tutrice ou votre tuteur dans les plus brefs délaispar la messagerie du Campus pour&nbsp,:·&nbsp,&nbsp,&nbsp,&nbsp,&nbsp, luienvoyer votre évaluation finale,·&nbsp,&nbsp,&nbsp,&nbsp,&nbsp, luiexpliquer votre problème technique.Cette étape est importante, car lemoment où vous envoyez votre évaluation finale permet de valider le temps quevous avez pris pour la faire. Ce facteur sera considéré dans l’analyse dela situation.Vous pourrez consulter la note devotre évaluation finale dans l’environnement d’apprentissage dès que votretutrice ou votre tuteur l’aura inscrite.L’évaluation finale demeure lapropriété du Cégep&nbsp,à&nbsp,distance, elle ne vous sera donc pas retournéeune fois corrigée.Quandvous êtes prêt à commencer, cliquez sur le bouton Faire le test.
A99: 410-103-FD-65-01 | B99: 410-103-FD-65-01 • Work Functions in Accounting and Management | C99: 869 | D99: D1B | E99: Évaluation finale B | G99: Le idnumber correspond à un devoir et le nom correspond à un examen. Pourquoi ? | H99: 6 | I99: =IFERROR(SEARCH("faire*test",J99),0)+IFERROR(SEARCH("attempt*now",J99),0) -> 1316 | J99: General GuidelinesMake sure your Web browser isup to date.You are allowed to use all your coursematerials.The written exam will be timed electronically.You will have a maximum of 6&nbsp,hours to complete it. This includes anextra time allowance for possible downloading or uploading delays.You must complete the work and upload the finalfile to the learning environment within this time frame, otherwise, you will failthe exam. Keep an eye on the clock. You may want to set an alarm to notify you when youhave limited time (e.g., 30 minutes) remaining in your testing period.If you encounter any unusual technicaldifficulties (Internet outage, power outage, etc.) or if an emergency arisesduring the exam, contact your tutor as quickly as possible through the learningenvironment messaging system to:Submit your written exam.Explain your technical problem.This step is important because the time ofsubmission will confirm how long it took you to complete your final evaluation. This factor will beconsidered in our analysis of the situation.Once your tutor has entered your mark in thesystem, you will be able to consult it in the learning environment.Note that the written exam willremain the property of Cégep à distance. It will not be returned to you aftercorrection.When you are ready to startyour exam, click Attempt quiz now.
A100: 410-103-FD-65-01 | B100: 410-103-FD-65-01 • Work Functions in Accounting and Management | C100: 869 | D100: E1B | E100: Évaluation finale B | H100: 6 | I100: =IFERROR(SEARCH("faire*test",J100),0)+IFERROR(SEARCH("attempt*now",J100),0) -> 1316 | J100: General GuidelinesMake sure your Web browser isup to date.You are allowed to use all your coursematerials.The written exam will be timed electronically.You will have a maximum of 6&nbsp,hours to complete it. This includes anextra time allowance for possible downloading or uploading delays.You must complete the work and upload the finalfile to the learning environment within this time frame, otherwise, you will failthe exam. Keep an eye on the clock. You may want to set an alarm to notify you when youhave limited time (e.g., 30 minutes) remaining in your testing period.If you encounter any unusual technicaldifficulties (Internet outage, power outage, etc.) or if an emergency arisesduring the exam, contact your tutor as quickly as possible through the learningenvironment messaging system to:Submit your written exam.Explain your technical problem.This step is important because the time ofsubmission will confirm how long it took you to complete your final evaluation. This factor will beconsidered in our analysis of the situation.Once your tutor has entered your mark in thesystem, you will be able to consult it in the learning environment.Note that the written exam willremain the property of Cégep à distance. It will not be returned to you aftercorrection.When you are ready to startyour exam, click Attempt quiz now.
A101: 410-103-FD-65-01 | B101: 410-103-FD-65-01 • Work Functions in Accounting and Management | C101: 869 | D101: GUIDE | E101: Évaluation finale B | G101: Le idnumber correspond à un GUIDE et le nom correspond à un examen. Pourquoi ? | H101: 6 | I101: =IFERROR(SEARCH("faire*test",J101),0)+IFERROR(SEARCH("attempt*now",J101),0) -> 1316 | J101: General GuidelinesMake sure your Web browser isup to date.You are allowed to use all your coursematerials.The written exam will be timed electronically.You will have a maximum of 6&nbsp,hours to complete it. This includes anextra time allowance for possible downloading or uploading delays.You must complete the work and upload the finalfile to the learning environment within this time frame, otherwise, you will failthe exam. Keep an eye on the clock. You may want to set an alarm to notify you when youhave limited time (e.g., 30 minutes) remaining in your testing period.If you encounter any unusual technicaldifficulties (Internet outage, power outage, etc.) or if an emergency arisesduring the exam, contact your tutor as quickly as possible through the learningenvironment messaging system to:Submit your written exam.Explain your technical problem.This step is important because the time ofsubmission will confirm how long it took you to complete your final evaluation. This factor will beconsidered in our analysis of the situation.Once your tutor has entered your mark in thesystem, you will be able to consult it in the learning environment.Note that the written exam willremain the property of Cégep à distance. It will not be returned to you aftercorrection.When you are ready to startyour exam, click Attempt quiz now.
A102: 861-EUF-FD-60-01 | B102: 861-EUF-FD-60-01 • Aide à la réussite de l’épreuve uniforme de français | C102: 507 | D102: E1B | E102: Évaluation finale B | H102: 10 | I102: =IFERROR(SEARCH("faire*test",J102),0)+IFERROR(SEARCH("attempt*now",J102),0) -> 1610 | J102: ConsignesAssurez-vous que votre navigateur Web est à jour.&nbsp,Note&nbsp,: exceptionnellement, vous réaliserez la simulation de l’épreuve uniforme de français en ligne. La réelle épreuve uniforme de français (EUF), elle, aura lieu dans un centre de passation.&nbsp,&nbsp,Puisque cette simulation a pour objectif de vous préparer pour la réelle épreuve,&nbsp,nous vous recommandons de reproduire avec autant d’exactitude que possible le réel&nbsp,contexte de l’EUF.&nbsp,Assurez-vous d’avoir réalisé les activités&nbsp,1 à 4 du module&nbsp,6 avant de commencer&nbsp,cette évaluation finale. Elles visent à vous préparer à&nbsp,la&nbsp,simulation et à la&nbsp,postsimulation.&nbsp,Simulation (partie&nbsp,1 de l’évaluation finale)Tout comme lors de la réelle épreuve, vous devrez rédiger, à partir de textes littéraires, une dissertation critique d’environ 900 mots comportant moins de 30 fautes. Lorsque vous commencerez la partie&nbsp,1 de l’évaluation finale, un compteur électronique sera lancé et enregistrera le temps écoulé jusqu’à concurrence de 10&nbsp,heures (comme pour la réelle épreuve uniforme de français, la durée prévue pour la simulation est de 4&nbsp,heures 30&nbsp,minutes, mais, étant donné le contexte en ligne, un délai supplémentaire vous est accordé).&nbsp,Vous devez effectuer le travail et déposer les fichiers finaux dans l’environnement d’apprentissage dans ce délai.&nbsp,Postsimulation (partie 2&nbsp,de l’évaluation finale)La simulation&nbsp,sera&nbsp,suivie d’une&nbsp,postsimulation&nbsp,au téléphone avec votre tutrice ou votre tuteur, qui consiste en une discussion afin de faire un retour sur votre expérience de simulation et de vous assurer d’être prêt pour la vraie épreuve.&nbsp,&nbsp,Dès que la note de votre simulation sera disponible dans l’environnement d’apprentissage, vous pourrez contacter&nbsp,votre tutrice ou votre tuteur&nbsp,afin de fixer le moment de la&nbsp,postsimulation.&nbsp,Au moment de la&nbsp,postsimulation, assurez-vous d’avoir sous la main toute la documentation relative à la simulation.&nbsp,Quand vous êtes prêt à commencer, cliquez sur le bouton&nbsp,Faire le test.&nbsp,
A103: 861-EUF-FD-60-01 | B103: 861-EUF-FD-60-01 • Aide à la réussite de l’épreuve uniforme de français | C103: 507 | D103: E1D | E103: Évaluation finale B | H103: 10 | I103: =IFERROR(SEARCH("faire*test",J103),0)+IFERROR(SEARCH("attempt*now",J103),0) -> 1610 | J103: ConsignesAssurez-vous que votre navigateur Web est à jour.&nbsp,Note&nbsp,: exceptionnellement, vous réaliserez la simulation de l’épreuve uniforme de français en ligne. La réelle épreuve uniforme de français (EUF), elle, aura lieu dans un centre de passation.&nbsp,&nbsp,Puisque cette simulation a pour objectif de vous préparer pour la réelle épreuve,&nbsp,nous vous recommandons de reproduire avec autant d’exactitude que possible le réel&nbsp,contexte de l’EUF.&nbsp,Assurez-vous d’avoir réalisé les activités&nbsp,1 à 4 du module&nbsp,6 avant de commencer&nbsp,cette évaluation finale. Elles visent à vous préparer à&nbsp,la&nbsp,simulation et à la&nbsp,postsimulation.&nbsp,Simulation (partie&nbsp,1 de l’évaluation finale)Tout comme lors de la réelle épreuve, vous devrez rédiger, à partir de textes littéraires, une dissertation critique d’environ 900 mots comportant moins de 30 fautes. Lorsque vous commencerez la partie&nbsp,1 de l’évaluation finale, un compteur électronique sera lancé et enregistrera le temps écoulé jusqu’à concurrence de 10&nbsp,heures (comme pour la réelle épreuve uniforme de français, la durée prévue pour la simulation est de 4&nbsp,heures 30&nbsp,minutes, mais, étant donné le contexte en ligne, un délai supplémentaire vous est accordé).&nbsp,Vous devez effectuer le travail et déposer les fichiers finaux dans l’environnement d’apprentissage dans ce délai.&nbsp,Postsimulation (partie 2&nbsp,de l’évaluation finale)La simulation&nbsp,sera&nbsp,suivie d’une&nbsp,postsimulation&nbsp,au téléphone avec votre tutrice ou votre tuteur, qui consiste en une discussion afin de faire un retour sur votre expérience de simulation et de vous assurer d’être prêt pour la vraie épreuve.&nbsp,&nbsp,Dès que la note de votre simulation sera disponible dans l’environnement d’apprentissage, vous pourrez contacter&nbsp,votre tutrice ou votre tuteur&nbsp,afin de fixer le moment de la&nbsp,postsimulation.&nbsp,Au moment de la&nbsp,postsimulation, assurez-vous d’avoir sous la main toute la documentation relative à la simulation.&nbsp,Quand vous êtes prêt à commencer, cliquez sur le bouton&nbsp,Faire le test.&nbsp,
A104: 203-FPG-03-60-01 | B104: 203-FPG-03-60-01 • Astronomie | C104: 225 | D104: E1C | E104: Évaluation finale C | H104: 6 | I104: =IFERROR(SEARCH("faire*test",J104),0)+IFERROR(SEARCH("attempt*now",J104),0) -> 1728 | J104: Consignes techniques Assurez-vous que votre navigateur Web est à jour.Rappelez-vous que : Toute votre documentation de cours est permise. Le cherche-étoiles est requis.Lorsque vous commencerez l’évaluation finale, un compteur électronique sera lancé et enregistrera le temps écoulé jusqu’à concurrence de 6 heures (la durée prévue pourcette évaluation est de 3&nbsp,heures, mais un délai supplémentaire vous estaccordé). Vous devez effectuer le travail et déposer les fichiers finaux dans l’environnement d’apprentissage dans ce délai, sinon vous aurez un échec. Pour naviguer d’une question à l’autre, vous pourrez utiliser la fonction Navigation du test. Notez que le cahier de réponses (et autres fichiers, le cas échéant) devra être téléchargé dès que l’évaluation finale commencera. Le cahier de réponses (et autres fichiers) devra être déposé à la toute fin de l’évaluation. Vous pourrez consulter la note de votre évaluation finale dans l’environnement d’apprentissage dès que votre tutrice ou votre tuteur l’aura inscrite. L’évaluation finale demeure la propriété du Cégep à distance, elle ne vous sera donc pas retournée une fois corrigée. Entrevue téléphonique L’évaluation finale est suivie d’une entrevue téléphonique obligatoire qui vise à authentifier la démarche que vous avez effectuée lors de l’évaluation. Après avoir corrigé votre évaluation finale,votre tutrice ou votre tuteur communiquera avec vous afin de fixer le moment del’entrevue. Celle-ci durera environ 10&nbsp,minutes (prévoir un moment libre de20&nbsp,minutes). Au moment de l’entrevue téléphonique, assurez-vous d’avoir sous la main toute la documentation relative à l’évaluation. Quand vous êtes prêt à commencer, cliquez sur le bouton Faire le test. Bon travail!
A105: 350-FPF-03-10-01 | B105: 350-FPF-03-10-01 • Émotions et adaptation (sciences humaines, Ensemble 2) | C105: 331 | D105: E1C | E105: Évaluation finale C | H105: 6 | I105: =IFERROR(SEARCH("faire*test",J105),0)+IFERROR(SEARCH("attempt*now",J105),0) -> 1698 | J105: Consignes techniques Assurez-vous que votre navigateur Web est à jour.Rappelez-vous que : Toute votre documentation de cours est permise. Lorsque vous commencerez l’évaluation finale, un compteur électronique sera lancé et enregistrera le temps écoulé jusqu’à concurrence de 6 heures (la durée prévue pourcette évaluation est de 3&nbsp,heures, mais un délai supplémentaire vous estaccordé). Vous devez effectuer le travail et déposer les fichiers finaux dans l’environnement d’apprentissage dans ce délai, sinon vous aurez un échec. Pour naviguer d’une question à l’autre, vous pourrez utiliser la fonction Navigation du test. Notez que le cahier de réponses (et autres fichiers, le cas échéant) devra être téléchargé dès que l’évaluation finale commencera. Le cahier de réponses (et autres fichiers) devra être déposé à la toute fin de l’évaluation. Vous pourrez consulter la note de votre évaluation finale dans l’environnement d’apprentissage dès que votre tutrice ou votre tuteur l’aura inscrite. L’évaluation finale demeure la propriété du Cégep à distance, elle ne vous sera donc pas retournée une fois corrigée. Entrevue téléphonique L’évaluation finale est suivie d’une entrevue téléphonique obligatoire qui vise à authentifier la démarche que vous avez effectuée lors de l’évaluation. Après avoir corrigé votre évaluation finale,votre tutrice ou votre tuteur communiquera avec vous afin de fixer le moment del’entrevue. Celle-ci durera environ 10&nbsp,minutes (prévoir un moment libre de20&nbsp,minutes). Au moment de l’entrevue téléphonique, assurez-vous d’avoir sous la main toute la documentation relative à l’évaluation. Quand vous êtes prêt à commencer, cliquez sur le bouton Faire le test. Bon travail!
A106: 385-FPF-03-10-02 | B106: 385-FPF-03-10-02 • La démocratie au Québec, ensemble 2 | C106: 333 | D106: E1C | E106: Évaluation finale C | H106: 6 | I106: =IFERROR(SEARCH("faire*test",J106),0)+IFERROR(SEARCH("attempt*now",J106),0) -> 1698 | J106: Consignes techniques Assurez-vous que votre navigateur Web est à jour.Rappelez-vous que : Toute votre documentation de cours est permise. Lorsque vous commencerez l’évaluation finale, un compteur électronique sera lancé et enregistrera le temps écoulé jusqu’à concurrence de 6 heures (la durée prévue pourcette évaluation est de 3&nbsp,heures, mais un délai supplémentaire vous estaccordé). Vous devez effectuer le travail et déposer les fichiers finaux dans l’environnement d’apprentissage dans ce délai, sinon vous aurez un échec. Pour naviguer d’une question à l’autre, vous pourrez utiliser la fonction Navigation du test. Notez que le cahier de réponses (et autres fichiers, le cas échéant) devra être téléchargé dès que l’évaluation finale commencera. Le cahier de réponses (et autres fichiers) devra être déposé à la toute fin de l’évaluation. Vous pourrez consulter la note de votre évaluation finale dans l’environnement d’apprentissage dès que votre tutrice ou votre tuteur l’aura inscrite. L’évaluation finale demeure la propriété du Cégep à distance, elle ne vous sera donc pas retournée une fois corrigée. Entrevue téléphonique L’évaluation finale est suivie d’une entrevue téléphonique obligatoire qui vise à authentifier la démarche que vous avez effectuée lors de l’évaluation. Après avoir corrigé votre évaluation finale,votre tutrice ou votre tuteur communiquera avec vous afin de fixer le moment del’entrevue. Celle-ci durera environ 10&nbsp,minutes (prévoir un moment libre de20&nbsp,minutes). Au moment de l’entrevue téléphonique, assurez-vous d’avoir sous la main toute la documentation relative à l’évaluation. Quand vous êtes prêt à commencer, cliquez sur le bouton Faire le test. Bon travail!
A107: 385-FPF-03-10-02 | B107: 385-FPF-03-10-02 • La démocratie au Québec, ensemble 2 | C107: 333 | D107: E1I | E107: Évaluation finale C | H107: 6 | I107: =IFERROR(SEARCH("faire*test",J107),0)+IFERROR(SEARCH("attempt*now",J107),0) -> 1698 | J107: Consignes techniques Assurez-vous que votre navigateur Web est à jour.Rappelez-vous que : Toute votre documentation de cours est permise. Lorsque vous commencerez l’évaluation finale, un compteur électronique sera lancé et enregistrera le temps écoulé jusqu’à concurrence de 6 heures (la durée prévue pourcette évaluation est de 3&nbsp,heures, mais un délai supplémentaire vous estaccordé). Vous devez effectuer le travail et déposer les fichiers finaux dans l’environnement d’apprentissage dans ce délai, sinon vous aurez un échec. Pour naviguer d’une question à l’autre, vous pourrez utiliser la fonction Navigation du test. Notez que le cahier de réponses (et autres fichiers, le cas échéant) devra être téléchargé dès que l’évaluation finale commencera. Le cahier de réponses (et autres fichiers) devra être déposé à la toute fin de l’évaluation. Vous pourrez consulter la note de votre évaluation finale dans l’environnement d’apprentissage dès que votre tutrice ou votre tuteur l’aura inscrite. L’évaluation finale demeure la propriété du Cégep à distance, elle ne vous sera donc pas retournée une fois corrigée. Entrevue téléphonique L’évaluation finale est suivie d’une entrevue téléphonique obligatoire qui vise à authentifier la démarche que vous avez effectuée lors de l’évaluation. Après avoir corrigé votre évaluation finale,votre tutrice ou votre tuteur communiquera avec vous afin de fixer le moment del’entrevue. Celle-ci durera environ 10&nbsp,minutes (prévoir un moment libre de20&nbsp,minutes). Au moment de l’entrevue téléphonique, assurez-vous d’avoir sous la main toute la documentation relative à l’évaluation. Quand vous êtes prêt à commencer, cliquez sur le bouton Faire le test. Bon travail!
A108: 385-FPF-03-60-01 | B108: 385-FPF-03-60-01 • La démocratie au Québec | C108: 625 | D108: E1C | E108: Évaluation finale C | H108: 6 | I108: =IFERROR(SEARCH("faire*test",J108),0)+IFERROR(SEARCH("attempt*now",J108),0) -> 1700 | J108: Consignes techniquesAssurez-vous que votre navigateur Web est à jour.Rappelez-vous que&nbsp,:Toute votre documentation de cours est permise.Lorsque vous commencerez l’évaluation finale, un compteur électronique sera lancé et enregistrera le temps écoulé jusqu’à concurrence de 6 heures (la durée prévue pour cette évaluation est de 3&nbsp,heures, mais un délai supplémentaire vous est accordé). Vous devez effectuer le travail et déposer les fichiers finaux dans l’environnement d’apprentissage dans ce délai, sinon vous aurez un échec.Pour naviguer d’une question à l’autre, vous pourrez utiliser la fonction Navigation du test. Notez que le cahier de réponses (et autres fichiers, le cas échéant) devra être téléchargé dès que l’évaluation finale commencera. Le cahier de réponses (et autres fichiers) devra être déposé à la toute fin de l’évaluation.Vous pourrez consulter la note de votre évaluation finale dans l’environnement d’apprentissage dès que votre tutrice ou votre tuteur l’aura inscrite.L’évaluation finale demeure la propriété du Cégep&nbsp,à&nbsp,distance, elle ne vous sera donc pas retournée une fois corrigée.Entrevue téléphoniqueL’évaluation finale est suivie d’une entrevue téléphonique obligatoire qui vise à authentifier la démarche que vous avez effectuée lors de l’évaluation.Après avoir corrigé votre évaluation finale, votre tutrice ou votre tuteur communiquera avec vous afin de fixer le moment de l’entrevue. Celle-ci durera environ 10&nbsp,minutes (prévoir un moment libre de 20&nbsp,minutes).Au moment de l’entrevue téléphonique, assurez-vous d’avoir sous la main toute la documentation relative à l’évaluation.Quand vous êtes prêt à commencer, cliquez sur le bouton Faire le test.Bon travail!
A109: 385-FPF-03-60-01 | B109: 385-FPF-03-60-01 • La démocratie au Québec | C109: 625 | D109: E1D | E109: Évaluation finale C | H109: 6 | I109: =IFERROR(SEARCH("faire*test",J109),0)+IFERROR(SEARCH("attempt*now",J109),0) -> 1700 | J109: Consignes techniquesAssurez-vous que votre navigateur Web est à jour.Rappelez-vous que&nbsp,:Toute votre documentation de cours est permise.Lorsque vous commencerez l’évaluation finale, un compteur électronique sera lancé et enregistrera le temps écoulé jusqu’à concurrence de 6 heures (la durée prévue pour cette évaluation est de 3&nbsp,heures, mais un délai supplémentaire vous est accordé). Vous devez effectuer le travail et déposer les fichiers finaux dans l’environnement d’apprentissage dans ce délai, sinon vous aurez un échec.Pour naviguer d’une question à l’autre, vous pourrez utiliser la fonction Navigation du test. Notez que le cahier de réponses (et autres fichiers, le cas échéant) devra être téléchargé dès que l’évaluation finale commencera. Le cahier de réponses (et autres fichiers) devra être déposé à la toute fin de l’évaluation.Vous pourrez consulter la note de votre évaluation finale dans l’environnement d’apprentissage dès que votre tutrice ou votre tuteur l’aura inscrite.L’évaluation finale demeure la propriété du Cégep&nbsp,à&nbsp,distance, elle ne vous sera donc pas retournée une fois corrigée.Entrevue téléphoniqueL’évaluation finale est suivie d’une entrevue téléphonique obligatoire qui vise à authentifier la démarche que vous avez effectuée lors de l’évaluation.Après avoir corrigé votre évaluation finale, votre tutrice ou votre tuteur communiquera avec vous afin de fixer le moment de l’entrevue. Celle-ci durera environ 10&nbsp,minutes (prévoir un moment libre de 20&nbsp,minutes).Au moment de l’entrevue téléphonique, assurez-vous d’avoir sous la main toute la documentation relative à l’évaluation.Quand vous êtes prêt à commencer, cliquez sur le bouton Faire le test.Bon travail!
A110: 410-410-FD-10-01 | B110: 410-410-FD-10-01 • Gestion des opérations | C110: 337 | D110: D2F | E110: Évaluation Finale C | G110: Le idnumber correspond à un devoir et le nom correspond à un examen. Pourquoi ? | H110: 6 | I110: =IFERROR(SEARCH("faire*test",J110),0)+IFERROR(SEARCH("attempt*now",J110),0) -> 1859 | J110: Consignes&nbsp,techniques&nbsp,Assurez-vous que votre navigateur Web est à jour.&nbsp,Rappelez-vous que :&nbsp,Toute votre&nbsp,documentation&nbsp,de cours est permise.&nbsp,Lorsque vous commencerez l’évaluation finale, un compteur électronique sera lancé et enregistrera le temps écoulé jusqu’à concurrence de 6 heures&nbsp,(la durée prévue&nbsp,pour&nbsp,cette évaluation est de 3 heures, mais un&nbsp,délai&nbsp,supplémentaire vous est accordé).&nbsp,Vous devez effectuer le travail et déposer les fichiers finaux dans l’environnement d’apprentissage dans ce délai, sinon vous aurez un échec.&nbsp,Pour naviguer d’une question à l’autre, vous pourrez utiliser la fonction Navigation du test. Notez que le cahier de réponses (et autres fichiers, le cas échéant) devra être téléchargé dès que l’évaluation finale commencera. Le cahier de réponses (et autres fichiers) devra être déposé à la toute fin de l’évaluation.&nbsp,&nbsp,&nbsp,Vous pourrez consulter la note de votre&nbsp,évaluation finale&nbsp,dans l’environnement d’apprentissage dès que votre tutrice ou votre tuteur l’aura inscrite.&nbsp,L’évaluation finale&nbsp,demeure la propriété du Cégep à distance,&nbsp,elle&nbsp,ne vous sera donc pas retournée&nbsp,une fois corrigée.&nbsp,Entrevue téléphonique&nbsp,L’évaluation finale est suivie d’une&nbsp,entrevue téléphonique obligatoire&nbsp,qui vise à authentifier la démarche que vous avez effectuée lors de l’évaluation.&nbsp,Après avoir corrigé votre évaluation finale, votre tutrice ou votre tuteur communiquera avec vous afin de fixer le moment de l’entrevue. Celle-ci durera environ 10 minutes (prévoir un moment libre de 20 minutes).&nbsp,Au moment de l’entrevue téléphonique, assurez-vous d’avoir sous la main&nbsp,toute&nbsp,la documentation&nbsp,relative à l’évaluation.&nbsp,Quand vous êtes prêt à commencer, cliquez sur le bouton&nbsp,Faire&nbsp,le test.&nbsp,Bon travail!&nbsp,
A111: 410-410-FD-10-01 | B111: 410-410-FD-10-01 • Gestion des opérations | C111: 337 | D111: E1C | E111: Évaluation Finale C | H111: 6 | I111: =IFERROR(SEARCH("faire*test",J111),0)+IFERROR(SEARCH("attempt*now",J111),0) -> 1859 | J111: Consignes&nbsp,techniques&nbsp,Assurez-vous que votre navigateur Web est à jour.&nbsp,Rappelez-vous que :&nbsp,Toute votre&nbsp,documentation&nbsp,de cours est permise.&nbsp,Lorsque vous commencerez l’évaluation finale, un compteur électronique sera lancé et enregistrera le temps écoulé jusqu’à concurrence de 6 heures&nbsp,(la durée prévue&nbsp,pour&nbsp,cette évaluation est de 3 heures, mais un&nbsp,délai&nbsp,supplémentaire vous est accordé).&nbsp,Vous devez effectuer le travail et déposer les fichiers finaux dans l’environnement d’apprentissage dans ce délai, sinon vous aurez un échec.&nbsp,Pour naviguer d’une question à l’autre, vous pourrez utiliser la fonction Navigation du test. Notez que le cahier de réponses (et autres fichiers, le cas échéant) devra être téléchargé dès que l’évaluation finale commencera. Le cahier de réponses (et autres fichiers) devra être déposé à la toute fin de l’évaluation.&nbsp,&nbsp,&nbsp,Vous pourrez consulter la note de votre&nbsp,évaluation finale&nbsp,dans l’environnement d’apprentissage dès que votre tutrice ou votre tuteur l’aura inscrite.&nbsp,L’évaluation finale&nbsp,demeure la propriété du Cégep à distance,&nbsp,elle&nbsp,ne vous sera donc pas retournée&nbsp,une fois corrigée.&nbsp,Entrevue téléphonique&nbsp,L’évaluation finale est suivie d’une&nbsp,entrevue téléphonique obligatoire&nbsp,qui vise à authentifier la démarche que vous avez effectuée lors de l’évaluation.&nbsp,Après avoir corrigé votre évaluation finale, votre tutrice ou votre tuteur communiquera avec vous afin de fixer le moment de l’entrevue. Celle-ci durera environ 10 minutes (prévoir un moment libre de 20 minutes).&nbsp,Au moment de l’entrevue téléphonique, assurez-vous d’avoir sous la main&nbsp,toute&nbsp,la documentation&nbsp,relative à l’évaluation.&nbsp,Quand vous êtes prêt à commencer, cliquez sur le bouton&nbsp,Faire&nbsp,le test.&nbsp,Bon travail!&nbsp,
A112: 410-501-FD-10-01 | B112: 410-501-FD-10-01 • Commerce de détail 1 | C112: 338 | D112: D4F | E112: Évaluation finale C | G112: Le idnumber correspond à un devoir et le nom correspond à un examen. Pourquoi ? | H112: 6 | I112: =IFERROR(SEARCH("faire*test",J112),0)+IFERROR(SEARCH("attempt*now",J112),0) -> 1878 | J112: Consignes&nbsp,techniques&nbsp, Assurez-vous que votre navigateur Web est à jour.&nbsp, Rappelez-vous que :&nbsp, Toute votre&nbsp,documentation&nbsp,de cours est permise.&nbsp, Lorsque vous commencerez l’évaluation finale, un compteur électronique sera lancé et enregistrera le temps écoulé jusqu’à concurrence de 6 heures&nbsp,(la durée prévue&nbsp,pour&nbsp,cette évaluation est de 3 heures, mais un&nbsp,délai&nbsp,supplémentaire vous est accordé).&nbsp,Vous devez effectuer le travail et déposer les fichiers finaux dans l’environnement d’apprentissage dans ce délai, sinon vous aurez un échec.&nbsp, Pour naviguer d’une question à l’autre, vous pourrez utiliser la fonction Navigation du test. Notez que le cahier de réponses (et autres fichiers, le cas échéant) devra être téléchargé dès que l’évaluation finale commencera. Le cahier de réponses (et autres fichiers) devra être déposé à la toute fin de l’évaluation.&nbsp, &nbsp,&nbsp, Vous pourrez consulter la note de votre&nbsp,évaluation finale&nbsp,dans l’environnement d’apprentissage dès que votre tutrice ou votre tuteur l’aura inscrite.&nbsp, L’évaluation finale&nbsp,demeure la propriété du Cégep à distance,&nbsp,elle&nbsp,ne vous sera donc pas retournée&nbsp,une fois corrigée.&nbsp, Entrevue téléphonique&nbsp, L’évaluation finale est suivie d’une&nbsp,entrevue téléphonique obligatoire&nbsp,qui vise à authentifier la démarche que vous avez effectuée lors de l’évaluation.&nbsp, Après avoir corrigé votre évaluation finale, votre tutrice ou votre tuteur communiquera avec vous afin de fixer le moment de l’entrevue. Celle-ci durera environ 10 minutes (prévoir un moment libre de 20 minutes).&nbsp, Au moment de l’entrevue téléphonique, assurez-vous d’avoir sous la main&nbsp,toute&nbsp,la documentation&nbsp,relative à l’évaluation.&nbsp, Quand vous êtes prêt à commencer, cliquez sur le bouton&nbsp,Faire&nbsp,le test.&nbsp, Bon travail!&nbsp,
A113: 410-501-FD-10-01 | B113: 410-501-FD-10-01 • Commerce de détail 1 | C113: 338 | D113: E1C | E113: Évaluation finale C | H113: 6 | I113: =IFERROR(SEARCH("faire*test",J113),0)+IFERROR(SEARCH("attempt*now",J113),0) -> 1878 | J113: Consignes&nbsp,techniques&nbsp, Assurez-vous que votre navigateur Web est à jour.&nbsp, Rappelez-vous que :&nbsp, Toute votre&nbsp,documentation&nbsp,de cours est permise.&nbsp, Lorsque vous commencerez l’évaluation finale, un compteur électronique sera lancé et enregistrera le temps écoulé jusqu’à concurrence de 6 heures&nbsp,(la durée prévue&nbsp,pour&nbsp,cette évaluation est de 3 heures, mais un&nbsp,délai&nbsp,supplémentaire vous est accordé).&nbsp,Vous devez effectuer le travail et déposer les fichiers finaux dans l’environnement d’apprentissage dans ce délai, sinon vous aurez un échec.&nbsp, Pour naviguer d’une question à l’autre, vous pourrez utiliser la fonction Navigation du test. Notez que le cahier de réponses (et autres fichiers, le cas échéant) devra être téléchargé dès que l’évaluation finale commencera. Le cahier de réponses (et autres fichiers) devra être déposé à la toute fin de l’évaluation.&nbsp, &nbsp,&nbsp, Vous pourrez consulter la note de votre&nbsp,évaluation finale&nbsp,dans l’environnement d’apprentissage dès que votre tutrice ou votre tuteur l’aura inscrite.&nbsp, L’évaluation finale&nbsp,demeure la propriété du Cégep à distance,&nbsp,elle&nbsp,ne vous sera donc pas retournée&nbsp,une fois corrigée.&nbsp, Entrevue téléphonique&nbsp, L’évaluation finale est suivie d’une&nbsp,entrevue téléphonique obligatoire&nbsp,qui vise à authentifier la démarche que vous avez effectuée lors de l’évaluation.&nbsp, Après avoir corrigé votre évaluation finale, votre tutrice ou votre tuteur communiquera avec vous afin de fixer le moment de l’entrevue. Celle-ci durera environ 10 minutes (prévoir un moment libre de 20 minutes).&nbsp, Au moment de l’entrevue téléphonique, assurez-vous d’avoir sous la main&nbsp,toute&nbsp,la documentation&nbsp,relative à l’évaluation.&nbsp, Quand vous êtes prêt à commencer, cliquez sur le bouton&nbsp,Faire&nbsp,le test.&nbsp, Bon travail!&nbsp,
A114: 410-551-FD-10-01 | B114: 410-551-FD-10-01 • Méthodologie quantitative appliquée | C114: 358 | D114: D4F | E114: Évaluation finale C | G114: Le idnumber correspond à un devoir et le nom correspond à un examen. Pourquoi ? | H114: 7 | I114: =IFERROR(SEARCH("faire*test",J114),0)+IFERROR(SEARCH("attempt*now",J114),0) -> 1903 | J114: Consignes&nbsp,techniques&nbsp,Assurez-vous que votre navigateur Web est à jour.&nbsp,Rappelez-vous que :&nbsp,Toute votre&nbsp,documentation&nbsp,de cours est permise.&nbsp,Lorsque vous commencerez l’évaluation finale, un compteur électronique sera lancé et enregistrera le temps écoulé jusqu’à concurrence de&nbsp,7&nbsp,heures&nbsp,(la durée prévue pour cette évaluation est de 3&nbsp,heures, mais un délai supplémentaire vous est accordé).&nbsp,Vous devez effectuer le travail et déposer les fichiers finaux dans l’environnement d’apprentissage dans ce délai, sinon vous aurez un échec.&nbsp,Vous devrez inscrire vos réponses à la main sur des feuilles mobiles. Lorsque vous aurez terminé votre évaluation finale, vous devrez numériser ces feuilles et les déposer dans l’environnement d’apprentissage.&nbsp,Pour naviguer d’une question à l’autre, vous pourrez utiliser la fonction Navigation du test.&nbsp,L’évaluation finale devra être déposée à la toute fin.&nbsp,Vous pourrez consulter la note de votre&nbsp,évaluation finale&nbsp,dans l’environnement d’apprentissage dès que votre tutrice ou votre tuteur l’aura inscrite.&nbsp,L’évaluation finale&nbsp,demeure la propriété du Cégep à distance,&nbsp,elle&nbsp,ne vous sera donc pas retournée&nbsp,une fois corrigée.&nbsp,Entrevue téléphonique&nbsp,L’évaluation finale est suivie d’une&nbsp,entrevue téléphonique obligatoire&nbsp,qui vise à authentifier la démarche que vous avez effectuée lors de l’évaluation.&nbsp,Après avoir corrigé votre évaluation finale, votre tutrice ou votre tuteur communiquera avec vous afin de fixer le moment de l’entrevue. Celle-ci durera environ 10&nbsp,minutes (prévoir un moment libre de 20&nbsp,minutes).&nbsp,Au moment de l’entrevue téléphonique, assurez-vous d’avoir sous la main&nbsp,toute&nbsp,la documentation&nbsp,relative à l’évaluation.&nbsp,Quand vous êtes prêt à commencer, cliquez sur le bouton&nbsp,Faire&nbsp,le test.&nbsp,Bon travail!&nbsp,
A115: 410-551-FD-10-01 | B115: 410-551-FD-10-01 • Méthodologie quantitative appliquée | C115: 358 | D115: E1C | E115: Évaluation finale C | H115: 7 | I115: =IFERROR(SEARCH("faire*test",J115),0)+IFERROR(SEARCH("attempt*now",J115),0) -> 1903 | J115: Consignes&nbsp,techniques&nbsp,Assurez-vous que votre navigateur Web est à jour.&nbsp,Rappelez-vous que :&nbsp,Toute votre&nbsp,documentation&nbsp,de cours est permise.&nbsp,Lorsque vous commencerez l’évaluation finale, un compteur électronique sera lancé et enregistrera le temps écoulé jusqu’à concurrence de&nbsp,7&nbsp,heures&nbsp,(la durée prévue pour cette évaluation est de 3&nbsp,heures, mais un délai supplémentaire vous est accordé).&nbsp,Vous devez effectuer le travail et déposer les fichiers finaux dans l’environnement d’apprentissage dans ce délai, sinon vous aurez un échec.&nbsp,Vous devrez inscrire vos réponses à la main sur des feuilles mobiles. Lorsque vous aurez terminé votre évaluation finale, vous devrez numériser ces feuilles et les déposer dans l’environnement d’apprentissage.&nbsp,Pour naviguer d’une question à l’autre, vous pourrez utiliser la fonction Navigation du test.&nbsp,L’évaluation finale devra être déposée à la toute fin.&nbsp,Vous pourrez consulter la note de votre&nbsp,évaluation finale&nbsp,dans l’environnement d’apprentissage dès que votre tutrice ou votre tuteur l’aura inscrite.&nbsp,L’évaluation finale&nbsp,demeure la propriété du Cégep à distance,&nbsp,elle&nbsp,ne vous sera donc pas retournée&nbsp,une fois corrigée.&nbsp,Entrevue téléphonique&nbsp,L’évaluation finale est suivie d’une&nbsp,entrevue téléphonique obligatoire&nbsp,qui vise à authentifier la démarche que vous avez effectuée lors de l’évaluation.&nbsp,Après avoir corrigé votre évaluation finale, votre tutrice ou votre tuteur communiquera avec vous afin de fixer le moment de l’entrevue. Celle-ci durera environ 10&nbsp,minutes (prévoir un moment libre de 20&nbsp,minutes).&nbsp,Au moment de l’entrevue téléphonique, assurez-vous d’avoir sous la main&nbsp,toute&nbsp,la documentation&nbsp,relative à l’évaluation.&nbsp,Quand vous êtes prêt à commencer, cliquez sur le bouton&nbsp,Faire&nbsp,le test.&nbsp,Bon travail!&nbsp,
A116: 410-623-FD-10-01 | B116: 410-623-FD-10-01 • Éléments de contrôle interne et de vérification | C116: 360 | D116: D1C | E116: Évaluation finale C | G116: Le idnumber correspond à un devoir et le nom correspond à un examen. Pourquoi ? | H116: 6 | I116: =IFERROR(SEARCH("faire*test",J116),0)+IFERROR(SEARCH("attempt*now",J116),0) -> 1698 | J116: Consignes techniques Assurez-vous que votre navigateur Web est à jour.Rappelez-vous que : Toute votre documentation de cours est permise. Lorsque vous commencerez l’évaluation finale, un compteur électronique sera lancé et enregistrera le temps écoulé jusqu’à concurrence de 6 heures (la durée prévue pourcette évaluation est de 3&nbsp,heures, mais un délai supplémentaire vous estaccordé). Vous devez effectuer le travail et déposer les fichiers finaux dans l’environnement d’apprentissage dans ce délai, sinon vous aurez un échec. Pour naviguer d’une question à l’autre, vous pourrez utiliser la fonction Navigation du test. Notez que le cahier de réponses (et autres fichiers, le cas échéant) devra être téléchargé dès que l’évaluation finale commencera. Le cahier de réponses (et autres fichiers) devra être déposé à la toute fin de l’évaluation. Vous pourrez consulter la note de votre évaluation finale dans l’environnement d’apprentissage dès que votre tutrice ou votre tuteur l’aura inscrite. L’évaluation finale demeure la propriété du Cégep à distance, elle ne vous sera donc pas retournée une fois corrigée. Entrevue téléphonique L’évaluation finale est suivie d’une entrevue téléphonique obligatoire qui vise à authentifier la démarche que vous avez effectuée lors de l’évaluation. Après avoir corrigé votre évaluation finale,votre tutrice ou votre tuteur communiquera avec vous afin de fixer le moment del’entrevue. Celle-ci durera environ 10&nbsp,minutes (prévoir un moment libre de20&nbsp,minutes). Au moment de l’entrevue téléphonique, assurez-vous d’avoir sous la main toute la documentation relative à l’évaluation. Quand vous êtes prêt à commencer, cliquez sur le bouton Faire le test. Bon travail!
A117: 410-623-FD-10-01 | B117: 410-623-FD-10-01 • Éléments de contrôle interne et de vérification | C117: 360 | D117: E1C | E117: Évaluation finale C | H117: 6 | I117: =IFERROR(SEARCH("faire*test",J117),0)+IFERROR(SEARCH("attempt*now",J117),0) -> 1698 | J117: Consignes techniques Assurez-vous que votre navigateur Web est à jour.Rappelez-vous que : Toute votre documentation de cours est permise. Lorsque vous commencerez l’évaluation finale, un compteur électronique sera lancé et enregistrera le temps écoulé jusqu’à concurrence de 6 heures (la durée prévue pourcette évaluation est de 3&nbsp,heures, mais un délai supplémentaire vous estaccordé). Vous devez effectuer le travail et déposer les fichiers finaux dans l’environnement d’apprentissage dans ce délai, sinon vous aurez un échec. Pour naviguer d’une question à l’autre, vous pourrez utiliser la fonction Navigation du test. Notez que le cahier de réponses (et autres fichiers, le cas échéant) devra être téléchargé dès que l’évaluation finale commencera. Le cahier de réponses (et autres fichiers) devra être déposé à la toute fin de l’évaluation. Vous pourrez consulter la note de votre évaluation finale dans l’environnement d’apprentissage dès que votre tutrice ou votre tuteur l’aura inscrite. L’évaluation finale demeure la propriété du Cégep à distance, elle ne vous sera donc pas retournée une fois corrigée. Entrevue téléphonique L’évaluation finale est suivie d’une entrevue téléphonique obligatoire qui vise à authentifier la démarche que vous avez effectuée lors de l’évaluation. Après avoir corrigé votre évaluation finale,votre tutrice ou votre tuteur communiquera avec vous afin de fixer le moment del’entrevue. Celle-ci durera environ 10&nbsp,minutes (prévoir un moment libre de20&nbsp,minutes). Au moment de l’entrevue téléphonique, assurez-vous d’avoir sous la main toute la documentation relative à l’évaluation. Quand vous êtes prêt à commencer, cliquez sur le bouton Faire le test. Bon travail!
A118: 410-640-FD-10-01 | B118: 410-640-FD-10-01 • Finance 2 | C118: 361 | D118: D2A | E118: Évaluation finale C | G118: Le idnumber correspond à un devoir et le nom correspond à un examen. Pourquoi ? | H118: 7 | I118: =IFERROR(SEARCH("faire*test",J118),0)+IFERROR(SEARCH("attempt*now",J118),0) -> 1872 | J118: Consignes&nbsp,techniques&nbsp,Assurez-vous que votre navigateur Web est à jour.&nbsp,Rappelez-vous&nbsp,que :&nbsp,Toute votre&nbsp,documentation&nbsp,de cours est permise.&nbsp,Lorsque vous commencerez l’évaluation finale, un compteur électronique sera lancé et enregistrera le temps écoulé jusqu’à concurrence de 7&nbsp,heures (la durée prévue pour cette évaluation est de 3&nbsp,heures, mais un délai supplémentaire vous est accordé). Vous devez effectuer le travail et déposer les fichiers finaux dans l’environnement d’apprentissage dans ce délai, sinon vous aurez un échec.Vous devrez inscrire vos réponses à la main sur des feuilles mobiles. Lorsque vous aurez terminé votre évaluation finale, vous devrez numériser ces feuilles et les déposer dans l’environnement d’apprentissage.&nbsp,Pour naviguer d’une question à l’autre, vous pourrez utiliser la fonction Navigation du test. L’évaluation finale devra être déposée à la toute fin.&nbsp,Vous pourrez consulter la note de votre&nbsp,évaluation finale dans l’environnement d’apprentissage dès que votre tutrice ou votre tuteur l’aura inscrite.&nbsp,L’évaluation finale demeure la propriété du Cégep à distance,&nbsp,elle ne vous sera donc pas retournée une fois&nbsp,corrigée.&nbsp,Entrevue téléphonique&nbsp,L’évaluation finale est suivie d’une&nbsp,entrevue téléphonique obligatoire&nbsp,qui vise à authentifier la démarche que vous avez effectuée lors de l’évaluation.&nbsp,Après avoir corrigé votre&nbsp,évaluation finale, votre tutrice ou votre tuteur communiquera avec vous afin de fixer le moment de l’entrevue. Celle-ci durera environ 10&nbsp,minutes (prévoir un moment libre de 20&nbsp,minutes).&nbsp,Au moment de l’entrevue téléphonique, assurez-vous d’avoir sous la main&nbsp,toute&nbsp,la documentation&nbsp,relative à l’évaluation.&nbsp,Quand vous êtes prêt à commencer, cliquez sur le bouton&nbsp,Faire&nbsp,le test.&nbsp,Bon travail!&nbsp,
A119: 410-640-FD-10-01 | B119: 410-640-FD-10-01 • Finance 2 | C119: 361 | D119: E1C | E119: Évaluation finale C | H119: 7 | I119: =IFERROR(SEARCH("faire*test",J119),0)+IFERROR(SEARCH("attempt*now",J119),0) -> 1872 | J119: Consignes&nbsp,techniques&nbsp,Assurez-vous que votre navigateur Web est à jour.&nbsp,Rappelez-vous&nbsp,que :&nbsp,Toute votre&nbsp,documentation&nbsp,de cours est permise.&nbsp,Lorsque vous commencerez l’évaluation finale, un compteur électronique sera lancé et enregistrera le temps écoulé jusqu’à concurrence de 7&nbsp,heures (la durée prévue pour cette évaluation est de 3&nbsp,heures, mais un délai supplémentaire vous est accordé). Vous devez effectuer le travail et déposer les fichiers finaux dans l’environnement d’apprentissage dans ce délai, sinon vous aurez un échec.Vous devrez inscrire vos réponses à la main sur des feuilles mobiles. Lorsque vous aurez terminé votre évaluation finale, vous devrez numériser ces feuilles et les déposer dans l’environnement d’apprentissage.&nbsp,Pour naviguer d’une question à l’autre, vous pourrez utiliser la fonction Navigation du test. L’évaluation finale devra être déposée à la toute fin.&nbsp,Vous pourrez consulter la note de votre&nbsp,évaluation finale dans l’environnement d’apprentissage dès que votre tutrice ou votre tuteur l’aura inscrite.&nbsp,L’évaluation finale demeure la propriété du Cégep à distance,&nbsp,elle ne vous sera donc pas retournée une fois&nbsp,corrigée.&nbsp,Entrevue téléphonique&nbsp,L’évaluation finale est suivie d’une&nbsp,entrevue téléphonique obligatoire&nbsp,qui vise à authentifier la démarche que vous avez effectuée lors de l’évaluation.&nbsp,Après avoir corrigé votre&nbsp,évaluation finale, votre tutrice ou votre tuteur communiquera avec vous afin de fixer le moment de l’entrevue. Celle-ci durera environ 10&nbsp,minutes (prévoir un moment libre de 20&nbsp,minutes).&nbsp,Au moment de l’entrevue téléphonique, assurez-vous d’avoir sous la main&nbsp,toute&nbsp,la documentation&nbsp,relative à l’évaluation.&nbsp,Quand vous êtes prêt à commencer, cliquez sur le bouton&nbsp,Faire&nbsp,le test.&nbsp,Bon travail!&nbsp,
A120: 410-942-FD-10-01 | B120: 410-942-FD-10-01 • Éléments de méthodologie quantitative et de finance | C120: 363 | D120: D4B | E120: Évaluation finale C | G120: Le idnumber correspond à un devoir et le nom correspond à un examen. Pourquoi ? | H120: 6 | I120: =IFERROR(SEARCH("faire*test",J120),0)+IFERROR(SEARCH("attempt*now",J120),0) -> 1784 | J120: Consignes techniques Assurez-vous que votre navigateur Web est à jour.Rappelez-vous que : Toute votre documentation de cours est permise. Une feuille de formules est fournie en référence à la fin de votre cahier de réponses.Lorsque vous commencerez l’évaluation finale, un compteur électronique sera lancé et enregistrera le temps écoulé jusqu’à concurrence de 6 heures (la durée prévue pourcette évaluation est de 3&nbsp,heures, mais un délai supplémentaire vous estaccordé). Vous devez effectuer le travail et déposer les fichiers finaux dans l’environnement d’apprentissage dans ce délai, sinon vous aurez un échec. Pour naviguer d’une question à l’autre, vous pourrez utiliser la fonction Navigation du test. Notez que le cahier de réponses (et autres fichiers, le cas échéant) devra être téléchargé dès que l’évaluation finale commencera. Le cahier de réponses (et autres fichiers) devra être déposé à la toute fin de l’évaluation. Vous pourrez consulter la note de votre évaluation finale dans l’environnement d’apprentissage dès que votre tutrice ou votre tuteur l’aura inscrite. L’évaluation finale demeure la propriété du Cégep à distance, elle ne vous sera donc pas retournée une fois corrigée. Entrevue téléphonique L’évaluation finale est suivie d’une entrevue téléphonique obligatoire qui vise à authentifier la démarche que vous avez effectuée lors de l’évaluation. Après avoir corrigé votre évaluation finale,votre tutrice ou votre tuteur communiquera avec vous afin de fixer le moment del’entrevue. Celle-ci durera environ 10&nbsp,minutes (prévoir un moment libre de20&nbsp,minutes). Au moment de l’entrevue téléphonique, assurez-vous d’avoir sous la main toute la documentation relative à l’évaluation. Quand vous êtes prêt à commencer, cliquez sur le bouton Faire le test. Bon travail!
A121: 410-942-FD-10-01 | B121: 410-942-FD-10-01 • Éléments de méthodologie quantitative et de finance | C121: 363 | D121: E1C | E121: Évaluation finale C | H121: 6 | I121: =IFERROR(SEARCH("faire*test",J121),0)+IFERROR(SEARCH("attempt*now",J121),0) -> 1784 | J121: Consignes techniques Assurez-vous que votre navigateur Web est à jour.Rappelez-vous que : Toute votre documentation de cours est permise. Une feuille de formules est fournie en référence à la fin de votre cahier de réponses.Lorsque vous commencerez l’évaluation finale, un compteur électronique sera lancé et enregistrera le temps écoulé jusqu’à concurrence de 6 heures (la durée prévue pourcette évaluation est de 3&nbsp,heures, mais un délai supplémentaire vous estaccordé). Vous devez effectuer le travail et déposer les fichiers finaux dans l’environnement d’apprentissage dans ce délai, sinon vous aurez un échec. Pour naviguer d’une question à l’autre, vous pourrez utiliser la fonction Navigation du test. Notez que le cahier de réponses (et autres fichiers, le cas échéant) devra être téléchargé dès que l’évaluation finale commencera. Le cahier de réponses (et autres fichiers) devra être déposé à la toute fin de l’évaluation. Vous pourrez consulter la note de votre évaluation finale dans l’environnement d’apprentissage dès que votre tutrice ou votre tuteur l’aura inscrite. L’évaluation finale demeure la propriété du Cégep à distance, elle ne vous sera donc pas retournée une fois corrigée. Entrevue téléphonique L’évaluation finale est suivie d’une entrevue téléphonique obligatoire qui vise à authentifier la démarche que vous avez effectuée lors de l’évaluation. Après avoir corrigé votre évaluation finale,votre tutrice ou votre tuteur communiquera avec vous afin de fixer le moment del’entrevue. Celle-ci durera environ 10&nbsp,minutes (prévoir un moment libre de20&nbsp,minutes). Au moment de l’entrevue téléphonique, assurez-vous d’avoir sous la main toute la documentation relative à l’évaluation. Quand vous êtes prêt à commencer, cliquez sur le bouton Faire le test. Bon travail!
A122: 607-FPH-03-60-01 | B122: 607-FPH-03-60-01 • Espagnol 3 | C122: 501 | D122: D2F | E122: Évaluation finale C | G122: Le idnumber correspond à un devoir et le nom correspond à un examen. Pourquoi ? | H122: 4 | I122: =IFERROR(SEARCH("faire*test",J122),0)+IFERROR(SEARCH("attempt*now",J122),0) -> 0 | J122: Consignes&nbsp,techniques&nbsp, Assurez-vous que votre navigateur Web est à jour.&nbsp, Rappelez-vous que :&nbsp, Toute votre&nbsp,documentation&nbsp,de cours est permise.&nbsp, Lorsque vous commencerez l’évaluation finale, un compteur électronique sera lancé et enregistrera le temps écoulé jusqu’à concurrence de&nbsp,4&nbsp,heures&nbsp,(la durée prévue&nbsp,pour&nbsp,cette évaluation est de&nbsp,2&nbsp,heures, mais un&nbsp,délai&nbsp,supplémentaire vous est accordé).&nbsp,Vous devez effectuer le travail et déposer les fichiers finaux dans l’environnement d’apprentissage dans ce délai, sinon vous aurez un échec.&nbsp, Pour naviguer d’une question à l’autre, vous pourrez utiliser la fonction Navigation du test. Notez que le cahier de réponses (et autres fichiers, le cas échéant) devra être téléchargé dès que l’évaluation finale commencera. Le cahier de réponses (et autres fichiers) devra être déposé à la toute fin de l’évaluation.&nbsp, &nbsp,&nbsp,
A123: 607-FPH-03-60-01 | B123: 607-FPH-03-60-01 • Espagnol 3 | C123: 501 | D123: E1C | E123: Évaluation finale C | G123: Pourquoi n'a-t-on pas la consigne "Faire le test" ? | H123: 4 | I123: =IFERROR(SEARCH("faire*test",J123),0)+IFERROR(SEARCH("attempt*now",J123),0) -> 0 | J123: Consignes&nbsp,techniques&nbsp, Assurez-vous que votre navigateur Web est à jour.&nbsp, Rappelez-vous que :&nbsp, Toute votre&nbsp,documentation&nbsp,de cours est permise.&nbsp, Lorsque vous commencerez l’évaluation finale, un compteur électronique sera lancé et enregistrera le temps écoulé jusqu’à concurrence de&nbsp,4&nbsp,heures&nbsp,(la durée prévue&nbsp,pour&nbsp,cette évaluation est de&nbsp,2&nbsp,heures, mais un&nbsp,délai&nbsp,supplémentaire vous est accordé).&nbsp,Vous devez effectuer le travail et déposer les fichiers finaux dans l’environnement d’apprentissage dans ce délai, sinon vous aurez un échec.&nbsp, Pour naviguer d’une question à l’autre, vous pourrez utiliser la fonction Navigation du test. Notez que le cahier de réponses (et autres fichiers, le cas échéant) devra être téléchargé dès que l’évaluation finale commencera. Le cahier de réponses (et autres fichiers) devra être déposé à la toute fin de l’évaluation.&nbsp, &nbsp,&nbsp,
A124: 841-CAD-01-80-02 | B124: 841-CAD-01-80-02 • Analyse d’un portefeuille en assurance de dommages | C124: 401 | D124: D1C | E124: Évaluation finale C | G124: Le idnumber correspond à un devoir et le nom correspond à un examen. Pourquoi ? | H124: 6 | I124: =IFERROR(SEARCH("faire*test",J124),0)+IFERROR(SEARCH("attempt*now",J124),0) -> 0 | J124: Consignes&nbsp,techniques&nbsp, Assurez-vous que votre navigateur Web est à jour.&nbsp, Rappelez-vous que :&nbsp, Toute votre&nbsp,documentation&nbsp,de cours est permise.&nbsp, Lorsque vous commencerez l’évaluation finale, un compteur électronique sera lancé et enregistrera le temps écoulé jusqu’à concurrence de 6 heures&nbsp,(la durée prévue&nbsp,pour&nbsp,cette évaluation est de 3 heures, mais un&nbsp,délai&nbsp,supplémentaire vous est accordé).&nbsp,Vous devez effectuer le travail et déposer les fichiers finaux dans l’environnement d’apprentissage dans ce délai, sinon vous aurez un échec.&nbsp, Pour naviguer d’une question à l’autre, vous pourrez utiliser la fonction Navigation du test. Notez que le cahier de réponses (et autres fichiers, le cas échéant) devra être téléchargé dès que l’évaluation finale commencera. Le cahier de réponses (et autres fichiers) devra être déposé à la toute fin de l’évaluation.&nbsp, &nbsp,&nbsp,
A125: 841-CAD-01-80-02 | B125: 841-CAD-01-80-02 • Analyse d’un portefeuille en assurance de dommages | C125: 401 | D125: E1C | E125: Évaluation finale C | G125: Pourquoi n'a-t-on pas la consigne "Faire le test" ? | H125: 6 | I125: =IFERROR(SEARCH("faire*test",J125),0)+IFERROR(SEARCH("attempt*now",J125),0) -> 0 | J125: Consignes&nbsp,techniques&nbsp, Assurez-vous que votre navigateur Web est à jour.&nbsp, Rappelez-vous que :&nbsp, Toute votre&nbsp,documentation&nbsp,de cours est permise.&nbsp, Lorsque vous commencerez l’évaluation finale, un compteur électronique sera lancé et enregistrera le temps écoulé jusqu’à concurrence de 6 heures&nbsp,(la durée prévue&nbsp,pour&nbsp,cette évaluation est de 3 heures, mais un&nbsp,délai&nbsp,supplémentaire vous est accordé).&nbsp,Vous devez effectuer le travail et déposer les fichiers finaux dans l’environnement d’apprentissage dans ce délai, sinon vous aurez un échec.&nbsp, Pour naviguer d’une question à l’autre, vous pourrez utiliser la fonction Navigation du test. Notez que le cahier de réponses (et autres fichiers, le cas échéant) devra être téléchargé dès que l’évaluation finale commencera. Le cahier de réponses (et autres fichiers) devra être déposé à la toute fin de l’évaluation.&nbsp, &nbsp,&nbsp,
A126: 105-FPF-03-60-01 | B126: 105-FPF-03-60-01 • Univers de la science | C126: 224 | D126: E1D | E126: Évaluation finale D | H126: 6 | I126: =IFERROR(SEARCH("faire*test",J126),0)+IFERROR(SEARCH("attempt*now",J126),0) -> 1698 | J126: Consignes techniques Assurez-vous que votre navigateur Web est à jour.Rappelez-vous que : Toute votre documentation de cours est permise. Lorsque vous commencerez l’évaluation finale, un compteur électronique sera lancé et enregistrera le temps écoulé jusqu’à concurrence de 6 heures (la durée prévue pourcette évaluation est de 3&nbsp,heures, mais un délai supplémentaire vous estaccordé). Vous devez effectuer le travail et déposer les fichiers finaux dans l’environnement d’apprentissage dans ce délai, sinon vous aurez un échec. Pour naviguer d’une question à l’autre, vous pourrez utiliser la fonction Navigation du test. Notez que le cahier de réponses (et autres fichiers, le cas échéant) devra être téléchargé dès que l’évaluation finale commencera. Le cahier de réponses (et autres fichiers) devra être déposé à la toute fin de l’évaluation. Vous pourrez consulter la note de votre évaluation finale dans l’environnement d’apprentissage dès que votre tutrice ou votre tuteur l’aura inscrite. L’évaluation finale demeure la propriété du Cégep à distance, elle ne vous sera donc pas retournée une fois corrigée. Entrevue téléphonique L’évaluation finale est suivie d’une entrevue téléphonique obligatoire qui vise à authentifier la démarche que vous avez effectuée lors de l’évaluation. Après avoir corrigé votre évaluation finale,votre tutrice ou votre tuteur communiquera avec vous afin de fixer le moment del’entrevue. Celle-ci durera environ 10&nbsp,minutes (prévoir un moment libre de20&nbsp,minutes). Au moment de l’entrevue téléphonique, assurez-vous d’avoir sous la main toute la documentation relative à l’évaluation. Quand vous êtes prêt à commencer, cliquez sur le bouton Faire le test. Bon travail!
A127: 105-FPF-03-60-01 | B127: 105-FPF-03-60-01 • Univers de la science | C127: 224 | D127: E2C | E127: Évaluation finale D | H127: 6 | I127: =IFERROR(SEARCH("faire*test",J127),0)+IFERROR(SEARCH("attempt*now",J127),0) -> 1698 | J127: Consignes techniques Assurez-vous que votre navigateur Web est à jour.Rappelez-vous que : Toute votre documentation de cours est permise. Lorsque vous commencerez l’évaluation finale, un compteur électronique sera lancé et enregistrera le temps écoulé jusqu’à concurrence de 6 heures (la durée prévue pourcette évaluation est de 3&nbsp,heures, mais un délai supplémentaire vous estaccordé). Vous devez effectuer le travail et déposer les fichiers finaux dans l’environnement d’apprentissage dans ce délai, sinon vous aurez un échec. Pour naviguer d’une question à l’autre, vous pourrez utiliser la fonction Navigation du test. Notez que le cahier de réponses (et autres fichiers, le cas échéant) devra être téléchargé dès que l’évaluation finale commencera. Le cahier de réponses (et autres fichiers) devra être déposé à la toute fin de l’évaluation. Vous pourrez consulter la note de votre évaluation finale dans l’environnement d’apprentissage dès que votre tutrice ou votre tuteur l’aura inscrite. L’évaluation finale demeure la propriété du Cégep à distance, elle ne vous sera donc pas retournée une fois corrigée. Entrevue téléphonique L’évaluation finale est suivie d’une entrevue téléphonique obligatoire qui vise à authentifier la démarche que vous avez effectuée lors de l’évaluation. Après avoir corrigé votre évaluation finale,votre tutrice ou votre tuteur communiquera avec vous afin de fixer le moment del’entrevue. Celle-ci durera environ 10&nbsp,minutes (prévoir un moment libre de20&nbsp,minutes). Au moment de l’entrevue téléphonique, assurez-vous d’avoir sous la main toute la documentation relative à l’évaluation. Quand vous êtes prêt à commencer, cliquez sur le bouton Faire le test. Bon travail!
A128: 201-015-50-70-01 | B128: 201-015-50-70-01 • Mise à niveau pour mathématique, séquence Technico-sciences de la 5e secondaire | C128: 279 | D128: E1D | E128: Évaluation finale D | H128: 7 | I128: =IFERROR(SEARCH("faire*test",J128),0)+IFERROR(SEARCH("attempt*now",J128),0) -> 1774 | J128: Consignes&nbsp,techniques&nbsp,Assurez-vous que votre navigateur Web est à jour.Rappelez-vous que :&nbsp,Toute votre documentation de cours est permise.Lorsque vous commencerez l’évaluation finale, un compteur électronique sera lancé et enregistrera le temps écoulé jusqu’à concurrence de 7&nbsp,heures (la durée prévue pour cette évaluation est de 3&nbsp,heures, mais un délai supplémentaire vous est accordé). Vous devez effectuer le travail et déposer les fichiers finaux dans l’environnement d’apprentissage dans ce délai, sinon vous aurez un échec.Vous devrez inscrire vos réponses à la main sur des feuilles mobiles. Lorsque vous aurez terminé votre évaluation finale, vous devrez numériser ces feuilles et les déposer dans l’environnement d’apprentissage.Pour naviguer d’une question à l’autre, vous pourrez utiliser la fonction Navigation du test. L’évaluation finale devra être déposée à la toute fin.Vous pourrez consulter la note de votre évaluation finale dans l’environnement d’apprentissage dès que votre tutrice ou votre tuteur l’aura inscrite.L’évaluation finale demeure la propriété du Cégep&nbsp,à&nbsp,distance, elle ne vous sera donc pas retournée une fois corrigée.&nbsp,Entrevue téléphonique&nbsp,L’évaluation finale est suivie d’une entrevue téléphonique obligatoire qui vise à authentifier la démarche que vous avez effectuée lors de l’évaluation.Après avoir corrigé votre évaluation finale, votre tutrice ou votre tuteur communiquera avec vous afin de fixer le moment de l’entrevue. Celle-ci durera environ 10&nbsp,minutes (prévoir un moment libre de 20&nbsp,minutes).Au moment de l’entrevue téléphonique, assurez-vous d’avoir sous la main toute la documentation relative à l’évaluation.Quand vous êtes prêt à commencer, cliquez sur le bouton&nbsp,Faire&nbsp,le test.&nbsp,Bon travail!&nbsp,
A129: 201-015-50-70-01 | B129: 201-015-50-70-01 • Mise à niveau pour mathématique, séquence Technico-sciences de la 5e secondaire | C129: 279 | D129: E1H | E129: Évaluation finale D | H129: 7 | I129: =IFERROR(SEARCH("faire*test",J129),0)+IFERROR(SEARCH("attempt*now",J129),0) -> 1774 | J129: Consignes&nbsp,techniques&nbsp,Assurez-vous que votre navigateur Web est à jour.Rappelez-vous que :&nbsp,Toute votre documentation de cours est permise.Lorsque vous commencerez l’évaluation finale, un compteur électronique sera lancé et enregistrera le temps écoulé jusqu’à concurrence de 7&nbsp,heures (la durée prévue pour cette évaluation est de 3&nbsp,heures, mais un délai supplémentaire vous est accordé). Vous devez effectuer le travail et déposer les fichiers finaux dans l’environnement d’apprentissage dans ce délai, sinon vous aurez un échec.Vous devrez inscrire vos réponses à la main sur des feuilles mobiles. Lorsque vous aurez terminé votre évaluation finale, vous devrez numériser ces feuilles et les déposer dans l’environnement d’apprentissage.Pour naviguer d’une question à l’autre, vous pourrez utiliser la fonction Navigation du test. L’évaluation finale devra être déposée à la toute fin.Vous pourrez consulter la note de votre évaluation finale dans l’environnement d’apprentissage dès que votre tutrice ou votre tuteur l’aura inscrite.L’évaluation finale demeure la propriété du Cégep&nbsp,à&nbsp,distance, elle ne vous sera donc pas retournée une fois corrigée.&nbsp,Entrevue téléphonique&nbsp,L’évaluation finale est suivie d’une entrevue téléphonique obligatoire qui vise à authentifier la démarche que vous avez effectuée lors de l’évaluation.Après avoir corrigé votre évaluation finale, votre tutrice ou votre tuteur communiquera avec vous afin de fixer le moment de l’entrevue. Celle-ci durera environ 10&nbsp,minutes (prévoir un moment libre de 20&nbsp,minutes).Au moment de l’entrevue téléphonique, assurez-vous d’avoir sous la main toute la documentation relative à l’évaluation.Quand vous êtes prêt à commencer, cliquez sur le bouton&nbsp,Faire&nbsp,le test.&nbsp,Bon travail!&nbsp,
A130: 201-015-FD-70-01 | B130: 201-015-FD-70-01 • Mise à niveau pour mathématique, séquence Technico-sciences de la 5e secondaire | C130: 610 | D130: E1D | E130: Évaluation finale D | H130: 7 | I130: =IFERROR(SEARCH("faire*test",J130),0)+IFERROR(SEARCH("attempt*now",J130),0) -> 1774 | J130: Consignes&nbsp,techniques&nbsp,Assurez-vous que votre navigateur Web est à jour.Rappelez-vous que :&nbsp,Toute votre documentation de cours est permise.Lorsque vous commencerez l’évaluation finale, un compteur électronique sera lancé et enregistrera le temps écoulé jusqu’à concurrence de 7&nbsp,heures (la durée prévue pour cette évaluation est de 3&nbsp,heures, mais un délai supplémentaire vous est accordé). Vous devez effectuer le travail et déposer les fichiers finaux dans l’environnement d’apprentissage dans ce délai, sinon vous aurez un échec.Vous devrez inscrire vos réponses à la main sur des feuilles mobiles. Lorsque vous aurez terminé votre évaluation finale, vous devrez numériser ces feuilles et les déposer dans l’environnement d’apprentissage.Pour naviguer d’une question à l’autre, vous pourrez utiliser la fonction Navigation du test. L’évaluation finale devra être déposée à la toute fin.Vous pourrez consulter la note de votre évaluation finale dans l’environnement d’apprentissage dès que votre tutrice ou votre tuteur l’aura inscrite.L’évaluation finale demeure la propriété du Cégep&nbsp,à&nbsp,distance, elle ne vous sera donc pas retournée une fois corrigée.&nbsp,Entrevue téléphonique&nbsp,L’évaluation finale est suivie d’une entrevue téléphonique obligatoire qui vise à authentifier la démarche que vous avez effectuée lors de l’évaluation.Après avoir corrigé votre évaluation finale, votre tutrice ou votre tuteur communiquera avec vous afin de fixer le moment de l’entrevue. Celle-ci durera environ 10&nbsp,minutes (prévoir un moment libre de 20&nbsp,minutes).Au moment de l’entrevue téléphonique, assurez-vous d’avoir sous la main toute la documentation relative à l’évaluation.Quand vous êtes prêt à commencer, cliquez sur le bouton&nbsp,Faire&nbsp,le test.&nbsp,Bon travail!&nbsp,
A131: 201-015-FD-70-01 | B131: 201-015-FD-70-01 • Mise à niveau pour mathématique, séquence Technico-sciences de la 5e secondaire | C131: 610 | D131: E1I | E131: Évaluation finale D | H131: 7 | I131: =IFERROR(SEARCH("faire*test",J131),0)+IFERROR(SEARCH("attempt*now",J131),0) -> 1774 | J131: Consignes&nbsp,techniques&nbsp,Assurez-vous que votre navigateur Web est à jour.Rappelez-vous que :&nbsp,Toute votre documentation de cours est permise.Lorsque vous commencerez l’évaluation finale, un compteur électronique sera lancé et enregistrera le temps écoulé jusqu’à concurrence de 7&nbsp,heures (la durée prévue pour cette évaluation est de 3&nbsp,heures, mais un délai supplémentaire vous est accordé). Vous devez effectuer le travail et déposer les fichiers finaux dans l’environnement d’apprentissage dans ce délai, sinon vous aurez un échec.Vous devrez inscrire vos réponses à la main sur des feuilles mobiles. Lorsque vous aurez terminé votre évaluation finale, vous devrez numériser ces feuilles et les déposer dans l’environnement d’apprentissage.Pour naviguer d’une question à l’autre, vous pourrez utiliser la fonction Navigation du test. L’évaluation finale devra être déposée à la toute fin.Vous pourrez consulter la note de votre évaluation finale dans l’environnement d’apprentissage dès que votre tutrice ou votre tuteur l’aura inscrite.L’évaluation finale demeure la propriété du Cégep&nbsp,à&nbsp,distance, elle ne vous sera donc pas retournée une fois corrigée.&nbsp,Entrevue téléphonique&nbsp,L’évaluation finale est suivie d’une entrevue téléphonique obligatoire qui vise à authentifier la démarche que vous avez effectuée lors de l’évaluation.Après avoir corrigé votre évaluation finale, votre tutrice ou votre tuteur communiquera avec vous afin de fixer le moment de l’entrevue. Celle-ci durera environ 10&nbsp,minutes (prévoir un moment libre de 20&nbsp,minutes).Au moment de l’entrevue téléphonique, assurez-vous d’avoir sous la main toute la documentation relative à l’évaluation.Quand vous êtes prêt à commencer, cliquez sur le bouton&nbsp,Faire&nbsp,le test.&nbsp,Bon travail!&nbsp,
A132: 201-105-RE-70-01 | B132: 201-105-RE-70-01 • Algèbre linéaire et géométrie vectorielle | C132: 469 | D132: E1D | E132: Évaluation finale D | H132: 7 | I132: =IFERROR(SEARCH("faire*test",J132),0)+IFERROR(SEARCH("attempt*now",J132),0) -> 1726 | J132: Consignes techniquesAssurez-vous que votre navigateur Webest à jour.Rappelez-vous que&nbsp,:Toute votre documentation de cours est permise.Lorsque vouscommencerez l’évaluation finale, un compteur électronique sera lancé etenregistrera le temps écoulé jusqu’à concurrence de 7 heures (la durée prévue pour cette évaluationest de 3 heures, mais un délai supplémentaire vousest accordé). Vous devez effectuer le travail et déposer les fichiers finauxdans l’environnement d’apprentissage dans ce délai, sinon vous aurez un échec.Vous devrez inscrire vos réponses à la main sur des feuilles mobiles. Lorsque vous aurez terminé votre évaluation finale, vous devrez numériser ces feuilles et les déposer dans l’environnement d’apprentissage.Pour naviguer d’une question à l’autre, vous pourrez utiliser la fonction Navigation du test. L’évaluation finale devra être déposée à la toute fin.Vous pourrez consulter la note de votre évaluation finale dans l’environnement d’apprentissage dès que votre tutrice ou votre tuteur l’aura inscrite.L’évaluation finale demeure la propriété du Cégep&nbsp,à&nbsp,distance, elle ne vous sera donc pas retournée une fois corrigée.Entrevue téléphoniqueL’évaluation finale est suivie d’une entrevue téléphonique obligatoire qui vise à authentifier la démarche que vous avez effectuée lors de l’évaluation.Après avoir corrigé votreévaluation finale, votre tutrice ou votre tuteur communiquera avec vous afin defixer le moment de l’entrevue. Celle-ci durera environ 10&nbsp,minutes (prévoirun moment libre de 20&nbsp,minutes).Au moment de l’entrevue téléphonique, assurez-vous d’avoir sous la main toute la documentation relative à l’évaluation.Quand vous êtes prêt à commencer, cliquez sur le bouton Faire le test.Bon travail!
A133: 201-105-RE-74-01 | B133: 201-105-RE-74-01 • Algèbre linéaire et géométrie vectorielle | C133: 470 | D133: E1D | E133: Évaluation finale D | H133: 7 | I133: =IFERROR(SEARCH("faire*test",J133),0)+IFERROR(SEARCH("attempt*now",J133),0) -> 1726 | J133: Consignes techniquesAssurez-vous que votre navigateur Webest à jour.Rappelez-vous que&nbsp,:Toute votre documentation de cours est permise.Lorsque vouscommencerez l’évaluation finale, un compteur électronique sera lancé etenregistrera le temps écoulé jusqu’à concurrence de 7 heures (la durée prévue pour cette évaluationest de 3 heures, mais un délai supplémentaire vousest accordé). Vous devez effectuer le travail et déposer les fichiers finauxdans l’environnement d’apprentissage dans ce délai, sinon vous aurez un échec.Vous devrez inscrire vos réponses à la main sur des feuilles mobiles. Lorsque vous aurez terminé votre évaluation finale, vous devrez numériser ces feuilles et les déposer dans l’environnement d’apprentissage.Pour naviguer d’une question à l’autre, vous pourrez utiliser la fonction Navigation du test. L’évaluation finale devra être déposée à la toute fin.Vous pourrez consulter la note de votre évaluation finale dans l’environnement d’apprentissage dès que votre tutrice ou votre tuteur l’aura inscrite.L’évaluation finale demeure la propriété du Cégep&nbsp,à&nbsp,distance, elle ne vous sera donc pas retournée une fois corrigée.Entrevue téléphoniqueL’évaluation finale est suivie d’une entrevue téléphonique obligatoire qui vise à authentifier la démarche que vous avez effectuée lors de l’évaluation.Après avoir corrigé votreévaluation finale, votre tutrice ou votre tuteur communiquera avec vous afin defixer le moment de l’entrevue. Celle-ci durera environ 10&nbsp,minutes (prévoirun moment libre de 20&nbsp,minutes).Au moment de l’entrevue téléphonique, assurez-vous d’avoir sous la main toute la documentation relative à l’évaluation.Quand vous êtes prêt à commencer, cliquez sur le bouton Faire le test.Bon travail!
A134: 201-301-RE-60-01 | B134: 201-301-RE-60-01 • Méthodes quantitatives avancées | C134: 500 | D134: E1D | E134: Évaluation finale D | H134: 7 | I134: =IFERROR(SEARCH("faire*test",J134),0)+IFERROR(SEARCH("attempt*now",J134),0) -> 1726 | J134: Consignes techniquesAssurez-vous que votre navigateur Webest à jour.Rappelez-vous que&nbsp,:Toute votre documentation de cours est permise.Lorsque vouscommencerez l’évaluation finale, un compteur électronique sera lancé etenregistrera le temps écoulé jusqu’à concurrence de 7 heures (la durée prévue pour cette évaluationest de 3 heures, mais un délai supplémentaire vousest accordé). Vous devez effectuer le travail et déposer les fichiers finauxdans l’environnement d’apprentissage dans ce délai, sinon vous aurez un échec.Vous devrez inscrire vos réponses à la main sur des feuilles mobiles. Lorsque vous aurez terminé votre évaluation finale, vous devrez numériser ces feuilles et les déposer dans l’environnement d’apprentissage.Pour naviguer d’une question à l’autre, vous pourrez utiliser la fonction Navigation du test. L’évaluation finale devra être déposée à la toute fin.Vous pourrez consulter la note de votre évaluation finale dans l’environnement d’apprentissage dès que votre tutrice ou votre tuteur l’aura inscrite.L’évaluation finale demeure la propriété du Cégep&nbsp,à&nbsp,distance, elle ne vous sera donc pas retournée une fois corrigée.Entrevue téléphoniqueL’évaluation finale est suivie d’une entrevue téléphonique obligatoire qui vise à authentifier la démarche que vous avez effectuée lors de l’évaluation.Après avoir corrigé votreévaluation finale, votre tutrice ou votre tuteur communiquera avec vous afin defixer le moment de l’entrevue. Celle-ci durera environ 10&nbsp,minutes (prévoirun moment libre de 20&nbsp,minutes).Au moment de l’entrevue téléphonique, assurez-vous d’avoir sous la main toute la documentation relative à l’évaluation.Quand vous êtes prêt à commencer, cliquez sur le bouton Faire le test.Bon travail!
A135: 201-NYA-05-70-02 | B135: 201-NYA-05-70-02 • Calcul différentiel | C135: 466 | D135: E1D | E135: Évaluation finale D | H135: 7 | I135: =IFERROR(SEARCH("faire*test",J135),0)+IFERROR(SEARCH("attempt*now",J135),0) -> 1726 | J135: Consignes techniquesAssurez-vous que votre navigateur Webest à jour.Rappelez-vous que&nbsp,:Toute votre documentation de cours est permise.Lorsque vouscommencerez l’évaluation finale, un compteur électronique sera lancé etenregistrera le temps écoulé jusqu’à concurrence de 7 heures (la durée prévue pour cette évaluationest de 3 heures, mais un délai supplémentaire vousest accordé). Vous devez effectuer le travail et déposer les fichiers finauxdans l’environnement d’apprentissage dans ce délai, sinon vous aurez un échec.Vous devrez inscrire vos réponses à la main sur des feuilles mobiles. Lorsque vous aurez terminé votre évaluation finale, vous devrez numériser ces feuilles et les déposer dans l’environnement d’apprentissage.Pour naviguer d’une question à l’autre, vous pourrez utiliser la fonction Navigation du test. L’évaluation finale devra être déposée à la toute fin.Vous pourrez consulter la note de votre évaluation finale dans l’environnement d’apprentissage dès que votre tutrice ou votre tuteur l’aura inscrite.L’évaluation finale demeure la propriété du Cégep&nbsp,à&nbsp,distance, elle ne vous sera donc pas retournée une fois corrigée.Entrevue téléphoniqueL’évaluation finale est suivie d’une entrevue téléphonique obligatoire qui vise à authentifier la démarche que vous avez effectuée lors de l’évaluation.Après avoir corrigé votreévaluation finale, votre tutrice ou votre tuteur communiquera avec vous afin defixer le moment de l’entrevue. Celle-ci durera environ 10&nbsp,minutes (prévoirun moment libre de 20&nbsp,minutes).Au moment de l’entrevue téléphonique, assurez-vous d’avoir sous la main toute la documentation relative à l’évaluation.Quand vous êtes prêt à commencer, cliquez sur le bouton Faire le test.Bon travail!
A136: 201-NYA-05-74-02 | B136: 201-NYA-05-74-02 • Calcul différentiel | C136: 467 | D136: D4D | E136: Évaluation finale D | G136: Le idnumber correspond à un devoir et le nom correspond à un examen. Pourquoi ? | H136: 7 | I136: =IFERROR(SEARCH("faire*test",J136),0)+IFERROR(SEARCH("attempt*now",J136),0) -> 1726 | J136: Consignes techniquesAssurez-vous que votre navigateur Webest à jour.Rappelez-vous que&nbsp,:Toute votre documentation de cours est permise.Lorsque vouscommencerez l’évaluation finale, un compteur électronique sera lancé etenregistrera le temps écoulé jusqu’à concurrence de 7 heures (la durée prévue pour cette évaluationest de 3 heures, mais un délai supplémentaire vousest accordé). Vous devez effectuer le travail et déposer les fichiers finauxdans l’environnement d’apprentissage dans ce délai, sinon vous aurez un échec.Vous devrez inscrire vos réponses à la main sur des feuilles mobiles. Lorsque vous aurez terminé votre évaluation finale, vous devrez numériser ces feuilles et les déposer dans l’environnement d’apprentissage.Pour naviguer d’une question à l’autre, vous pourrez utiliser la fonction Navigation du test. L’évaluation finale devra être déposée à la toute fin.Vous pourrez consulter la note de votre évaluation finale dans l’environnement d’apprentissage dès que votre tutrice ou votre tuteur l’aura inscrite.L’évaluation finale demeure la propriété du Cégep&nbsp,à&nbsp,distance, elle ne vous sera donc pas retournée une fois corrigée.Entrevue téléphoniqueL’évaluation finale est suivie d’une entrevue téléphonique obligatoire qui vise à authentifier la démarche que vous avez effectuée lors de l’évaluation.Après avoir corrigé votreévaluation finale, votre tutrice ou votre tuteur communiquera avec vous afin defixer le moment de l’entrevue. Celle-ci durera environ 10&nbsp,minutes (prévoirun moment libre de 20&nbsp,minutes).Au moment de l’entrevue téléphonique, assurez-vous d’avoir sous la main toute la documentation relative à l’évaluation.Quand vous êtes prêt à commencer, cliquez sur le bouton Faire le test.Bon travail!
A137: 201-NYA-05-74-02 | B137: 201-NYA-05-74-02 • Calcul différentiel | C137: 467 | D137: E1D | E137: Évaluation finale D | H137: 7 | I137: =IFERROR(SEARCH("faire*test",J137),0)+IFERROR(SEARCH("attempt*now",J137),0) -> 1726 | J137: Consignes techniquesAssurez-vous que votre navigateur Webest à jour.Rappelez-vous que&nbsp,:Toute votre documentation de cours est permise.Lorsque vouscommencerez l’évaluation finale, un compteur électronique sera lancé etenregistrera le temps écoulé jusqu’à concurrence de 7 heures (la durée prévue pour cette évaluationest de 3 heures, mais un délai supplémentaire vousest accordé). Vous devez effectuer le travail et déposer les fichiers finauxdans l’environnement d’apprentissage dans ce délai, sinon vous aurez un échec.Vous devrez inscrire vos réponses à la main sur des feuilles mobiles. Lorsque vous aurez terminé votre évaluation finale, vous devrez numériser ces feuilles et les déposer dans l’environnement d’apprentissage.Pour naviguer d’une question à l’autre, vous pourrez utiliser la fonction Navigation du test. L’évaluation finale devra être déposée à la toute fin.Vous pourrez consulter la note de votre évaluation finale dans l’environnement d’apprentissage dès que votre tutrice ou votre tuteur l’aura inscrite.L’évaluation finale demeure la propriété du Cégep&nbsp,à&nbsp,distance, elle ne vous sera donc pas retournée une fois corrigée.Entrevue téléphoniqueL’évaluation finale est suivie d’une entrevue téléphonique obligatoire qui vise à authentifier la démarche que vous avez effectuée lors de l’évaluation.Après avoir corrigé votreévaluation finale, votre tutrice ou votre tuteur communiquera avec vous afin defixer le moment de l’entrevue. Celle-ci durera environ 10&nbsp,minutes (prévoirun moment libre de 20&nbsp,minutes).Au moment de l’entrevue téléphonique, assurez-vous d’avoir sous la main toute la documentation relative à l’évaluation.Quand vous êtes prêt à commencer, cliquez sur le bouton Faire le test.Bon travail!
A138: 320-203-FD-60-02 | B138: 320-203-FD-60-02 • Défis géographiques de l'humanité | C138: 468 | D138: E1D | E138: Évaluation finale D | H138: 6 | I138: =IFERROR(SEARCH("faire*test",J138),0)+IFERROR(SEARCH("attempt*now",J138),0) -> 1698 | J138: Consignes techniques Assurez-vous que votre navigateur Web est à jour.Rappelez-vous que : Toute votre documentation de cours est permise. Lorsque vous commencerez l’évaluation finale, un compteur électronique sera lancé et enregistrera le temps écoulé jusqu’à concurrence de 6 heures (la durée prévue pourcette évaluation est de 3&nbsp,heures, mais un délai supplémentaire vous estaccordé). Vous devez effectuer le travail et déposer les fichiers finaux dans l’environnement d’apprentissage dans ce délai, sinon vous aurez un échec. Pour naviguer d’une question à l’autre, vous pourrez utiliser la fonction Navigation du test. Notez que le cahier de réponses (et autres fichiers, le cas échéant) devra être téléchargé dès que l’évaluation finale commencera. Le cahier de réponses (et autres fichiers) devra être déposé à la toute fin de l’évaluation. Vous pourrez consulter la note de votre évaluation finale dans l’environnement d’apprentissage dès que votre tutrice ou votre tuteur l’aura inscrite. L’évaluation finale demeure la propriété du Cégep à distance, elle ne vous sera donc pas retournée une fois corrigée. Entrevue téléphonique L’évaluation finale est suivie d’une entrevue téléphonique obligatoire qui vise à authentifier la démarche que vous avez effectuée lors de l’évaluation. Après avoir corrigé votre évaluation finale,votre tutrice ou votre tuteur communiquera avec vous afin de fixer le moment del’entrevue. Celle-ci durera environ 10&nbsp,minutes (prévoir un moment libre de20&nbsp,minutes). Au moment de l’entrevue téléphonique, assurez-vous d’avoir sous la main toute la documentation relative à l’évaluation. Quand vous êtes prêt à commencer, cliquez sur le bouton Faire le test. Bon travail!
A139: 322-704-RL-60-01 | B139: 322-704-RL-60-01 • Profession d’éducatrice et d’éducateur à l’enfance | C139: 235 | D139: D3D | E139: Évaluation finale D | G139: Le idnumber correspond à un devoir et le nom correspond à un examen. Pourquoi ? | H139: 6 | I139: =IFERROR(SEARCH("faire*test",J139),0)+IFERROR(SEARCH("attempt*now",J139),0) -> 0 | J139: Consignes&nbsp,techniques&nbsp, Assurez-vous que votre navigateur Web est à jour.&nbsp, Rappelez-vous que :&nbsp, Toute votre&nbsp,documentation&nbsp,de cours est permise.&nbsp, Lorsque vous commencerez l’évaluation finale, un compteur électronique sera lancé et enregistrera le temps écoulé jusqu’à concurrence de 6 heures&nbsp,(la durée prévue&nbsp,pour&nbsp,cette évaluation est de 3 heures, mais un&nbsp,délai&nbsp,supplémentaire vous est accordé).&nbsp,Vous devez effectuer le travail et déposer les fichiers finaux dans l’environnement d’apprentissage dans ce délai, sinon vous aurez un échec.&nbsp, Pour naviguer d’une question à l’autre, vous pourrez utiliser la fonction Navigation du test. Notez que le cahier de réponses (et autres fichiers, le cas échéant) devra être téléchargé dès que l’évaluation finale commencera. Le cahier de réponses (et autres fichiers) devra être déposé à la toute fin de l’évaluation.&nbsp, &nbsp,&nbsp,
A140: 322-704-RL-60-01 | B140: 322-704-RL-60-01 • Profession d’éducatrice et d’éducateur à l’enfance | C140: 235 | D140: E1D | E140: Évaluation finale D | G140: Pourquoi n'a-t-on pas la consigne "Faire le test" ? | H140: 6 | I140: =IFERROR(SEARCH("faire*test",J140),0)+IFERROR(SEARCH("attempt*now",J140),0) -> 0 | J140: Consignes&nbsp,techniques&nbsp, Assurez-vous que votre navigateur Web est à jour.&nbsp, Rappelez-vous que :&nbsp, Toute votre&nbsp,documentation&nbsp,de cours est permise.&nbsp, Lorsque vous commencerez l’évaluation finale, un compteur électronique sera lancé et enregistrera le temps écoulé jusqu’à concurrence de 6 heures&nbsp,(la durée prévue&nbsp,pour&nbsp,cette évaluation est de 3 heures, mais un&nbsp,délai&nbsp,supplémentaire vous est accordé).&nbsp,Vous devez effectuer le travail et déposer les fichiers finaux dans l’environnement d’apprentissage dans ce délai, sinon vous aurez un échec.&nbsp, Pour naviguer d’une question à l’autre, vous pourrez utiliser la fonction Navigation du test. Notez que le cahier de réponses (et autres fichiers, le cas échéant) devra être téléchargé dès que l’évaluation finale commencera. Le cahier de réponses (et autres fichiers) devra être déposé à la toute fin de l’évaluation.&nbsp, &nbsp,&nbsp,
A141: 322-763-RL-60-01 | B141: 322-763-RL-60-01 • Développement de l’autonomie de l’enfant | C141: 443 | D141: D3A | E141: Évaluation finale D | G141: Le idnumber correspond à un devoir et le nom correspond à un examen. Pourquoi ? | H141: 6 | I141: =IFERROR(SEARCH("faire*test",J141),0)+IFERROR(SEARCH("attempt*now",J141),0) -> 0 | J141: Consignes&nbsp,techniques Assurez-vous que votre navigateur Web est à jour.&nbsp, Rappelez-vous que :&nbsp, Toute votre&nbsp,documentation&nbsp,de cours est permise.&nbsp, Lorsque vous commencerez l’évaluation finale, un compteur électronique sera lancé et enregistrera le temps écoulé jusqu’à concurrence de&nbsp,6&nbsp,heures&nbsp,(la durée prévue&nbsp,pour&nbsp,cette évaluation est de&nbsp,3&nbsp,heures, mais un&nbsp,délai&nbsp,supplémentaire vous est accordé).&nbsp,Vous devez effectuer le travail et déposer les fichiers finaux dans l’environnement d’apprentissage dans ce délai, sinon vous aurez un échec.&nbsp, Pour naviguer d’une question à l’autre, vous pourrez utiliser la fonction Navigation du test. Notez que le cahier de réponses (et autres fichiers, le cas échéant) devra être téléchargé dès que l’évaluation finale commencera. Le cahier de réponses (et autres fichiers) devra être déposé à la toute fin de l’évaluation.&nbsp, &nbsp,&nbsp,
A142: 322-763-RL-60-01 | B142: 322-763-RL-60-01 • Développement de l’autonomie de l’enfant | C142: 443 | D142: E1D | E142: Évaluation finale D | G142: Pourquoi n'a-t-on pas la consigne "Faire le test" ? | H142: 6 | I142: =IFERROR(SEARCH("faire*test",J142),0)+IFERROR(SEARCH("attempt*now",J142),0) -> 0 | J142: Consignes&nbsp,techniques Assurez-vous que votre navigateur Web est à jour.&nbsp, Rappelez-vous que :&nbsp, Toute votre&nbsp,documentation&nbsp,de cours est permise.&nbsp, Lorsque vous commencerez l’évaluation finale, un compteur électronique sera lancé et enregistrera le temps écoulé jusqu’à concurrence de&nbsp,6&nbsp,heures&nbsp,(la durée prévue&nbsp,pour&nbsp,cette évaluation est de&nbsp,3&nbsp,heures, mais un&nbsp,délai&nbsp,supplémentaire vous est accordé).&nbsp,Vous devez effectuer le travail et déposer les fichiers finaux dans l’environnement d’apprentissage dans ce délai, sinon vous aurez un échec.&nbsp, Pour naviguer d’une question à l’autre, vous pourrez utiliser la fonction Navigation du test. Notez que le cahier de réponses (et autres fichiers, le cas échéant) devra être téléchargé dès que l’évaluation finale commencera. Le cahier de réponses (et autres fichiers) devra être déposé à la toute fin de l’évaluation.&nbsp, &nbsp,&nbsp,
A143: 330-910-RE-60-01 | B143: 330-910-RE-60-01 • Initiation à l'histoire de la civilisation occidentale | C143: 282 | D143: E1D | E143: Évaluation finale D | H143: 6 | I143: =IFERROR(SEARCH("faire*test",J143),0)+IFERROR(SEARCH("attempt*now",J143),0) -> 1698 | J143: Consignes techniques Assurez-vous que votre navigateur Web est à jour.Rappelez-vous que : Toute votre documentation de cours est permise. Lorsque vous commencerez l’évaluation finale, un compteur électronique sera lancé et enregistrera le temps écoulé jusqu’à concurrence de 6 heures (la durée prévue pourcette évaluation est de 3&nbsp,heures, mais un délai supplémentaire vous estaccordé). Vous devez effectuer le travail et déposer les fichiers finaux dans l’environnement d’apprentissage dans ce délai, sinon vous aurez un échec. Pour naviguer d’une question à l’autre, vous pourrez utiliser la fonction Navigation du test. Notez que le cahier de réponses (et autres fichiers, le cas échéant) devra être téléchargé dès que l’évaluation finale commencera. Le cahier de réponses (et autres fichiers) devra être déposé à la toute fin de l’évaluation. Vous pourrez consulter la note de votre évaluation finale dans l’environnement d’apprentissage dès que votre tutrice ou votre tuteur l’aura inscrite. L’évaluation finale demeure la propriété du Cégep à distance, elle ne vous sera donc pas retournée une fois corrigée. Entrevue téléphonique L’évaluation finale est suivie d’une entrevue téléphonique obligatoire qui vise à authentifier la démarche que vous avez effectuée lors de l’évaluation. Après avoir corrigé votre évaluation finale,votre tutrice ou votre tuteur communiquera avec vous afin de fixer le moment del’entrevue. Celle-ci durera environ 10&nbsp,minutes (prévoir un moment libre de20&nbsp,minutes). Au moment de l’entrevue téléphonique, assurez-vous d’avoir sous la main toute la documentation relative à l’évaluation. Quand vous êtes prêt à commencer, cliquez sur le bouton Faire le test. Bon travail!
A144: 330-910-RE-60-01 | B144: 330-910-RE-60-01 • Initiation à l'histoire de la civilisation occidentale | C144: 282 | D144: E1I | E144: Évaluation finale D | H144: 6 | I144: =IFERROR(SEARCH("faire*test",J144),0)+IFERROR(SEARCH("attempt*now",J144),0) -> 1698 | J144: Consignes techniques Assurez-vous que votre navigateur Web est à jour.Rappelez-vous que : Toute votre documentation de cours est permise. Lorsque vous commencerez l’évaluation finale, un compteur électronique sera lancé et enregistrera le temps écoulé jusqu’à concurrence de 6 heures (la durée prévue pourcette évaluation est de 3&nbsp,heures, mais un délai supplémentaire vous estaccordé). Vous devez effectuer le travail et déposer les fichiers finaux dans l’environnement d’apprentissage dans ce délai, sinon vous aurez un échec. Pour naviguer d’une question à l’autre, vous pourrez utiliser la fonction Navigation du test. Notez que le cahier de réponses (et autres fichiers, le cas échéant) devra être téléchargé dès que l’évaluation finale commencera. Le cahier de réponses (et autres fichiers) devra être déposé à la toute fin de l’évaluation. Vous pourrez consulter la note de votre évaluation finale dans l’environnement d’apprentissage dès que votre tutrice ou votre tuteur l’aura inscrite. L’évaluation finale demeure la propriété du Cégep à distance, elle ne vous sera donc pas retournée une fois corrigée. Entrevue téléphonique L’évaluation finale est suivie d’une entrevue téléphonique obligatoire qui vise à authentifier la démarche que vous avez effectuée lors de l’évaluation. Après avoir corrigé votre évaluation finale,votre tutrice ou votre tuteur communiquera avec vous afin de fixer le moment del’entrevue. Celle-ci durera environ 10&nbsp,minutes (prévoir un moment libre de20&nbsp,minutes). Au moment de l’entrevue téléphonique, assurez-vous d’avoir sous la main toute la documentation relative à l’évaluation. Quand vous êtes prêt à commencer, cliquez sur le bouton Faire le test. Bon travail!
A145: 350-00W-FD-60-01 | B145: 350-00W-FD-60-01 • Psychologie, technologie, adaptation | C145: 526 | D145: D3H | E145: Évaluation finale D | G145: Le idnumber correspond à un devoir et le nom correspond à un examen. Pourquoi ? | H145: 6 | I145: =IFERROR(SEARCH("faire*test",J145),0)+IFERROR(SEARCH("attempt*now",J145),0) -> 1698 | J145: Consignes techniques Assurez-vous que votre navigateur Web est à jour.Rappelez-vous que : Toute votre documentation de cours est permise. Lorsque vous commencerez l’évaluation finale, un compteur électronique sera lancé et enregistrera le temps écoulé jusqu’à concurrence de 6 heures (la durée prévue pourcette évaluation est de 3&nbsp,heures, mais un délai supplémentaire vous estaccordé). Vous devez effectuer le travail et déposer les fichiers finaux dans l’environnement d’apprentissage dans ce délai, sinon vous aurez un échec. Pour naviguer d’une question à l’autre, vous pourrez utiliser la fonction Navigation du test. Notez que le cahier de réponses (et autres fichiers, le cas échéant) devra être téléchargé dès que l’évaluation finale commencera. Le cahier de réponses (et autres fichiers) devra être déposé à la toute fin de l’évaluation. Vous pourrez consulter la note de votre évaluation finale dans l’environnement d’apprentissage dès que votre tutrice ou votre tuteur l’aura inscrite. L’évaluation finale demeure la propriété du Cégep à distance, elle ne vous sera donc pas retournée une fois corrigée. Entrevue téléphonique L’évaluation finale est suivie d’une entrevue téléphonique obligatoire qui vise à authentifier la démarche que vous avez effectuée lors de l’évaluation. Après avoir corrigé votre évaluation finale,votre tutrice ou votre tuteur communiquera avec vous afin de fixer le moment del’entrevue. Celle-ci durera environ 10&nbsp,minutes (prévoir un moment libre de20&nbsp,minutes). Au moment de l’entrevue téléphonique, assurez-vous d’avoir sous la main toute la documentation relative à l’évaluation. Quand vous êtes prêt à commencer, cliquez sur le bouton Faire le test. Bon travail!
A146: 350-00W-FD-60-01 | B146: 350-00W-FD-60-01 • Psychologie, technologie, adaptation | C146: 526 | D146: E1D | E146: Évaluation finale D | H146: 6 | I146: =IFERROR(SEARCH("faire*test",J146),0)+IFERROR(SEARCH("attempt*now",J146),0) -> 1698 | J146: Consignes techniques Assurez-vous que votre navigateur Web est à jour.Rappelez-vous que : Toute votre documentation de cours est permise. Lorsque vous commencerez l’évaluation finale, un compteur électronique sera lancé et enregistrera le temps écoulé jusqu’à concurrence de 6 heures (la durée prévue pourcette évaluation est de 3&nbsp,heures, mais un délai supplémentaire vous estaccordé). Vous devez effectuer le travail et déposer les fichiers finaux dans l’environnement d’apprentissage dans ce délai, sinon vous aurez un échec. Pour naviguer d’une question à l’autre, vous pourrez utiliser la fonction Navigation du test. Notez que le cahier de réponses (et autres fichiers, le cas échéant) devra être téléchargé dès que l’évaluation finale commencera. Le cahier de réponses (et autres fichiers) devra être déposé à la toute fin de l’évaluation. Vous pourrez consulter la note de votre évaluation finale dans l’environnement d’apprentissage dès que votre tutrice ou votre tuteur l’aura inscrite. L’évaluation finale demeure la propriété du Cégep à distance, elle ne vous sera donc pas retournée une fois corrigée. Entrevue téléphonique L’évaluation finale est suivie d’une entrevue téléphonique obligatoire qui vise à authentifier la démarche que vous avez effectuée lors de l’évaluation. Après avoir corrigé votre évaluation finale,votre tutrice ou votre tuteur communiquera avec vous afin de fixer le moment del’entrevue. Celle-ci durera environ 10&nbsp,minutes (prévoir un moment libre de20&nbsp,minutes). Au moment de l’entrevue téléphonique, assurez-vous d’avoir sous la main toute la documentation relative à l’évaluation. Quand vous êtes prêt à commencer, cliquez sur le bouton Faire le test. Bon travail!
A147: 350-102-RE-60-01 | B147: 350-102-RE-60-01 • Initiation à la psychologie | C147: 422 | D147: E1D | E147: Évaluation finale D | H147: 7 | I147: =IFERROR(SEARCH("faire*test",J147),0)+IFERROR(SEARCH("attempt*now",J147),0) -> 1714 | J147: Consignes techniques Assurez-vous que votre navigateur Web est à jour.Rappelez-vous que : Toute votre documentation de cours est permise. Lorsque vous commencerez l’évaluation finale, un compteur électronique sera lancé et enregistrera le temps écoulé jusqu’à concurrence de 7 heures (la durée prévue pourcette évaluation est de 3&nbsp,heures&nbsp,30 minutes, mais un délai supplémentaire vous estaccordé). Vous devez effectuer le travail et déposer les fichiers finaux dans l’environnement d’apprentissage dans ce délai, sinon vous aurez un échec. Pour naviguer d’une question à l’autre, vous pourrez utiliser la fonction Navigation du test. Notez que le cahier de réponses (et autres fichiers, le cas échéant) devra être téléchargé dès que l’évaluation finale commencera. Le cahier de réponses (et autres fichiers) devra être déposé à la toute fin de l’évaluation. Vous pourrez consulter la note de votre évaluation finale dans l’environnement d’apprentissage dès que votre tutrice ou votre tuteur l’aura inscrite. L’évaluation finale demeure la propriété du Cégep à distance, elle ne vous sera donc pas retournée une fois corrigée. Entrevue téléphonique L’évaluation finale est suivie d’une entrevue téléphonique obligatoire qui vise à authentifier la démarche que vous avez effectuée lors de l’évaluation. Après avoir corrigé votre évaluation finale,votre tutrice ou votre tuteur communiquera avec vous afin de fixer le moment del’entrevue. Celle-ci durera environ 10&nbsp,minutes (prévoir un moment libre de20&nbsp,minutes). Au moment de l’entrevue téléphonique, assurez-vous d’avoir sous la main toute la documentation relative à l’évaluation. Quand vous êtes prêt à commencer, cliquez sur le bouton Faire le test. Bon travail!
A148: 350-102-RE-60-01 | B148: 350-102-RE-60-01 • Initiation à la psychologie | C148: 422 | D148: E1H | E148: Évaluation finale D | H148: 7 | I148: =IFERROR(SEARCH("faire*test",J148),0)+IFERROR(SEARCH("attempt*now",J148),0) -> 1714 | J148: Consignes techniques Assurez-vous que votre navigateur Web est à jour.Rappelez-vous que : Toute votre documentation de cours est permise. Lorsque vous commencerez l’évaluation finale, un compteur électronique sera lancé et enregistrera le temps écoulé jusqu’à concurrence de 7 heures (la durée prévue pourcette évaluation est de 3&nbsp,heures&nbsp,30 minutes, mais un délai supplémentaire vous estaccordé). Vous devez effectuer le travail et déposer les fichiers finaux dans l’environnement d’apprentissage dans ce délai, sinon vous aurez un échec. Pour naviguer d’une question à l’autre, vous pourrez utiliser la fonction Navigation du test. Notez que le cahier de réponses (et autres fichiers, le cas échéant) devra être téléchargé dès que l’évaluation finale commencera. Le cahier de réponses (et autres fichiers) devra être déposé à la toute fin de l’évaluation. Vous pourrez consulter la note de votre évaluation finale dans l’environnement d’apprentissage dès que votre tutrice ou votre tuteur l’aura inscrite. L’évaluation finale demeure la propriété du Cégep à distance, elle ne vous sera donc pas retournée une fois corrigée. Entrevue téléphonique L’évaluation finale est suivie d’une entrevue téléphonique obligatoire qui vise à authentifier la démarche que vous avez effectuée lors de l’évaluation. Après avoir corrigé votre évaluation finale,votre tutrice ou votre tuteur communiquera avec vous afin de fixer le moment del’entrevue. Celle-ci durera environ 10&nbsp,minutes (prévoir un moment libre de20&nbsp,minutes). Au moment de l’entrevue téléphonique, assurez-vous d’avoir sous la main toute la documentation relative à l’évaluation. Quand vous êtes prêt à commencer, cliquez sur le bouton Faire le test. Bon travail!
A149: 381-103-FD-80-01 | B149: 381-103-FD-80-01 • Initiation à l'anthropologie | C149: 237 | D149: D3G | E149: Évaluation finale D | G149: Le idnumber correspond à un devoir et le nom correspond à un examen. Pourquoi ? | H149: 6 | I149: =IFERROR(SEARCH("faire*test",J149),0)+IFERROR(SEARCH("attempt*now",J149),0) -> 1698 | J149: Consignes techniques Assurez-vous que votre navigateur Web est à jour.Rappelez-vous que : Toute votre documentation de cours est permise. Lorsque vous commencerez l’évaluation finale, un compteur électronique sera lancé et enregistrera le temps écoulé jusqu’à concurrence de 6 heures (la durée prévue pourcette évaluation est de 3&nbsp,heures, mais un délai supplémentaire vous estaccordé). Vous devez effectuer le travail et déposer les fichiers finaux dans l’environnement d’apprentissage dans ce délai, sinon vous aurez un échec. Pour naviguer d’une question à l’autre, vous pourrez utiliser la fonction Navigation du test. Notez que le cahier de réponses (et autres fichiers, le cas échéant) devra être téléchargé dès que l’évaluation finale commencera. Le cahier de réponses (et autres fichiers) devra être déposé à la toute fin de l’évaluation. Vous pourrez consulter la note de votre évaluation finale dans l’environnement d’apprentissage dès que votre tutrice ou votre tuteur l’aura inscrite. L’évaluation finale demeure la propriété du Cégep à distance, elle ne vous sera donc pas retournée une fois corrigée. Entrevue téléphonique L’évaluation finale est suivie d’une entrevue téléphonique obligatoire qui vise à authentifier la démarche que vous avez effectuée lors de l’évaluation. Après avoir corrigé votre évaluation finale,votre tutrice ou votre tuteur communiquera avec vous afin de fixer le moment del’entrevue. Celle-ci durera environ 10&nbsp,minutes (prévoir un moment libre de20&nbsp,minutes). Au moment de l’entrevue téléphonique, assurez-vous d’avoir sous la main toute la documentation relative à l’évaluation. Quand vous êtes prêt à commencer, cliquez sur le bouton Faire le test. Bon travail!
A150: 381-103-FD-80-01 | B150: 381-103-FD-80-01 • Initiation à l'anthropologie | C150: 237 | D150: E1D | E150: Évaluation finale D | H150: 6 | I150: =IFERROR(SEARCH("faire*test",J150),0)+IFERROR(SEARCH("attempt*now",J150),0) -> 1698 | J150: Consignes techniques Assurez-vous que votre navigateur Web est à jour.Rappelez-vous que : Toute votre documentation de cours est permise. Lorsque vous commencerez l’évaluation finale, un compteur électronique sera lancé et enregistrera le temps écoulé jusqu’à concurrence de 6 heures (la durée prévue pourcette évaluation est de 3&nbsp,heures, mais un délai supplémentaire vous estaccordé). Vous devez effectuer le travail et déposer les fichiers finaux dans l’environnement d’apprentissage dans ce délai, sinon vous aurez un échec. Pour naviguer d’une question à l’autre, vous pourrez utiliser la fonction Navigation du test. Notez que le cahier de réponses (et autres fichiers, le cas échéant) devra être téléchargé dès que l’évaluation finale commencera. Le cahier de réponses (et autres fichiers) devra être déposé à la toute fin de l’évaluation. Vous pourrez consulter la note de votre évaluation finale dans l’environnement d’apprentissage dès que votre tutrice ou votre tuteur l’aura inscrite. L’évaluation finale demeure la propriété du Cégep à distance, elle ne vous sera donc pas retournée une fois corrigée. Entrevue téléphonique L’évaluation finale est suivie d’une entrevue téléphonique obligatoire qui vise à authentifier la démarche que vous avez effectuée lors de l’évaluation. Après avoir corrigé votre évaluation finale,votre tutrice ou votre tuteur communiquera avec vous afin de fixer le moment del’entrevue. Celle-ci durera environ 10&nbsp,minutes (prévoir un moment libre de20&nbsp,minutes). Au moment de l’entrevue téléphonique, assurez-vous d’avoir sous la main toute la documentation relative à l’évaluation. Quand vous êtes prêt à commencer, cliquez sur le bouton Faire le test. Bon travail!
A151: 383-204-FD-60-03 | B151: 383-204-FD-60-03 • Données et analyses macro-économiques | C151: 249 | D151: D1H | E151: Évaluation finale D | G151: Le idnumber correspond à un devoir et le nom correspond à un examen. Pourquoi ? | H151: 6 | I151: =IFERROR(SEARCH("faire*test",J151),0)+IFERROR(SEARCH("attempt*now",J151),0) -> 1698 | J151: Consignes techniques Assurez-vous que votre navigateur Web est à jour.Rappelez-vous que : Toute votre documentation de cours est permise. Lorsque vous commencerez l’évaluation finale, un compteur électronique sera lancé et enregistrera le temps écoulé jusqu’à concurrence de 6 heures (la durée prévue pourcette évaluation est de 3&nbsp,heures, mais un délai supplémentaire vous estaccordé). Vous devez effectuer le travail et déposer les fichiers finaux dans l’environnement d’apprentissage dans ce délai, sinon vous aurez un échec. Pour naviguer d’une question à l’autre, vous pourrez utiliser la fonction Navigation du test. Notez que le cahier de réponses (et autres fichiers, le cas échéant) devra être téléchargé dès que l’évaluation finale commencera. Le cahier de réponses (et autres fichiers) devra être déposé à la toute fin de l’évaluation. Vous pourrez consulter la note de votre évaluation finale dans l’environnement d’apprentissage dès que votre tutrice ou votre tuteur l’aura inscrite. L’évaluation finale demeure la propriété du Cégep à distance, elle ne vous sera donc pas retournée une fois corrigée. Entrevue téléphonique L’évaluation finale est suivie d’une entrevue téléphonique obligatoire qui vise à authentifier la démarche que vous avez effectuée lors de l’évaluation. Après avoir corrigé votre évaluation finale,votre tutrice ou votre tuteur communiquera avec vous afin de fixer le moment del’entrevue. Celle-ci durera environ 10&nbsp,minutes (prévoir un moment libre de20&nbsp,minutes). Au moment de l’entrevue téléphonique, assurez-vous d’avoir sous la main toute la documentation relative à l’évaluation. Quand vous êtes prêt à commencer, cliquez sur le bouton Faire le test. Bon travail!
A152: 383-204-FD-60-03 | B152: 383-204-FD-60-03 • Données et analyses macro-économiques | C152: 249 | D152: E1D | E152: Évaluation finale D | H152: 6 | I152: =IFERROR(SEARCH("faire*test",J152),0)+IFERROR(SEARCH("attempt*now",J152),0) -> 1698 | J152: Consignes techniques Assurez-vous que votre navigateur Web est à jour.Rappelez-vous que : Toute votre documentation de cours est permise. Lorsque vous commencerez l’évaluation finale, un compteur électronique sera lancé et enregistrera le temps écoulé jusqu’à concurrence de 6 heures (la durée prévue pourcette évaluation est de 3&nbsp,heures, mais un délai supplémentaire vous estaccordé). Vous devez effectuer le travail et déposer les fichiers finaux dans l’environnement d’apprentissage dans ce délai, sinon vous aurez un échec. Pour naviguer d’une question à l’autre, vous pourrez utiliser la fonction Navigation du test. Notez que le cahier de réponses (et autres fichiers, le cas échéant) devra être téléchargé dès que l’évaluation finale commencera. Le cahier de réponses (et autres fichiers) devra être déposé à la toute fin de l’évaluation. Vous pourrez consulter la note de votre évaluation finale dans l’environnement d’apprentissage dès que votre tutrice ou votre tuteur l’aura inscrite. L’évaluation finale demeure la propriété du Cégep à distance, elle ne vous sera donc pas retournée une fois corrigée. Entrevue téléphonique L’évaluation finale est suivie d’une entrevue téléphonique obligatoire qui vise à authentifier la démarche que vous avez effectuée lors de l’évaluation. Après avoir corrigé votre évaluation finale,votre tutrice ou votre tuteur communiquera avec vous afin de fixer le moment del’entrevue. Celle-ci durera environ 10&nbsp,minutes (prévoir un moment libre de20&nbsp,minutes). Au moment de l’entrevue téléphonique, assurez-vous d’avoir sous la main toute la documentation relative à l’évaluation. Quand vous êtes prêt à commencer, cliquez sur le bouton Faire le test. Bon travail!
A153: 383-920-RE-60-01 | B153: 383-920-RE-60-01 • Initiation à l’économie globale | C153: 525 | D153: D2B | E153: Évaluation finale D | G153: Le idnumber correspond à un devoir et le nom correspond à un examen. Pourquoi ? | H153: 6 | I153: =IFERROR(SEARCH("faire*test",J153),0)+IFERROR(SEARCH("attempt*now",J153),0) -> 1698 | J153: Consignes techniques Assurez-vous que votre navigateur Web est à jour.Rappelez-vous que : Toute votre documentation de cours est permise. Lorsque vous commencerez l’évaluation finale, un compteur électronique sera lancé et enregistrera le temps écoulé jusqu’à concurrence de 6 heures (la durée prévue pourcette évaluation est de 3&nbsp,heures, mais un délai supplémentaire vous estaccordé). Vous devez effectuer le travail et déposer les fichiers finaux dans l’environnement d’apprentissage dans ce délai, sinon vous aurez un échec. Pour naviguer d’une question à l’autre, vous pourrez utiliser la fonction Navigation du test. Notez que le cahier de réponses (et autres fichiers, le cas échéant) devra être téléchargé dès que l’évaluation finale commencera. Le cahier de réponses (et autres fichiers) devra être déposé à la toute fin de l’évaluation. Vous pourrez consulter la note de votre évaluation finale dans l’environnement d’apprentissage dès que votre tutrice ou votre tuteur l’aura inscrite. L’évaluation finale demeure la propriété du Cégep à distance, elle ne vous sera donc pas retournée une fois corrigée. Entrevue téléphonique L’évaluation finale est suivie d’une entrevue téléphonique obligatoire qui vise à authentifier la démarche que vous avez effectuée lors de l’évaluation. Après avoir corrigé votre évaluation finale,votre tutrice ou votre tuteur communiquera avec vous afin de fixer le moment del’entrevue. Celle-ci durera environ 10&nbsp,minutes (prévoir un moment libre de20&nbsp,minutes). Au moment de l’entrevue téléphonique, assurez-vous d’avoir sous la main toute la documentation relative à l’évaluation. Quand vous êtes prêt à commencer, cliquez sur le bouton Faire le test. Bon travail!
A154: 383-920-RE-60-01 | B154: 383-920-RE-60-01 • Initiation à l’économie globale | C154: 525 | D154: E1D | E154: Évaluation finale D | H154: 6 | I154: =IFERROR(SEARCH("faire*test",J154),0)+IFERROR(SEARCH("attempt*now",J154),0) -> 1698 | J154: Consignes techniques Assurez-vous que votre navigateur Web est à jour.Rappelez-vous que : Toute votre documentation de cours est permise. Lorsque vous commencerez l’évaluation finale, un compteur électronique sera lancé et enregistrera le temps écoulé jusqu’à concurrence de 6 heures (la durée prévue pourcette évaluation est de 3&nbsp,heures, mais un délai supplémentaire vous estaccordé). Vous devez effectuer le travail et déposer les fichiers finaux dans l’environnement d’apprentissage dans ce délai, sinon vous aurez un échec. Pour naviguer d’une question à l’autre, vous pourrez utiliser la fonction Navigation du test. Notez que le cahier de réponses (et autres fichiers, le cas échéant) devra être téléchargé dès que l’évaluation finale commencera. Le cahier de réponses (et autres fichiers) devra être déposé à la toute fin de l’évaluation. Vous pourrez consulter la note de votre évaluation finale dans l’environnement d’apprentissage dès que votre tutrice ou votre tuteur l’aura inscrite. L’évaluation finale demeure la propriété du Cégep à distance, elle ne vous sera donc pas retournée une fois corrigée. Entrevue téléphonique L’évaluation finale est suivie d’une entrevue téléphonique obligatoire qui vise à authentifier la démarche que vous avez effectuée lors de l’évaluation. Après avoir corrigé votre évaluation finale,votre tutrice ou votre tuteur communiquera avec vous afin de fixer le moment del’entrevue. Celle-ci durera environ 10&nbsp,minutes (prévoir un moment libre de20&nbsp,minutes). Au moment de l’entrevue téléphonique, assurez-vous d’avoir sous la main toute la documentation relative à l’évaluation. Quand vous êtes prêt à commencer, cliquez sur le bouton Faire le test. Bon travail!
A155: 385-103-FD-60-01 | B155: 385-103-FD-60-01 • Initiation à la science politique | C155: 345 | D155: D4B | E155: Évaluation finale D | G155: Le idnumber correspond à un devoir et le nom correspond à un examen. Pourquoi ? | H155: 6 | I155: =IFERROR(SEARCH("faire*test",J155),0)+IFERROR(SEARCH("attempt*now",J155),0) -> 1698 | J155: Consignes techniques Assurez-vous que votre navigateur Web est à jour.Rappelez-vous que : Toute votre documentation de cours est permise. Lorsque vous commencerez l’évaluation finale, un compteur électronique sera lancé et enregistrera le temps écoulé jusqu’à concurrence de 6 heures (la durée prévue pourcette évaluation est de 3&nbsp,heures, mais un délai supplémentaire vous estaccordé). Vous devez effectuer le travail et déposer les fichiers finaux dans l’environnement d’apprentissage dans ce délai, sinon vous aurez un échec. Pour naviguer d’une question à l’autre, vous pourrez utiliser la fonction Navigation du test. Notez que le cahier de réponses (et autres fichiers, le cas échéant) devra être téléchargé dès que l’évaluation finale commencera. Le cahier de réponses (et autres fichiers) devra être déposé à la toute fin de l’évaluation. Vous pourrez consulter la note de votre évaluation finale dans l’environnement d’apprentissage dès que votre tutrice ou votre tuteur l’aura inscrite. L’évaluation finale demeure la propriété du Cégep à distance, elle ne vous sera donc pas retournée une fois corrigée. Entrevue téléphonique L’évaluation finale est suivie d’une entrevue téléphonique obligatoire qui vise à authentifier la démarche que vous avez effectuée lors de l’évaluation. Après avoir corrigé votre évaluation finale,votre tutrice ou votre tuteur communiquera avec vous afin de fixer le moment del’entrevue. Celle-ci durera environ 10&nbsp,minutes (prévoir un moment libre de20&nbsp,minutes). Au moment de l’entrevue téléphonique, assurez-vous d’avoir sous la main toute la documentation relative à l’évaluation. Quand vous êtes prêt à commencer, cliquez sur le bouton Faire le test. Bon travail!
A156: 385-103-FD-60-01 | B156: 385-103-FD-60-01 • Initiation à la science politique | C156: 345 | D156: E1D | E156: Évaluation finale D | H156: 6 | I156: =IFERROR(SEARCH("faire*test",J156),0)+IFERROR(SEARCH("attempt*now",J156),0) -> 1698 | J156: Consignes techniques Assurez-vous que votre navigateur Web est à jour.Rappelez-vous que : Toute votre documentation de cours est permise. Lorsque vous commencerez l’évaluation finale, un compteur électronique sera lancé et enregistrera le temps écoulé jusqu’à concurrence de 6 heures (la durée prévue pourcette évaluation est de 3&nbsp,heures, mais un délai supplémentaire vous estaccordé). Vous devez effectuer le travail et déposer les fichiers finaux dans l’environnement d’apprentissage dans ce délai, sinon vous aurez un échec. Pour naviguer d’une question à l’autre, vous pourrez utiliser la fonction Navigation du test. Notez que le cahier de réponses (et autres fichiers, le cas échéant) devra être téléchargé dès que l’évaluation finale commencera. Le cahier de réponses (et autres fichiers) devra être déposé à la toute fin de l’évaluation. Vous pourrez consulter la note de votre évaluation finale dans l’environnement d’apprentissage dès que votre tutrice ou votre tuteur l’aura inscrite. L’évaluation finale demeure la propriété du Cégep à distance, elle ne vous sera donc pas retournée une fois corrigée. Entrevue téléphonique L’évaluation finale est suivie d’une entrevue téléphonique obligatoire qui vise à authentifier la démarche que vous avez effectuée lors de l’évaluation. Après avoir corrigé votre évaluation finale,votre tutrice ou votre tuteur communiquera avec vous afin de fixer le moment del’entrevue. Celle-ci durera environ 10&nbsp,minutes (prévoir un moment libre de20&nbsp,minutes). Au moment de l’entrevue téléphonique, assurez-vous d’avoir sous la main toute la documentation relative à l’évaluation. Quand vous êtes prêt à commencer, cliquez sur le bouton Faire le test. Bon travail!
A157: 385-203-FD-60-01 | B157: 385-203-FD-60-01 • Les institutions politiques canadiennes et québécoises | C157: 244 | D157: E1D | E157: Évaluation finale D | H157: 6 | I157: =IFERROR(SEARCH("faire*test",J157),0)+IFERROR(SEARCH("attempt*now",J157),0) -> 1698 | J157: Consignes techniques Assurez-vous que votre navigateur Web est à jour.Rappelez-vous que : Toute votre documentation de cours est permise. Lorsque vous commencerez l’évaluation finale, un compteur électronique sera lancé et enregistrera le temps écoulé jusqu’à concurrence de 6 heures (la durée prévue pourcette évaluation est de 3&nbsp,heures, mais un délai supplémentaire vous estaccordé). Vous devez effectuer le travail et déposer les fichiers finaux dans l’environnement d’apprentissage dans ce délai, sinon vous aurez un échec. Pour naviguer d’une question à l’autre, vous pourrez utiliser la fonction Navigation du test. Notez que le cahier de réponses (et autres fichiers, le cas échéant) devra être téléchargé dès que l’évaluation finale commencera. Le cahier de réponses (et autres fichiers) devra être déposé à la toute fin de l’évaluation. Vous pourrez consulter la note de votre évaluation finale dans l’environnement d’apprentissage dès que votre tutrice ou votre tuteur l’aura inscrite. L’évaluation finale demeure la propriété du Cégep à distance, elle ne vous sera donc pas retournée une fois corrigée. Entrevue téléphonique L’évaluation finale est suivie d’une entrevue téléphonique obligatoire qui vise à authentifier la démarche que vous avez effectuée lors de l’évaluation. Après avoir corrigé votre évaluation finale,votre tutrice ou votre tuteur communiquera avec vous afin de fixer le moment del’entrevue. Celle-ci durera environ 10&nbsp,minutes (prévoir un moment libre de20&nbsp,minutes). Au moment de l’entrevue téléphonique, assurez-vous d’avoir sous la main toute la documentation relative à l’évaluation. Quand vous êtes prêt à commencer, cliquez sur le bouton Faire le test. Bon travail!
A158: 385-203-FD-60-01 | B158: 385-203-FD-60-01 • Les institutions politiques canadiennes et québécoises | C158: 244 | D158: E1H | E158: Évaluation finale D | H158: 6 | I158: =IFERROR(SEARCH("faire*test",J158),0)+IFERROR(SEARCH("attempt*now",J158),0) -> 1698 | J158: Consignes techniques Assurez-vous que votre navigateur Web est à jour.Rappelez-vous que : Toute votre documentation de cours est permise. Lorsque vous commencerez l’évaluation finale, un compteur électronique sera lancé et enregistrera le temps écoulé jusqu’à concurrence de 6 heures (la durée prévue pourcette évaluation est de 3&nbsp,heures, mais un délai supplémentaire vous estaccordé). Vous devez effectuer le travail et déposer les fichiers finaux dans l’environnement d’apprentissage dans ce délai, sinon vous aurez un échec. Pour naviguer d’une question à l’autre, vous pourrez utiliser la fonction Navigation du test. Notez que le cahier de réponses (et autres fichiers, le cas échéant) devra être téléchargé dès que l’évaluation finale commencera. Le cahier de réponses (et autres fichiers) devra être déposé à la toute fin de l’évaluation. Vous pourrez consulter la note de votre évaluation finale dans l’environnement d’apprentissage dès que votre tutrice ou votre tuteur l’aura inscrite. L’évaluation finale demeure la propriété du Cégep à distance, elle ne vous sera donc pas retournée une fois corrigée. Entrevue téléphonique L’évaluation finale est suivie d’une entrevue téléphonique obligatoire qui vise à authentifier la démarche que vous avez effectuée lors de l’évaluation. Après avoir corrigé votre évaluation finale,votre tutrice ou votre tuteur communiquera avec vous afin de fixer le moment del’entrevue. Celle-ci durera environ 10&nbsp,minutes (prévoir un moment libre de20&nbsp,minutes). Au moment de l’entrevue téléphonique, assurez-vous d’avoir sous la main toute la documentation relative à l’évaluation. Quand vous êtes prêt à commencer, cliquez sur le bouton Faire le test. Bon travail!
A159: 387-103-FD-60-01 | B159: 387-103-FD-60-01 • Initiation à la sociologie | C159: 238 | D159: D1C | E159: Évaluation finale D | G159: Le idnumber correspond à un devoir et le nom correspond à un examen. Pourquoi ? | H159: 6 | I159: =IFERROR(SEARCH("faire*test",J159),0)+IFERROR(SEARCH("attempt*now",J159),0) -> 1698 | J159: Consignes techniques Assurez-vous que votre navigateur Web est à jour.Rappelez-vous que : Toute votre documentation de cours est permise. Lorsque vous commencerez l’évaluation finale, un compteur électronique sera lancé et enregistrera le temps écoulé jusqu’à concurrence de 6 heures (la durée prévue pourcette évaluation est de 3&nbsp,heures, mais un délai supplémentaire vous estaccordé). Vous devez effectuer le travail et déposer les fichiers finaux dans l’environnement d’apprentissage dans ce délai, sinon vous aurez un échec. Pour naviguer d’une question à l’autre, vous pourrez utiliser la fonction Navigation du test. Notez que le cahier de réponses (et autres fichiers, le cas échéant) devra être téléchargé dès que l’évaluation finale commencera. Le cahier de réponses (et autres fichiers) devra être déposé à la toute fin de l’évaluation. Vous pourrez consulter la note de votre évaluation finale dans l’environnement d’apprentissage dès que votre tutrice ou votre tuteur l’aura inscrite. L’évaluation finale demeure la propriété du Cégep à distance, elle ne vous sera donc pas retournée une fois corrigée. Entrevue téléphonique L’évaluation finale est suivie d’une entrevue téléphonique obligatoire qui vise à authentifier la démarche que vous avez effectuée lors de l’évaluation. Après avoir corrigé votre évaluation finale,votre tutrice ou votre tuteur communiquera avec vous afin de fixer le moment del’entrevue. Celle-ci durera environ 10&nbsp,minutes (prévoir un moment libre de20&nbsp,minutes). Au moment de l’entrevue téléphonique, assurez-vous d’avoir sous la main toute la documentation relative à l’évaluation. Quand vous êtes prêt à commencer, cliquez sur le bouton Faire le test. Bon travail!
A160: 387-103-FD-60-01 | B160: 387-103-FD-60-01 • Initiation à la sociologie | C160: 238 | D160: E1D | E160: Évaluation finale D | H160: 6 | I160: =IFERROR(SEARCH("faire*test",J160),0)+IFERROR(SEARCH("attempt*now",J160),0) -> 1698 | J160: Consignes techniques Assurez-vous que votre navigateur Web est à jour.Rappelez-vous que : Toute votre documentation de cours est permise. Lorsque vous commencerez l’évaluation finale, un compteur électronique sera lancé et enregistrera le temps écoulé jusqu’à concurrence de 6 heures (la durée prévue pourcette évaluation est de 3&nbsp,heures, mais un délai supplémentaire vous estaccordé). Vous devez effectuer le travail et déposer les fichiers finaux dans l’environnement d’apprentissage dans ce délai, sinon vous aurez un échec. Pour naviguer d’une question à l’autre, vous pourrez utiliser la fonction Navigation du test. Notez que le cahier de réponses (et autres fichiers, le cas échéant) devra être téléchargé dès que l’évaluation finale commencera. Le cahier de réponses (et autres fichiers) devra être déposé à la toute fin de l’évaluation. Vous pourrez consulter la note de votre évaluation finale dans l’environnement d’apprentissage dès que votre tutrice ou votre tuteur l’aura inscrite. L’évaluation finale demeure la propriété du Cégep à distance, elle ne vous sera donc pas retournée une fois corrigée. Entrevue téléphonique L’évaluation finale est suivie d’une entrevue téléphonique obligatoire qui vise à authentifier la démarche que vous avez effectuée lors de l’évaluation. Après avoir corrigé votre évaluation finale,votre tutrice ou votre tuteur communiquera avec vous afin de fixer le moment del’entrevue. Celle-ci durera environ 10&nbsp,minutes (prévoir un moment libre de20&nbsp,minutes). Au moment de l’entrevue téléphonique, assurez-vous d’avoir sous la main toute la documentation relative à l’évaluation. Quand vous êtes prêt à commencer, cliquez sur le bouton Faire le test. Bon travail!
A161: 387-203-FD-80-01 | B161: 387-203-FD-80-01 • Les médias au cœur de la culture | C161: 346 | D161: D4H | E161: Évaluation finale D | G161: Le idnumber correspond à un devoir et le nom correspond à un examen. Pourquoi ? | H161: 6 | I161: =IFERROR(SEARCH("faire*test",J161),0)+IFERROR(SEARCH("attempt*now",J161),0) -> 1698 | J161: Consignes techniques Assurez-vous que votre navigateur Web est à jour.Rappelez-vous que : Toute votre documentation de cours est permise. Lorsque vous commencerez l’évaluation finale, un compteur électronique sera lancé et enregistrera le temps écoulé jusqu’à concurrence de 6 heures (la durée prévue pourcette évaluation est de 3&nbsp,heures, mais un délai supplémentaire vous estaccordé). Vous devez effectuer le travail et déposer les fichiers finaux dans l’environnement d’apprentissage dans ce délai, sinon vous aurez un échec. Pour naviguer d’une question à l’autre, vous pourrez utiliser la fonction Navigation du test. Notez que le cahier de réponses (et autres fichiers, le cas échéant) devra être téléchargé dès que l’évaluation finale commencera. Le cahier de réponses (et autres fichiers) devra être déposé à la toute fin de l’évaluation. Vous pourrez consulter la note de votre évaluation finale dans l’environnement d’apprentissage dès que votre tutrice ou votre tuteur l’aura inscrite. L’évaluation finale demeure la propriété du Cégep à distance, elle ne vous sera donc pas retournée une fois corrigée. Entrevue téléphonique L’évaluation finale est suivie d’une entrevue téléphonique obligatoire qui vise à authentifier la démarche que vous avez effectuée lors de l’évaluation. Après avoir corrigé votre évaluation finale,votre tutrice ou votre tuteur communiquera avec vous afin de fixer le moment del’entrevue. Celle-ci durera environ 10&nbsp,minutes (prévoir un moment libre de20&nbsp,minutes). Au moment de l’entrevue téléphonique, assurez-vous d’avoir sous la main toute la documentation relative à l’évaluation. Quand vous êtes prêt à commencer, cliquez sur le bouton Faire le test. Bon travail!
A162: 387-203-FD-80-01 | B162: 387-203-FD-80-01 • Les médias au cœur de la culture | C162: 346 | D162: E1D | E162: Évaluation finale D | H162: 6 | I162: =IFERROR(SEARCH("faire*test",J162),0)+IFERROR(SEARCH("attempt*now",J162),0) -> 1698 | J162: Consignes techniques Assurez-vous que votre navigateur Web est à jour.Rappelez-vous que : Toute votre documentation de cours est permise. Lorsque vous commencerez l’évaluation finale, un compteur électronique sera lancé et enregistrera le temps écoulé jusqu’à concurrence de 6 heures (la durée prévue pourcette évaluation est de 3&nbsp,heures, mais un délai supplémentaire vous estaccordé). Vous devez effectuer le travail et déposer les fichiers finaux dans l’environnement d’apprentissage dans ce délai, sinon vous aurez un échec. Pour naviguer d’une question à l’autre, vous pourrez utiliser la fonction Navigation du test. Notez que le cahier de réponses (et autres fichiers, le cas échéant) devra être téléchargé dès que l’évaluation finale commencera. Le cahier de réponses (et autres fichiers) devra être déposé à la toute fin de l’évaluation. Vous pourrez consulter la note de votre évaluation finale dans l’environnement d’apprentissage dès que votre tutrice ou votre tuteur l’aura inscrite. L’évaluation finale demeure la propriété du Cégep à distance, elle ne vous sera donc pas retournée une fois corrigée. Entrevue téléphonique L’évaluation finale est suivie d’une entrevue téléphonique obligatoire qui vise à authentifier la démarche que vous avez effectuée lors de l’évaluation. Après avoir corrigé votre évaluation finale,votre tutrice ou votre tuteur communiquera avec vous afin de fixer le moment del’entrevue. Celle-ci durera environ 10&nbsp,minutes (prévoir un moment libre de20&nbsp,minutes). Au moment de l’entrevue téléphonique, assurez-vous d’avoir sous la main toute la documentation relative à l’évaluation. Quand vous êtes prêt à commencer, cliquez sur le bouton Faire le test. Bon travail!
A163: 401-203-FD-60-01 | B163: 401-203-FD-60-01 • Principes de gestion | C163: 262 | D163: E1D | E163: Évaluation finale D | H163: 6 | I163: =IFERROR(SEARCH("faire*test",J163),0)+IFERROR(SEARCH("attempt*now",J163),0) -> 1698 | J163: Consignes techniques Assurez-vous que votre navigateur Web est à jour.Rappelez-vous que : Toute votre documentation de cours est permise. Lorsque vous commencerez l’évaluation finale, un compteur électronique sera lancé et enregistrera le temps écoulé jusqu’à concurrence de 6 heures (la durée prévue pourcette évaluation est de 3&nbsp,heures, mais un délai supplémentaire vous estaccordé). Vous devez effectuer le travail et déposer les fichiers finaux dans l’environnement d’apprentissage dans ce délai, sinon vous aurez un échec. Pour naviguer d’une question à l’autre, vous pourrez utiliser la fonction Navigation du test. Notez que le cahier de réponses (et autres fichiers, le cas échéant) devra être téléchargé dès que l’évaluation finale commencera. Le cahier de réponses (et autres fichiers) devra être déposé à la toute fin de l’évaluation. Vous pourrez consulter la note de votre évaluation finale dans l’environnement d’apprentissage dès que votre tutrice ou votre tuteur l’aura inscrite. L’évaluation finale demeure la propriété du Cégep à distance, elle ne vous sera donc pas retournée une fois corrigée. Entrevue téléphonique L’évaluation finale est suivie d’une entrevue téléphonique obligatoire qui vise à authentifier la démarche que vous avez effectuée lors de l’évaluation. Après avoir corrigé votre évaluation finale,votre tutrice ou votre tuteur communiquera avec vous afin de fixer le moment del’entrevue. Celle-ci durera environ 10&nbsp,minutes (prévoir un moment libre de20&nbsp,minutes). Au moment de l’entrevue téléphonique, assurez-vous d’avoir sous la main toute la documentation relative à l’évaluation. Quand vous êtes prêt à commencer, cliquez sur le bouton Faire le test. Bon travail!
A164: 410-103-FD-80-01 | B164: 410-103-FD-80-01 • Fonctions de travail en comptabilité et en gestion | C164: 347 | D164: D1E | E164: Évaluation finale D | G164: Le idnumber correspond à un devoir et le nom correspond à un examen. Pourquoi ? | H164: 6 | I164: =IFERROR(SEARCH("faire*test",J164),0)+IFERROR(SEARCH("attempt*now",J164),0) -> 1698 | J164: Consignes techniques Assurez-vous que votre navigateur Web est à jour.Rappelez-vous que : Toute votre documentation de cours est permise. Lorsque vous commencerez l’évaluation finale, un compteur électronique sera lancé et enregistrera le temps écoulé jusqu’à concurrence de 6 heures (la durée prévue pourcette évaluation est de 3&nbsp,heures, mais un délai supplémentaire vous estaccordé). Vous devez effectuer le travail et déposer les fichiers finaux dans l’environnement d’apprentissage dans ce délai, sinon vous aurez un échec. Pour naviguer d’une question à l’autre, vous pourrez utiliser la fonction Navigation du test. Notez que le cahier de réponses (et autres fichiers, le cas échéant) devra être téléchargé dès que l’évaluation finale commencera. Le cahier de réponses (et autres fichiers) devra être déposé à la toute fin de l’évaluation. Vous pourrez consulter la note de votre évaluation finale dans l’environnement d’apprentissage dès que votre tutrice ou votre tuteur l’aura inscrite. L’évaluation finale demeure la propriété du Cégep à distance, elle ne vous sera donc pas retournée une fois corrigée. Entrevue téléphonique L’évaluation finale est suivie d’une entrevue téléphonique obligatoire qui vise à authentifier la démarche que vous avez effectuée lors de l’évaluation. Après avoir corrigé votre évaluation finale,votre tutrice ou votre tuteur communiquera avec vous afin de fixer le moment del’entrevue. Celle-ci durera environ 10&nbsp,minutes (prévoir un moment libre de20&nbsp,minutes). Au moment de l’entrevue téléphonique, assurez-vous d’avoir sous la main toute la documentation relative à l’évaluation. Quand vous êtes prêt à commencer, cliquez sur le bouton Faire le test. Bon travail!
A165: 410-103-FD-80-01 | B165: 410-103-FD-80-01 • Fonctions de travail en comptabilité et en gestion | C165: 347 | D165: E1D | E165: Évaluation finale D | H165: 6 | I165: =IFERROR(SEARCH("faire*test",J165),0)+IFERROR(SEARCH("attempt*now",J165),0) -> 1698 | J165: Consignes techniques Assurez-vous que votre navigateur Web est à jour.Rappelez-vous que : Toute votre documentation de cours est permise. Lorsque vous commencerez l’évaluation finale, un compteur électronique sera lancé et enregistrera le temps écoulé jusqu’à concurrence de 6 heures (la durée prévue pourcette évaluation est de 3&nbsp,heures, mais un délai supplémentaire vous estaccordé). Vous devez effectuer le travail et déposer les fichiers finaux dans l’environnement d’apprentissage dans ce délai, sinon vous aurez un échec. Pour naviguer d’une question à l’autre, vous pourrez utiliser la fonction Navigation du test. Notez que le cahier de réponses (et autres fichiers, le cas échéant) devra être téléchargé dès que l’évaluation finale commencera. Le cahier de réponses (et autres fichiers) devra être déposé à la toute fin de l’évaluation. Vous pourrez consulter la note de votre évaluation finale dans l’environnement d’apprentissage dès que votre tutrice ou votre tuteur l’aura inscrite. L’évaluation finale demeure la propriété du Cégep à distance, elle ne vous sera donc pas retournée une fois corrigée. Entrevue téléphonique L’évaluation finale est suivie d’une entrevue téléphonique obligatoire qui vise à authentifier la démarche que vous avez effectuée lors de l’évaluation. Après avoir corrigé votre évaluation finale,votre tutrice ou votre tuteur communiquera avec vous afin de fixer le moment del’entrevue. Celle-ci durera environ 10&nbsp,minutes (prévoir un moment libre de20&nbsp,minutes). Au moment de l’entrevue téléphonique, assurez-vous d’avoir sous la main toute la documentation relative à l’évaluation. Quand vous êtes prêt à commencer, cliquez sur le bouton Faire le test. Bon travail!
A166: 410-203-FD-60-01 | B166: 410-203-FD-60-01 • Système de gestion intégrée | C166: 435 | D166: E1D | E166: Évaluation finale D | H166: 6 | I166: =IFERROR(SEARCH("faire*test",J166),0)+IFERROR(SEARCH("attempt*now",J166),0) -> 1698 | J166: Consignes techniques Assurez-vous que votre navigateur Web est à jour.Rappelez-vous que : Toute votre documentation de cours est permise. Lorsque vous commencerez l’évaluation finale, un compteur électronique sera lancé et enregistrera le temps écoulé jusqu’à concurrence de 6 heures (la durée prévue pourcette évaluation est de 3&nbsp,heures, mais un délai supplémentaire vous estaccordé). Vous devez effectuer le travail et déposer les fichiers finaux dans l’environnement d’apprentissage dans ce délai, sinon vous aurez un échec. Pour naviguer d’une question à l’autre, vous pourrez utiliser la fonction Navigation du test. Notez que le cahier de réponses (et autres fichiers, le cas échéant) devra être téléchargé dès que l’évaluation finale commencera. Le cahier de réponses (et autres fichiers) devra être déposé à la toute fin de l’évaluation. Vous pourrez consulter la note de votre évaluation finale dans l’environnement d’apprentissage dès que votre tutrice ou votre tuteur l’aura inscrite. L’évaluation finale demeure la propriété du Cégep à distance, elle ne vous sera donc pas retournée une fois corrigée. Entrevue téléphonique L’évaluation finale est suivie d’une entrevue téléphonique obligatoire qui vise à authentifier la démarche que vous avez effectuée lors de l’évaluation. Après avoir corrigé votre évaluation finale,votre tutrice ou votre tuteur communiquera avec vous afin de fixer le moment del’entrevue. Celle-ci durera environ 10&nbsp,minutes (prévoir un moment libre de20&nbsp,minutes). Au moment de l’entrevue téléphonique, assurez-vous d’avoir sous la main toute la documentation relative à l’évaluation. Quand vous êtes prêt à commencer, cliquez sur le bouton Faire le test. Bon travail!
A167: 410-223-FD-60-01 | B167: 410-223-FD-60-01 • Approche client | C167: 409 | D167: D3A | E167: Évaluation finale D | G167: Le idnumber correspond à un devoir et le nom correspond à un examen. Pourquoi ? | H167: 6 | I167: =IFERROR(SEARCH("faire*test",J167),0)+IFERROR(SEARCH("attempt*now",J167),0) -> 1698 | J167: Consignes techniques Assurez-vous que votre navigateur Web est à jour.Rappelez-vous que : Toute votre documentation de cours est permise. Lorsque vous commencerez l’évaluation finale, un compteur électronique sera lancé et enregistrera le temps écoulé jusqu’à concurrence de 6 heures (la durée prévue pourcette évaluation est de 3&nbsp,heures, mais un délai supplémentaire vous estaccordé). Vous devez effectuer le travail et déposer les fichiers finaux dans l’environnement d’apprentissage dans ce délai, sinon vous aurez un échec. Pour naviguer d’une question à l’autre, vous pourrez utiliser la fonction Navigation du test. Notez que le cahier de réponses (et autres fichiers, le cas échéant) devra être téléchargé dès que l’évaluation finale commencera. Le cahier de réponses (et autres fichiers) devra être déposé à la toute fin de l’évaluation. Vous pourrez consulter la note de votre évaluation finale dans l’environnement d’apprentissage dès que votre tutrice ou votre tuteur l’aura inscrite. L’évaluation finale demeure la propriété du Cégep à distance, elle ne vous sera donc pas retournée une fois corrigée. Entrevue téléphonique L’évaluation finale est suivie d’une entrevue téléphonique obligatoire qui vise à authentifier la démarche que vous avez effectuée lors de l’évaluation. Après avoir corrigé votre évaluation finale,votre tutrice ou votre tuteur communiquera avec vous afin de fixer le moment del’entrevue. Celle-ci durera environ 10&nbsp,minutes (prévoir un moment libre de20&nbsp,minutes). Au moment de l’entrevue téléphonique, assurez-vous d’avoir sous la main toute la documentation relative à l’évaluation. Quand vous êtes prêt à commencer, cliquez sur le bouton Faire le test. Bon travail!
A168: 410-223-FD-60-01 | B168: 410-223-FD-60-01 • Approche client | C168: 409 | D168: E1D | E168: Évaluation finale D | H168: 6 | I168: =IFERROR(SEARCH("faire*test",J168),0)+IFERROR(SEARCH("attempt*now",J168),0) -> 1698 | J168: Consignes techniques Assurez-vous que votre navigateur Web est à jour.Rappelez-vous que : Toute votre documentation de cours est permise. Lorsque vous commencerez l’évaluation finale, un compteur électronique sera lancé et enregistrera le temps écoulé jusqu’à concurrence de 6 heures (la durée prévue pourcette évaluation est de 3&nbsp,heures, mais un délai supplémentaire vous estaccordé). Vous devez effectuer le travail et déposer les fichiers finaux dans l’environnement d’apprentissage dans ce délai, sinon vous aurez un échec. Pour naviguer d’une question à l’autre, vous pourrez utiliser la fonction Navigation du test. Notez que le cahier de réponses (et autres fichiers, le cas échéant) devra être téléchargé dès que l’évaluation finale commencera. Le cahier de réponses (et autres fichiers) devra être déposé à la toute fin de l’évaluation. Vous pourrez consulter la note de votre évaluation finale dans l’environnement d’apprentissage dès que votre tutrice ou votre tuteur l’aura inscrite. L’évaluation finale demeure la propriété du Cégep à distance, elle ne vous sera donc pas retournée une fois corrigée. Entrevue téléphonique L’évaluation finale est suivie d’une entrevue téléphonique obligatoire qui vise à authentifier la démarche que vous avez effectuée lors de l’évaluation. Après avoir corrigé votre évaluation finale,votre tutrice ou votre tuteur communiquera avec vous afin de fixer le moment del’entrevue. Celle-ci durera environ 10&nbsp,minutes (prévoir un moment libre de20&nbsp,minutes). Au moment de l’entrevue téléphonique, assurez-vous d’avoir sous la main toute la documentation relative à l’évaluation. Quand vous êtes prêt à commencer, cliquez sur le bouton Faire le test. Bon travail!
A169: 410-233-FD-60-03 | B169: 410-233-FD-60-03 • Introduction au droit des affaires | C169: 253 | D169: E1D | E169: Évaluation finale D | H169: 6 | I169: =IFERROR(SEARCH("faire*test",J169),0)+IFERROR(SEARCH("attempt*now",J169),0) -> 1698 | J169: Consignes techniques Assurez-vous que votre navigateur Web est à jour.Rappelez-vous que : Toute votre documentation de cours est permise. Lorsque vous commencerez l’évaluation finale, un compteur électronique sera lancé et enregistrera le temps écoulé jusqu’à concurrence de 6 heures (la durée prévue pourcette évaluation est de 3&nbsp,heures, mais un délai supplémentaire vous estaccordé). Vous devez effectuer le travail et déposer les fichiers finaux dans l’environnement d’apprentissage dans ce délai, sinon vous aurez un échec. Pour naviguer d’une question à l’autre, vous pourrez utiliser la fonction Navigation du test. Notez que le cahier de réponses (et autres fichiers, le cas échéant) devra être téléchargé dès que l’évaluation finale commencera. Le cahier de réponses (et autres fichiers) devra être déposé à la toute fin de l’évaluation. Vous pourrez consulter la note de votre évaluation finale dans l’environnement d’apprentissage dès que votre tutrice ou votre tuteur l’aura inscrite. L’évaluation finale demeure la propriété du Cégep à distance, elle ne vous sera donc pas retournée une fois corrigée. Entrevue téléphonique L’évaluation finale est suivie d’une entrevue téléphonique obligatoire qui vise à authentifier la démarche que vous avez effectuée lors de l’évaluation. Après avoir corrigé votre évaluation finale,votre tutrice ou votre tuteur communiquera avec vous afin de fixer le moment del’entrevue. Celle-ci durera environ 10&nbsp,minutes (prévoir un moment libre de20&nbsp,minutes). Au moment de l’entrevue téléphonique, assurez-vous d’avoir sous la main toute la documentation relative à l’évaluation. Quand vous êtes prêt à commencer, cliquez sur le bouton Faire le test. Bon travail!
A170: 410-323-FD-60-01 | B170: 410-323-FD-60-01 • Recherche et traitement de l'information de gestion | C170: 289 | D170: D4E | E170: Évaluation finale D | G170: Le idnumber correspond à un devoir et le nom correspond à un examen. Pourquoi ? | H170: 6 | I170: =IFERROR(SEARCH("faire*test",J170),0)+IFERROR(SEARCH("attempt*now",J170),0) -> 1879 | J170: Consignes&nbsp,techniques&nbsp,Assurez-vous que votre navigateur Web est à jour.&nbsp,Rappelez-vous que :&nbsp,Toute votre&nbsp,documentation&nbsp,de cours est permise.&nbsp,Lorsque vous commencerez l’évaluation finale, un compteur électronique sera lancé et enregistrera le temps écoulé jusqu’à concurrence de 6&nbsp,heures&nbsp,(la durée prévue&nbsp,pour&nbsp,cette évaluation est de 3&nbsp,heures, mais un&nbsp,délai&nbsp,supplémentaire vous est accordé).&nbsp,Vous devez effectuer le travail et déposer les fichiers finaux dans l’environnement d’apprentissage dans ce délai, sinon vous aurez un échec.&nbsp,Pour naviguer d’une question à l’autre, vous pourrez utiliser la fonction Navigation du test. Notez que le cahier de réponses (et autres fichiers, le cas échéant) devra être téléchargé dès que l’évaluation finale commencera. Le cahier de réponses (et autres fichiers) devra être déposé à la toute fin de l’évaluation.&nbsp,&nbsp,&nbsp,Vous pourrez consulter la note de votre&nbsp,évaluation finale&nbsp,dans l’environnement d’apprentissage dès que votre tutrice ou votre tuteur l’aura inscrite.&nbsp,L’évaluation finale&nbsp,demeure la propriété du Cégep à distance,&nbsp,elle&nbsp,ne vous sera donc pas retournée&nbsp,une fois corrigée.&nbsp,Entrevue téléphonique&nbsp,L’évaluation finale est suivie d’une&nbsp,entrevue téléphonique obligatoire&nbsp,qui vise à authentifier la démarche que vous avez effectuée lors de l’évaluation.&nbsp,Après avoir corrigé votre évaluation finale, votre tutrice ou votre tuteur communiquera avec vous afin de fixer le moment de l’entrevue. Celle-ci durera environ 10&nbsp,minutes (prévoir un moment libre de 20&nbsp,minutes).&nbsp,Au moment de l’entrevue téléphonique, assurez-vous d’avoir sous la main&nbsp,toute&nbsp,la documentation&nbsp,relative à l’évaluation.&nbsp,Quand vous êtes prêt à commencer, cliquez sur le bouton&nbsp,Faire&nbsp,le test.&nbsp,Bon travail!&nbsp,
A171: 410-323-FD-60-01 | B171: 410-323-FD-60-01 • Recherche et traitement de l'information de gestion | C171: 289 | D171: E1D | E171: Évaluation finale D | H171: 6 | I171: =IFERROR(SEARCH("faire*test",J171),0)+IFERROR(SEARCH("attempt*now",J171),0) -> 1879 | J171: Consignes&nbsp,techniques&nbsp,Assurez-vous que votre navigateur Web est à jour.&nbsp,Rappelez-vous que :&nbsp,Toute votre&nbsp,documentation&nbsp,de cours est permise.&nbsp,Lorsque vous commencerez l’évaluation finale, un compteur électronique sera lancé et enregistrera le temps écoulé jusqu’à concurrence de 6&nbsp,heures&nbsp,(la durée prévue&nbsp,pour&nbsp,cette évaluation est de 3&nbsp,heures, mais un&nbsp,délai&nbsp,supplémentaire vous est accordé).&nbsp,Vous devez effectuer le travail et déposer les fichiers finaux dans l’environnement d’apprentissage dans ce délai, sinon vous aurez un échec.&nbsp,Pour naviguer d’une question à l’autre, vous pourrez utiliser la fonction Navigation du test. Notez que le cahier de réponses (et autres fichiers, le cas échéant) devra être téléchargé dès que l’évaluation finale commencera. Le cahier de réponses (et autres fichiers) devra être déposé à la toute fin de l’évaluation.&nbsp,&nbsp,&nbsp,Vous pourrez consulter la note de votre&nbsp,évaluation finale&nbsp,dans l’environnement d’apprentissage dès que votre tutrice ou votre tuteur l’aura inscrite.&nbsp,L’évaluation finale&nbsp,demeure la propriété du Cégep à distance,&nbsp,elle&nbsp,ne vous sera donc pas retournée&nbsp,une fois corrigée.&nbsp,Entrevue téléphonique&nbsp,L’évaluation finale est suivie d’une&nbsp,entrevue téléphonique obligatoire&nbsp,qui vise à authentifier la démarche que vous avez effectuée lors de l’évaluation.&nbsp,Après avoir corrigé votre évaluation finale, votre tutrice ou votre tuteur communiquera avec vous afin de fixer le moment de l’entrevue. Celle-ci durera environ 10&nbsp,minutes (prévoir un moment libre de 20&nbsp,minutes).&nbsp,Au moment de l’entrevue téléphonique, assurez-vous d’avoir sous la main&nbsp,toute&nbsp,la documentation&nbsp,relative à l’évaluation.&nbsp,Quand vous êtes prêt à commencer, cliquez sur le bouton&nbsp,Faire&nbsp,le test.&nbsp,Bon travail!&nbsp,
A172: 410-413-FD-60-02 | B172: 410-413-FD-60-02 • Applications informatiques en administration | C172: 257 | D172: D1D | E172: Évaluation finale D | G172: Le idnumber correspond à un devoir et le nom correspond à un examen. Pourquoi ? | H172: 6 | I172: =IFERROR(SEARCH("faire*test",J172),0)+IFERROR(SEARCH("attempt*now",J172),0) -> 1698 | J172: Consignes techniques Assurez-vous que votre navigateur Web est à jour.Rappelez-vous que : Toute votre documentation de cours est permise. Lorsque vous commencerez l’évaluation finale, un compteur électronique sera lancé et enregistrera le temps écoulé jusqu’à concurrence de 6 heures (la durée prévue pourcette évaluation est de 3&nbsp,heures, mais un délai supplémentaire vous estaccordé). Vous devez effectuer le travail et déposer les fichiers finaux dans l’environnement d’apprentissage dans ce délai, sinon vous aurez un échec. Pour naviguer d’une question à l’autre, vous pourrez utiliser la fonction Navigation du test. Notez que le cahier de réponses (et autres fichiers, le cas échéant) devra être téléchargé dès que l’évaluation finale commencera. Le cahier de réponses (et autres fichiers) devra être déposé à la toute fin de l’évaluation. Vous pourrez consulter la note de votre évaluation finale dans l’environnement d’apprentissage dès que votre tutrice ou votre tuteur l’aura inscrite. L’évaluation finale demeure la propriété du Cégep à distance, elle ne vous sera donc pas retournée une fois corrigée. Entrevue téléphonique L’évaluation finale est suivie d’une entrevue téléphonique obligatoire qui vise à authentifier la démarche que vous avez effectuée lors de l’évaluation. Après avoir corrigé votre évaluation finale,votre tutrice ou votre tuteur communiquera avec vous afin de fixer le moment del’entrevue. Celle-ci durera environ 10&nbsp,minutes (prévoir un moment libre de20&nbsp,minutes). Au moment de l’entrevue téléphonique, assurez-vous d’avoir sous la main toute la documentation relative à l’évaluation. Quand vous êtes prêt à commencer, cliquez sur le bouton Faire le test. Bon travail!
A173: 410-413-FD-60-02 | B173: 410-413-FD-60-02 • Applications informatiques en administration | C173: 257 | D173: E1D | E173: Évaluation finale D | H173: 6 | I173: =IFERROR(SEARCH("faire*test",J173),0)+IFERROR(SEARCH("attempt*now",J173),0) -> 1698 | J173: Consignes techniques Assurez-vous que votre navigateur Web est à jour.Rappelez-vous que : Toute votre documentation de cours est permise. Lorsque vous commencerez l’évaluation finale, un compteur électronique sera lancé et enregistrera le temps écoulé jusqu’à concurrence de 6 heures (la durée prévue pourcette évaluation est de 3&nbsp,heures, mais un délai supplémentaire vous estaccordé). Vous devez effectuer le travail et déposer les fichiers finaux dans l’environnement d’apprentissage dans ce délai, sinon vous aurez un échec. Pour naviguer d’une question à l’autre, vous pourrez utiliser la fonction Navigation du test. Notez que le cahier de réponses (et autres fichiers, le cas échéant) devra être téléchargé dès que l’évaluation finale commencera. Le cahier de réponses (et autres fichiers) devra être déposé à la toute fin de l’évaluation. Vous pourrez consulter la note de votre évaluation finale dans l’environnement d’apprentissage dès que votre tutrice ou votre tuteur l’aura inscrite. L’évaluation finale demeure la propriété du Cégep à distance, elle ne vous sera donc pas retournée une fois corrigée. Entrevue téléphonique L’évaluation finale est suivie d’une entrevue téléphonique obligatoire qui vise à authentifier la démarche que vous avez effectuée lors de l’évaluation. Après avoir corrigé votre évaluation finale,votre tutrice ou votre tuteur communiquera avec vous afin de fixer le moment del’entrevue. Celle-ci durera environ 10&nbsp,minutes (prévoir un moment libre de20&nbsp,minutes). Au moment de l’entrevue téléphonique, assurez-vous d’avoir sous la main toute la documentation relative à l’évaluation. Quand vous êtes prêt à commencer, cliquez sur le bouton Faire le test. Bon travail!
A174: 410-430-FD-80-01 | B174: 410-430-FD-80-01 • Marketing | C174: 255 | D174: D3F | E174: Évaluation finale D | G174: Le idnumber correspond à un devoir et le nom correspond à un examen. Pourquoi ? | H174: 6 | I174: =IFERROR(SEARCH("faire*test",J174),0)+IFERROR(SEARCH("attempt*now",J174),0) -> 1878 | J174: Consignes&nbsp,techniques&nbsp, Assurez-vous que votre navigateur Web est à jour.&nbsp, Rappelez-vous que :&nbsp, Toute votre&nbsp,documentation&nbsp,de cours est permise.&nbsp, Lorsque vous commencerez l’évaluation finale, un compteur électronique sera lancé et enregistrera le temps écoulé jusqu’à concurrence de 6 heures&nbsp,(la durée prévue&nbsp,pour&nbsp,cette évaluation est de 3 heures, mais un&nbsp,délai&nbsp,supplémentaire vous est accordé).&nbsp,Vous devez effectuer le travail et déposer les fichiers finaux dans l’environnement d’apprentissage dans ce délai, sinon vous aurez un échec.&nbsp, Pour naviguer d’une question à l’autre, vous pourrez utiliser la fonction Navigation du test. Notez que le cahier de réponses (et autres fichiers, le cas échéant) devra être téléchargé dès que l’évaluation finale commencera. Le cahier de réponses (et autres fichiers) devra être déposé à la toute fin de l’évaluation.&nbsp, &nbsp,&nbsp, Vous pourrez consulter la note de votre&nbsp,évaluation finale&nbsp,dans l’environnement d’apprentissage dès que votre tutrice ou votre tuteur l’aura inscrite.&nbsp, L’évaluation finale&nbsp,demeure la propriété du Cégep à distance,&nbsp,elle&nbsp,ne vous sera donc pas retournée&nbsp,une fois corrigée.&nbsp, Entrevue téléphonique&nbsp, L’évaluation finale est suivie d’une&nbsp,entrevue téléphonique obligatoire&nbsp,qui vise à authentifier la démarche que vous avez effectuée lors de l’évaluation.&nbsp, Après avoir corrigé votre évaluation finale, votre tutrice ou votre tuteur communiquera avec vous afin de fixer le moment de l’entrevue. Celle-ci durera environ 10 minutes (prévoir un moment libre de 20 minutes).&nbsp, Au moment de l’entrevue téléphonique, assurez-vous d’avoir sous la main&nbsp,toute&nbsp,la documentation&nbsp,relative à l’évaluation.&nbsp, Quand vous êtes prêt à commencer, cliquez sur le bouton&nbsp,Faire&nbsp,le test.&nbsp, Bon travail!&nbsp,
A175: 410-430-FD-80-01 | B175: 410-430-FD-80-01 • Marketing | C175: 255 | D175: E1D | E175: Évaluation finale D | H175: 6 | I175: =IFERROR(SEARCH("faire*test",J175),0)+IFERROR(SEARCH("attempt*now",J175),0) -> 1878 | J175: Consignes&nbsp,techniques&nbsp, Assurez-vous que votre navigateur Web est à jour.&nbsp, Rappelez-vous que :&nbsp, Toute votre&nbsp,documentation&nbsp,de cours est permise.&nbsp, Lorsque vous commencerez l’évaluation finale, un compteur électronique sera lancé et enregistrera le temps écoulé jusqu’à concurrence de 6 heures&nbsp,(la durée prévue&nbsp,pour&nbsp,cette évaluation est de 3 heures, mais un&nbsp,délai&nbsp,supplémentaire vous est accordé).&nbsp,Vous devez effectuer le travail et déposer les fichiers finaux dans l’environnement d’apprentissage dans ce délai, sinon vous aurez un échec.&nbsp, Pour naviguer d’une question à l’autre, vous pourrez utiliser la fonction Navigation du test. Notez que le cahier de réponses (et autres fichiers, le cas échéant) devra être téléchargé dès que l’évaluation finale commencera. Le cahier de réponses (et autres fichiers) devra être déposé à la toute fin de l’évaluation.&nbsp, &nbsp,&nbsp, Vous pourrez consulter la note de votre&nbsp,évaluation finale&nbsp,dans l’environnement d’apprentissage dès que votre tutrice ou votre tuteur l’aura inscrite.&nbsp, L’évaluation finale&nbsp,demeure la propriété du Cégep à distance,&nbsp,elle&nbsp,ne vous sera donc pas retournée&nbsp,une fois corrigée.&nbsp, Entrevue téléphonique&nbsp, L’évaluation finale est suivie d’une&nbsp,entrevue téléphonique obligatoire&nbsp,qui vise à authentifier la démarche que vous avez effectuée lors de l’évaluation.&nbsp, Après avoir corrigé votre évaluation finale, votre tutrice ou votre tuteur communiquera avec vous afin de fixer le moment de l’entrevue. Celle-ci durera environ 10 minutes (prévoir un moment libre de 20 minutes).&nbsp, Au moment de l’entrevue téléphonique, assurez-vous d’avoir sous la main&nbsp,toute&nbsp,la documentation&nbsp,relative à l’évaluation.&nbsp, Quand vous êtes prêt à commencer, cliquez sur le bouton&nbsp,Faire&nbsp,le test.&nbsp, Bon travail!&nbsp,
